Workbook

Sheet TRM Spreadsheet
A1: Evergy MEEIA 3 Technical Resource Manual - 2023-01-01 Update
A2: Measures updated with final Cycle 3 PY2 EM&V results | AO2: Link to CDD | AP2: Link to HDD
A3: New Measures
A4: Measure Description | H4: Gross Measure Values | AA4: Efficiency Values | AI4: Algorithms | AM4: Start/End Dates | AO4: Quantities
A5: Program | B5: Measure Name | C5: Primary Key | D5: Segment | E5: End Use | F5: Notes | G5: Unit Definition | H5: Incremental Measure Cost ($/Unit) | I5: Incremental Measure Cost Source | J5: Incremental Measure Cost Source Page Number | K5: Electric Energy Savings (Annual kWh/unit) | L5: Electric Energy Savings (Annual kWh/unit) Source | M5: Electric Energy Savings (Annual kWh/unit) Source Page Number | N5: Nameplate Demand Savings (kW/unit) | O5: Peak Coincidence Factor | P5: Peak Coincident Factor Source | Q5: Peak Coincident Factor Source Page Number | R5: Coincident Peak Demand Savings (kW/unit) | S5: Coincident Peak Demand Savings (kW/unit) Source | T5: Coincident Peak Demand Savings (kW/unit) Source Page Number | U5: Annual Operating Hours | V5: Annual Operating Hours Source | W5: Annual Operating Hours Source Page Number | X5: Measure Life (Years) | Y5: Measure Life (Years) Source | Z5: Measure Life (Years) Source Page Number | AA5: Measure Definition | AB5: Measure Efficiency Value | AC5: Measure Efficiency Value Source | AD5: Measure Efficiency Value Source Page Number | AE5: Baseline Definition | AF5: Baseline Efficiency Value | AG5: Baseline Efficiency Value Source | AH5: Baseline Efficiency Value Source Page Number | AI5: Electric Energy Savings Algorithm | AJ5: Electric Demand Savings Algorithm | AK5: Savings Algorithms Source | AL5: Savings Algorithms Source Page Number | AM5: Effective Start Date | AN5: Effective End Date | AO5: Cooling Degree Days (CDD) | AP5: Heating Degree Days (HDD) | AQ5: Degree Days Source | AR5: Degree Days Source Page Number | AS5: Quantity 1 | AT5: Quantity 1 Description | AU5: Quantity 1 Source | AV5: Quantity 1 Source Page Number | AW5: Quantity 2 | AX5: Quantity 2 Description | AY5: Quantity 2 Source | AZ5: Quantity 2 Source Page Number | BA5: Quantity 3 | BB5: Quantity 3 Description | BC5: Quantity 3 Source | BD5: Quantity 3 Source Page Number | BE5: Quantity 4 | BF5: Quantity 4 Description | BG5: Quantity 4 Source | BH5: Quantity 4 Source Page Number | BI5: Quantity 5 | BJ5: Quantity 5 Description | BK5: Quantity 5 Source | BL5: Quantity 5 Source Page Number | BM5: Quantity 6 | BN5: Quantity 6 Description | BO5: Quantity 6 Source | BP5: Quantity 6 Source Page Number | BQ5: Quantity 7 | BR5: Quantity 7 Description | BS5: Quantity 7 Source | BT5: Quantity 7 Source Page Number | BU5: Quantity 8 | BV5: Quantity 8 Description | BW5: Quantity 8 Source | BX5: Quantity 8 Source Page Number | BY5: Quantity 9 | BZ5: Quantity 9 Description | CA5: Quantity 9 Source | CB5: Quantity 9 Source Page Number | CC5: Quantity 10 | CD5: Quantity 10 Description | CE5: Quantity 10 Source | CF5: Quantity 10 Source Page Number | CG5: Quantity 11 | CH5: Quantity 11 Description | CI5: Quantity 11 Source | CJ5: Quantity 11 Source Page Number | CK5: Quantity 12 | CL5: Quantity 12 Description | CM5: Quantity 12 Source | CN5: Quantity 12 Source Page Number | CO5: Quantity 13 | CP5: Quantity 13 Description | CQ5: Quantity 13 Source | CR5: Quantity 13 Source Page Number | CS5: Quantity 14 | CT5: Quantity 14 Description | CU5: Quantity 14 Source | CV5: Quantity 14 Source Page Number | CW5: Quantity 15 | CX5: Quantity 15 Description | CY5: Quantity 15 Source | CZ5: Quantity 15 Source Page Number | DA5: Quantity 16 | DB5: Quantity 16 Description | DC5: Quantity 16 Source | DD5: Quantity 16 Source Page Number | DE5: Quantity 17 | DF5: Quantity 17 Description | DG5: Quantity 17 Source | DH5: Quantity 17 Source Page Number | DI5: Quantity 18 | DJ5: Quantity 18 Description | DK5: Quantity 18 Source | DL5: Quantity 18 Source Page Number | DM5: Quantity 19 | DN5: Quantity 19 Description | DO5: Quantity 19 Source | DP5: Quantity 19 Source Page Number
A6: Business Custom | B6: Business Custom Measure | C6: 0.15 | D6: C&I | E6: All | AM6: 2020-01-01
A7: Business Custom | B7: Block Bidding Custom Measure | C7: 0.16 | D7: C&I | E7: All | AM7: 2020-01-01
A8: Business Custom | B8: C&I Custom - New Construction | C8: 0.2 | D8: C&I | E8: All | AM8: 2020-01-01
A9: Business Custom | B9: C&I Custom - New Construction Lighting | C9: 0.21 | D9: C&I | E9: All | AM9: 2020-01-01
A10: Business Custom | B10: C&I Custom - Peak Load Shift | C10: 0.22 | D10: C&I | E10: All | AM10: 2020-01-01
A11: Business Demand Response | B11: Business Demand Response Custom Measure | C11: 0.19 | D11: C&I | E11: All | AM11: 2020-01-01
A12: Business Process Efficiency | B12: Strategic Energy Management Custom Measure | C12: 0.17 | D12: C&I | E12: All | AM12: 2020-01-01
A13: Business Process Efficiency | B13: Retrocomissioning Custom Measure | C13: 0.18 | D13: C&I | E13: All | AM13: 2020-01-01
A14: Business Smart Thermostat | B14: Smart Thermostat | C14: 66.4 | D14: All | E14: HVAC | G14: per unit | H14: 170 | I14: Weighted average cost of actual units installed in PY2020. | K14: =ROUND(831,4) -> 831 | L14: ADM PY2020 Analysis | R14: =ROUND(0.776,4) -> 0.776 | S14: ADM PY2020 Analysis | X14: 10 | Y14: IL TRM v6 vol3 | Z14: 160 | AA14: PCT | AE14: No PCT | AI14: =cellformula(K14) -> =ROUND(831,4) | AJ14: =cellformula(R14) -> =ROUND(0.776,4) | AM14: 2022-01-01 | AN14: 2022-12-31
A15: Business Smart Thermostat | B15: Smart Thermostat | C15: 66.5 | D15: All | E15: HVAC | G15: per unit | H15: 170 | I15: Weighted average cost of actual units installed in PY2020. | K15: =ROUND(388,4) -> 388 | L15: ADM PY2021 Analysis | R15: =ROUND(0.939828,4) -> 0.9398 | S15: ADM PY2021 Analysis | X15: 11 | Y15: IL TRM v7 vol3 | Z15: 160 | AA15: PCT | AE15: No PCT | AI15: =ROUND(388,4) | AJ15: =ROUND(0.939828,4) | AM15: 2023-01-01
A16: Business Standard | B16: Interior Daylighting Controls Replacing No Controls | C16: 67.2 | D16: Small C&I | E16: Lighting | G16: per sensor | H16: 66 | I16: IL TRM v6 vol2 | J16: 402 (portfolio weighted average) | K16: =ROUND(AB16/1000*AS16*U16*BA16,4) -> 692.634 | L16: Calculated Value | N16: =AB16/1000*AW16*BA16 -> 0.21316318 | O16: 0.66 | P16: IL TRM v6 vol2 | Q16: 337-338 (portfolio weighted average) | R16: =ROUND(N16*O16,4) -> 0.1407 | S16: Calculated Value | U16: 3088 | V16: IL TRM v6 vol2 | W16: 338 | X16: 8 | Y16: IL TRM v6 vol2 | Z16: 402 | AA16: Photocell Occupancy Sensor | AB16: 587 | AC16: Program Tracking Database (watts controlled) | AE16: No Control | AI16: =ROUND(AB16/1000*AS16*U16*BA16,4) | AJ16: =ROUND(N16*O16,4) | AK16: IL TRM v6 vol2 | AL16: 403, 404 | AM16: 2020-01-01 | AS16: 1.41 | AT16: Waste Heat Factor Energy | AU16: IL TRM v6 vol2 | AV16: 337-338 (portfolio weighted average) | AW16: 1.34 | AX16: Waste Heat Factor Demand | AY16: IL TRM v6 vol2 | AZ16: 337-338 (portfolio weighted average) | BA16: 0.271 | BB16: ESF | BC16: IL TRM v6 vol2 | BD16: 419 (portfolio weighted average)
A17: Business Standard | B17: LED Exit Sign | C17: 68.3 | D17: Small C&I | E17: Lighting | F17: Direct Install | G17: per unit | H17: 30 | I17: IL TRM v6 vol2 | J17: 376 | K17: =ROUND((AF17-AB17)/1000*U17*AS17*BA17,4) -> 45.8683 | L17: Calculated Value | N17: =ROUND((AF17-AB17)/1000*AW17*BA17,4) -> 0.006 | O17: 0.9337378093 | P17: Navigant Field Work | Q17: (portfolio weighted average) | R17: =ROUND(N17*O17,4) -> 0.0056 | S17: Calculated Value | U17: 7706.016549 | V17: Navigant Field Work | W17: (portfolio weighted average) | X17: 16 | Y17: IL TRM v6 vol2 | Z17: 376 | AA17: LED (watts) | AB17: 3 | AC17: Program Tracking Data | AE17: Fluorescent (watts) | AF17: 7.666666667 | AH17: IL TRM V.5 | AI17: =ROUND((AF17-AB17)/1000*U17*AS17*BA17,4) | AJ17: =ROUND(N17*O17,4) | AK17: IL TRM v6 vol2 | AL17: 376378 | AM17: 2020-01-01 | AS17: 1.29 | AT17: Waste Heat Factor for energy | AU17: Navigant Field Work | AW17: 1.29 | AX17: Waste Heat Factor for demand | AY17: Navigant Field Work | BA17: 0.9887492598 | BB17: ISR - in service rate | BC17: Navigant field work
A18: Business Standard | B18: High‐Bay Fluorescent Fixture T5 > 4 Lamps w/ HE Electronic Ballast Replacing HID Fixture | C18: 69.2 | D18: Small C&I | E18: Lighting | G18: per fixture | H18: 100 | I18: IL TRM v6 vol2 | J18: 413 | K18: =ROUND((AF18-AB18)/1000*U18*AS18,4) -> 701.0069 | L18: Calculated Value | N18: =(AF18-AB18)/1000*AW18 -> 0.21574 | O18: 0.66 | P18: IL TRM v6 vol2 | Q18: 337-338 (portfolio weighted average) | R18: =ROUND(N18*O18,4) -> 0.1424 | S18: Calculated Value | U18: 3088 | V18: IL TRM v6 vol2 | W18: 338 | X18: 15 | Y18: IL TRM v6 vol2 | Z18: 410 | AA18: High Bay T5 (>4 lamps, wattage) | AB18: 295 | AC18: IL TRM v6 vol2 | AD18: 413 (weighted average) | AE18: Metal Halide (watts) | AF18: 456 | AG18: IL TRM v6 vol2 | AH18: 413 (weighted average) | AI18: =ROUND((AF18-AB18)/1000*U18*AS18,4) | AJ18: =ROUND(N18*O18,4) | AK18: IL TRM v6 vol2 | AL18: 364,368 | AM18: 2020-01-01 | AS18: 1.41 | AT18: Waste Heat Factor Energy | AU18: IL TRM v6 vol2 | AV18: 337-338 (portfolio weighted average) | AW18: 1.34 | AX18: Waste Heat Factor Demand | AY18: IL TRM v6 vol2 | AZ18: 337-338 (portfolio weighted average)
A19: Business Standard | B19: Interior Directional LED Lamp replacing 71-110W Lamp | C19: 70.3 | D19: Small C&I | E19: Lighting | G19: per lamp | H19: 20 | I19: Program Tracking Data | K19: =ROUND((AF19-AB19)/1000*U19*AS19,4) -> 327.4268 | L19: Calculated Value | N19: =(AF19-AB19)/1000*AW19 -> 0.100768 | O19: 0.66 | P19: IL TRM v6 vol2 | Q19: 337-338 (portfolio weighted average) | R19: =ROUND(N19*O19,4) -> 0.0665 | S19: Calculated Value | U19: 3088 | V19: IL TRM v6 vol2 | W19: 338 | X19: 15 | Y19: IL TRM v6 vol2 | Z19: 363 | AA19: LED (watts) | AB19: 14.8 | AC19: Program Tracking Data | AE19: Incandescent (watts) | AF19: 90 | AG19: Measure Midpoint Value | AI19: =ROUND((AF19-AB19)/1000*U19*AS19,4) | AJ19: =ROUND(N19*O19,4) | AK19: IL TRM v6 vol2 | AL19: 364, 368 | AM19: 2020-01-01 | AS19: 1.41 | AT19: Waste Heat Factor Energy | AU19: IL TRM v6 vol2 | AV19: 337-338 (portfolio weighted average) | AW19: 1.34 | AX19: Waste Heat Factor Demand | AY19: IL TRM v6 vol2 | AZ19: 337-338 (portfolio weighted average)
A20: Business Standard | B20: Remove 4ft Lamp from T8 or T12 system | C20: 72.2 | D20: Small C&I | E20: Lighting | G20: per lamp | H20: 12 | I20: IL TRM v6 vol2 | J20: 346 | K20: =ROUND((AF20-AB20)/1000*U20*AS20,4) -> 121.9142 | L20: Calculated Value | N20: =(AF20-AB20)/1000*AW20 -> 0.03752 | O20: 0.66 | P20: IL TRM v6 vol2 | Q20: 337-338 (portfolio weighted average) | R20: =ROUND(N20*O20,4) -> 0.0248 | S20: Calculated Value | U20: 3088 | V20: IL TRM v6 vol2 | W20: 338 | X20: 11 | Y20: IL TRM v6 vol2 | Z20: 346 | AA20: Remove T8 | AB20: 0 | AC20: Measure Definition | AE20: T8 4 ft (watts) | AF20: 28 | AG20: IL TRM v6 vol2 | AH20: 347 (portfolio weighted average) | AI20: =ROUND((AF20-AB20)/1000*U20*AS20,4) | AJ20: =ROUND(N20*O20,4) | AK20: IL TRM v6 vol2 | AL20: 347348 | AM20: 2020-01-01 | AS20: 1.41 | AT20: Waste Heat Factor Energy | AU20: IL TRM v6 vol2 | AV20: 337-338 (portfolio weighted average) | AW20: 1.34 | AX20: Waste Heat Factor Demand | AY20: IL TRM v6 vol2 | AZ20: 337-338 (portfolio weighted average)
A21: Business Standard | B21: Water Heater Tank Wrap | C21: 76.1 | D21: C&I | E21: Hot Water | G21: per unit | H21: 20 | I21: Program Tracking Data | K21: =ROUND((AS21/AW21-BA21/BE21)*BI21*BM21/BQ21/BU21,4) -> 134.0948 | L21: Calculated Value | N21: =ROUND(K21/U21,4) -> 0.0153 | O21: 1 | P21: IL TRM v7 vol3 | Q21: 203 | R21: =ROUND(K21/U21*O21,4) -> 0.0153 | S21: Calculated Value | U21: 8766 | V21: IL TRM v7 vol3 | W21: 204 | X21: 5 | Y21: IL TRM v7 vol3 | Z21: 203 | AA21: Water heater insulation increased from R12 to R22, 50gal | AC21: IL TRM v7 vol3 | AD21: 204 | AE21: R12, 50-gal water heater insulation (no wrap) | AG21: IL TRM v7 vol3 | AH21: 204 | AI21: =ROUND((AS21/AW21-BA21/BE21)*BI21*BM21/BQ21/BU21,4) | AJ21: =ROUND(K21/U21*O21,4) | AK21: IL TRM v7 vol3 | AL21: 203, 205 | AM21: 2020-01-01 | AS21: 24.99 | AT21: Abase | AU21: IL TRM v7 vol3 | AV21: 204 | AW21: 12 | AX21: Rbase | AY21: IL TRM v7 vol3 | AZ21: 204 | BA21: 27.06 | BB21: Ainsul | BC21: IL TRM v7 vol3 | BD21: 204 | BE21: 22 | BF21: Rinsul | BG21: IL TRM v7 vol3 | BH21: 204 | BI21: 60 | BJ21: deltaT | BK21: IL TRM v7 vol3 | BL21: 204 | BM21: 8766 | BN21: Hours | BO21: IL TRM v7 vol3 | BP21: 204 | BQ21: 0.98 | BR21: eta DHW | BS21: IL TRM v7 vol3 | BT21: 204 | BU21: 3412 | BV21: Conversion from BTU to kWh | BW21: IL TRM v7 vol3 | BX21: 204
A22: Business Standard | B22: High Efficiency Pool Pump | C22: 78.1 | D22: C&I | E22: Pools | G22: per unit | H22: 273.32 | I22: Program Tracking Data | K22: =ROUND(1301.2478,4) -> 1301.2478 | L22: Calculated Value | O22: 1 | P22: Calculated Value | R22: =ROUND(0.1485,4) -> 0.1485 | S22: Calculated Value | X22: 10 | Y22: IL TRM v6 vol3 | Z22: 296 | AA22: High Efficiency | AC22: IL TRM v6 vol3 | AD22: 296 | AE22: Standard Pool Pump | AG22: IL TRM v6 vol3 | AH22: 296 | AI22: =ROUND(1301.2478,4) | AJ22: =ROUND(0.1485,4) | AK22: IL TRM v6 vol2 | AL22: 479 | AM22: 2020-01-01
A23: Business Standard | B23: Pool Pump VSD | C23: 79.1 | D23: C&I | E23: Pools | G23: per unit | H23: 579 | I23: Program Tracking Data | K23: =ROUND(2461.4482,4) -> 2461.4482 | L23: Calculated Value | O23: 1 | P23: Calculated Value | R23: =ROUND(0.281,4) -> 0.281 | S23: Calculated Value | X23: 10 | Y23: IL TRM v6 vol3 | Z23: 296 | AA23: VSD | AC23: IL TRM v6 vol3 | AD23: 296 | AE23: Standard Pool Pump | AG23: IL TRM v6 vol3 | AH23: 296 | AI23: =ROUND(2461.4482,4) | AJ23: =ROUND(0.281,4) | AK23: IL TRM v6 vol2 | AL23: 479 | AM23: 2020-01-01
A24: Business Standard | B24: LED Refrigerator Case Light | C24: 84.3 | D24: C&I | E24: Refrigeration | G24: per unit | H24: 44 | I24: IL TRM v5 vol2 - Assume 4 ft lamp | J24: 378 | K24: =ROUND((AF24-AB24)/1000*U24*AS24*BA24,4) -> 224.9713 | L24: Calculated Value | N24: =K24/U24 -> 0.03877478456 | O24: 0.69 | P24: IL TRM v5 vol2 | Q24: 341 | R24: =ROUND((AF24-AB24)/1000*AW24*BA24*O24,4) -> 0.0268 | S24: Calculated Value | U24: 5802 | V24: IL TRM v5 vol2 | W24: 341 | X24: 15 | Y24: IL TRM v5 vol2 | Z24: 369 | AA24: LED Display Lighting (watts) | AB24: 30.4 | AC24: IL TRM v5 vol2 - Assume 4 ft lamp | AD24: 378 | AE24: Base Refrigeration - Standard (watts) | AF24: 60.8 | AG24: IL TRM v5 vol2 - Assume 4 ft lamp | AH24: 378 | AI24: =ROUND((AF24-AB24)/1000*U24*AS24*BA24,4) | AJ24: =ROUND((AF24-AB24)/1000*AW24*BA24*O24,4) | AK24: IL TRM v6 vol2 | AL24: 364,368 | AM24: 2020-05-01 | AS24: 1.29 | AT24: Waste Heat Factor for Energy | AU24: IL TRM v5 vol2 | AV24: 341 | AW24: 1.29 | AX24: Waste Heat Factor Demand | AY24: IL TRM v5 vol2 | AZ24: 341 | BA24: 0.9887492598 | BB24: ISR | BC24: Navigant field work
A25: Business Standard | B25: ECM Motors Walk-In Coolers & Freezers | C25: 85.2 | D25: C&I | E25: Refrigeration | G25: per motor | H25: 50 | I25: IL TRM v5 vol2 | J25: 448 | K25: =ROUND(1064,4) -> 1064 | L25: IL TRM v7 vol2 | M25: 516 | O25: 1 | P25: IL TRM v5 vol2 | Q25: 448 | R25: =ROUND(K25/AS25*O25,4) -> 0.1215 | S25: IL TRM v7 vol2 | T25: 450 | X25: 15 | Y25: IL TRM v5 vol2 | Z25: 448 | AA25: ECM Motor | AC25: IL TRM v5 vol2 | AD25: 448 | AE25: Shaded pole motor | AG25: IL TRM v5 vol2 | AH25: 448 | AI25: =ROUND(1064,4) | AJ25: =ROUND(K25/AS25*O25,4) | AK25: IL TRM v6 vol2 | AL25: 450 | AM25: 2021-01-01 | AS25: 8760 | AT25: Hours | AU25: IL TRM v7 vol2 | AV25: 514
A26: Business Standard | B26: High Efficiency PTAC/PTHP | C26: 86.1 | D26: C&I | E26: HVAC | G26: per ton | H26: 84 | I26: IL TRM v6 vol2 | J26: 184 | K26: =ROUND(30.0701,4) -> 30.0701 | L26: Calculated Value | O26: 0.91 | P26: IL TRM v6 vol2 | Q26: 185 | R26: =ROUND(0.0118,4) -> 0.0118 | S26: Calculated Value | X26: 15 | Y26: IL TRM v6 vol2 | Z26: 184 | AA26: EER | AB26: 12 | AC26: Program Tracking Data | AE26: EER | AF26: 10.2 | AG26: IL TRM v6 vol2 | AH26: 186 | AI26: =ROUND(30.0701,4) | AJ26: =ROUND(0.0118,4) | AK26: IL TRM v6 vol2 | AL26: 185187 | AM26: 2020-01-01 | AO26: 1325 | AP26: 5249 | AQ26: MO TRM and Navigant Analysis | AS26: 12000 | AT26: Btu/hr | AU26: IL TRM v6 vol2 | AV26: 150 | AW26: 11535.60828 | AX26: Unit size conversion | AY26: Program Tracking Data | BA26: 0.001794835007 | BB26: HSPF improvement factor
A27: Business Standard | B27: Programmable Thermostat Controls | C27: 87.1 | D27: C&I | E27: HVAC | G27: per ton | H27: 36.2 | I27: IL TRM v6 vol2 | J27: 220 | K27: =ROUND(126.0527,4) -> 126.0527 | L27: Calculated Value | R27: =ROUND(0,4) -> 0 | S27: Calculated Value | X27: 8 | Y27: IL TRM v6 vol2 | Z27: 220 | AA27: Programmable Tstat | AC27: IL TRM v6 vol2 | AD27: 220 | AE27: No Tstat | AG27: IL TRM v6 vol2 | AH27: 220 | AI27: =ROUND(126.0527,4) | AJ27: =ROUND(0,4) | AK27: IL TRM v6 vol2 | AL27: 221 | AM27: 2020-01-01
A28: Business Standard | B28: CAC <65 kBtuh | C28: 90.2 | D28: C&I | E28: HVAC | G28: per ton | H28: 127 | I28: IL TRM v6 vol2 | J28: 203 | K28: =ROUND(AW28*(1/AF28-1/AB28)*AS28/1000,4) -> 151.8769 | L28: Calculated Value | N28: 0.08156 | O28: 0.91 | P28: IL TRM v6 vol2 | Q28: 204 | R28: =ROUND(((1/BA28-1/BE28)*AS28/1000)*O28,4) -> 0.0667 | S28: Calculated Value | U28: 1000 | V28: IL TRM v6 vol2 | W28: 133 (portfolio weighted average) | X28: 15 | Y28: IL TRM v6 vol2 | Z28: 203 | AA28: SEER | AB28: 15 | AC28: Average of 2019 Program Tracking Data | AE28: SEER | AF28: 13 | AG28: IL TRM v7 vol2 | AH28: 215 | AI28: =ROUND(AW28*(1/AF28-1/AB28)*AS28/1000,4) | AJ28: =ROUND(((1/BA28-1/BE28)*AS28/1000)*O28,4) | AK28: IL TRM v6 vol2 | AL28: 204, 209 | AM28: 2021-01-01 | AO28: 1325 | AP28: 5249 | AQ28: MO TRM and Navigant Analysis | AS28: 12000 | AT28: Btu/hr | AU28: IL TRM v6 vol2 | AV28: 150 | AW28: 1234 | AX28: EFLH | AY28: IL TRM v7 vol2 (average of zone 4 space types: Office - Mid Rise, Manufacturing Facility, Unknown, Retail-Strip Mall, High School, Warehouse, Garage | AZ28: 138-139 | BA28: =(-0.02*AF28^2)+(1.12*AF28) -> 11.18 | BB28: EERbase | BC28: IL TRM v7 vol2 | BD28: 220 | BE28: 12 | BF28: EERee | BG28: Average of 2019 program tracking data
A29: Business Standard | B29: CAC 65<135 kBtuh | C29: 91.2 | D29: C&I | E29: HVAC | G29: per ton | H29: 127 | I29: IL TRM v6 vol2 | J29: 203 | K29: =ROUND(AW29*(1/AF29-1/AB29)*AS29/1000,4) -> 581.7429 | L29: Calculated Value | N29: 0.0566389 | O29: 0.91 | P29: IL TRM v6 vol2 | Q29: 204 | R29: =ROUND(((1/BA29-1/BE29)*AS29/1000)*O29,4) -> 0.1527 | S29: Calculated Value | U29: 1000 | V29: IL TRM v6 vol2 | W29: 133 (portfolio weighted average) | X29: 15 | Y29: IL TRM v6 vol2 | Z29: 203 | AA29: IEER | AB29: 20 | AC29: Average of 2019 Program Tracking Data | AE29: IEER | AF29: 11.2 | AG29: IL TRM v7 vol2 | AH29: 215 | AI29: =ROUND(AW29*(1/AF29-1/AB29)*AS29/1000,4) | AJ29: =ROUND(((1/BA29-1/BE29)*AS29/1000)*O29,4) | AK29: IL TRM v6 vol2 | AL29: 204, 209 | AM29: 2021-01-01 | AO29: 1325 | AP29: 5249 | AQ29: MO TRM and Navigant Analysis | AS29: 12000 | AT29: Btu/hr | AU29: IL TRM v6 vol2 | AV29: 150 | AW29: 1234 | AX29: EFLH | AY29: IL TRM v7 vol2 (average of zone 4 space types: Office - Mid Rise, Manufacturing Facility, Unknown, Retail-Strip Mall, High School, Warehouse, Garage | AZ29: 138-139 | BA29: 11 | BB29: EERbase | BC29: IL TRM v7 vol2 | BD29: 220 | BE29: 13 | BF29: EERee | BG29: Average of 2019 program tracking data
A30: Business Standard | B30: CAC 135<240 kBtuh | C30: 92.2 | D30: C&I | E30: HVAC | G30: per ton | H30: 100 | I30: IL TRM v6 vol2 | J30: 203 | K30: =ROUND(AW30*(1/AF30-1/AB30)*AS30/1000,4) -> 605.7818 | L30: Calculated Value | N30: 0.0807362 | O30: 0.91 | P30: IL TRM v6 vol2 | Q30: 204 | R30: =ROUND(((1/BA30-1/BE30)*AS30/1000)*O30,4) -> 0.1711 | S30: Calculated Value | U30: 1000 | V30: IL TRM v6 vol2 | W30: 133 (portfolio weighted average) | X30: 15 | Y30: IL TRM v6 vol2 | Z30: 203 | AA30: IEER | AB30: 20 | AC30: Average of 2019 Program Tracking Data | AE30: IEER | AF30: 11 | AG30: IL TRM v7 vol2 | AH30: 215 | AI30: =ROUND(AW30*(1/AF30-1/AB30)*AS30/1000,4) | AJ30: =ROUND(((1/BA30-1/BE30)*AS30/1000)*O30,4) | AK30: IL TRM v6 vol2 | AL30: 204, 209 | AM30: 2021-01-01 | AO30: 1325 | AP30: 5249 | AQ30: MO TRM and Navigant Analysis | AS30: 12000 | AT30: Btu/hr | AU30: IL TRM v6 vol2 | AV30: 150 | AW30: 1234 | AX30: EFLH | AY30: IL TRM v7 vol2 (average of zone 4 space types: Office - Mid Rise, Manufacturing Facility, Unknown, Retail-Strip Mall, High School, Warehouse, Garage | AZ30: 138-139 | BA30: 10.8 | BB30: EERbase | BC30: IL TRM v7 vol2 | BD30: 220 | BE30: 13 | BF30: EERee | BG30: Average of 2019 program tracking data
A31: Business Standard | B31: CAC >240 kBtuh | C31: 93.2 | D31: C&I | E31: HVAC | G31: per ton | H31: 100 | I31: IL TRM v6 vol2 | J31: 203 | K31: =ROUND(AW31*(1/AF31-1/AB31)*AS31/1000,4) -> 356.6807 | L31: Calculated Value | N31: 0.0706853 | O31: 0.91 | P31: IL TRM v6 vol2 | Q31: 204 | R31: =ROUND(((1/BA31-1/BE31)*AS31/1000)*O31,4) -> 0.1216 | S31: Calculated Value | U31: 1000 | V31: IL TRM v6 vol2 | W31: 133 (portfolio weighted average) | X31: 15 | Y31: IL TRM v6 vol2 | Z31: 203 | AA31: IEER | AB31: 13 | AC31: Average of 2019 Program Tracking Data | AE31: IEER | AF31: 9.9 | AG31: IL TRM v7 vol2 | AH31: 215 | AI31: =ROUND(AW31*(1/AF31-1/AB31)*AS31/1000,4) | AJ31: =ROUND(((1/BA31-1/BE31)*AS31/1000)*O31,4) | AK31: IL TRM v6 vol2 | AL31: 204, 209 | AM31: 2021-01-01 | AO31: 1325 | AP31: 5249 | AQ31: MO TRM and Navigant Analysis | AS31: 12000 | AT31: Btu/hr | AU31: IL TRM v6 vol2 | AV31: 150 | AW31: 1234 | AX31: EFLH | AY31: IL TRM v7 vol2 (average of zone 4 space types: Office - Mid Rise, Manufacturing Facility, Unknown, Retail-Strip Mall, High School, Warehouse, Garage | AZ31: 138-139 | BA31: 9.8 | BB31: EERbase | BC31: IL TRM v7 vol2 | BD31: 220 | BE31: 11 | BF31: EERee | BG31: Average of 2019 program tracking data
A32: Business Standard | B32: Interior Directional LED Lamp replacing 50-70W Lamp | C32: 96.4 | D32: C&I | E32: Lighting | G32: per lamp | H32: 64.47 | I32: IL TRM v5 vol2 | J32: 377 | K32: =ROUND((AF32-AB32)/1000*U32*AS32,4) -> 214.6561 | L32: Calculated Value | N32: =(AF32-AB32)/1000*AW32 -> 0.066062 | O32: 0.6193 | P32: IL TRM v5 vol2 | Q32: 340-341(portfolio weighted average) | R32: =ROUND(N32*O32,4) -> 0.0409 | S32: Calculated Value | U32: 3088 | V32: IL TRM v6 vol2 | W32: 338 | X32: 15 | Y32: IL TRM v5 vol2 | Z32: 369 | AA32: LED (watts) | AB32: 10.7 | AC32: Program Tracking Data | AE32: Incandescent (watts) | AF32: 60 | AG32: Measure midpoint Value | AI32: =ROUND((AF32-AB32)/1000*U32*AS32,4) | AJ32: =ROUND(N32*O32,4) | AK32: IL TRM v6 vol2 | AL32: 364,368 | AM32: 2020-01-01 | AS32: 1.41 | AT32: Waste Heat Factor Energy | AU32: IL TRM v5 vol2 | AV32: 340-341 (portfolio weighted average) | AW32: 1.34 | AX32: Waste Heat Factor Demand | AY32: IL TRM v5 vol2 | AZ32: 340-341 (portfolio weighted average)
A33: Business Standard | B33: Interior Directional LED Lamp replacing 71-110W Lamp | C33: 97.5 | D33: C&I | E33: Lighting | G33: per lamp | H33: 64.47 | I33: IL TRM v5 vol2 | J33: 377 | K33: 327.4268 | L33: Calculated Value | N33: 0.100768 | O33: 0.6193 | P33: IL TRM v5 vol2 | Q33: 340-341(portfolio weighted average) | R33: 0.0624 | S33: Calculated Value | U33: 3088 | V33: IL TRM v6 vol2 | W33: 338 | X33: 15 | Y33: IL TRM v5 vol2 | Z33: 369 | AA33: LED (watts) | AB33: 14.8 | AC33: Program Tracking Data | AE33: Incandescent (watts) | AF33: 90 | AG33: Measure midpoint Value | AI33: =ROUND((AF33-AB33)/1000*U33*AS33,4) | AJ33: =ROUND(N33*O33,4) | AK33: IL TRM v6 vol2 | AL33: 364,368 | AM33: 2020-05-01 | AS33: 1.41 | AT33: Waste Heat Factor Energy | AU33: IL TRM v5 vol2 | AV33: 340-341 (portfolio weighted average) | AW33: 1.34 | AX33: Waste Heat Factor Demand | AY33: IL TRM v5 vol2 | AZ33: 340-341 (portfolio weighted average)
A34: Business Standard | B34: High Performance High-Bay Fluorescent Fixture T8 > 4 Lamps Replacing HID Fixture | C34: 98.2 | D34: C&I | E34: Lighting | G34: per fixture | H34: 200 | I34: IL TRM v6 vol2 | J34: 357 | K34: 1084.1659 | L34: Calculated Value | N34: 0.33366 | O34: 0.66 | P34: IL TRM v6 vol2 | Q34: 337-338 (portfolio weighted average) | R34: 0.2202 | S34: Calculated Value | U34: 3088 | V34: IL TRM v6 vol2 | W34: 338 | X34: 15 | Y34: IL TRM v6 vol2 | Z34: 352 | AA34: High Bay T8 (>4 lamps, wattage) | AB34: 206 | AC34: Program Tracking Database (weighted average( | AE34: Metal Halide (watts) | AF34: 455 | AG34: IL TRM v6 vol2 | AH34: 357 (portfolio weighted average) | AI34: =ROUND((AF34-AB34)/1000*U34*AS34,4) | AJ34: =ROUND(N34*O34,4) | AK34: IL TRM v6 vol2 | AL34: 353354 | AM34: 2020-01-01 | AS34: 1.41 | AT34: Waste Heat Factor Energy | AU34: IL TRM v6 vol2 | AV34: 337-338 (portfolio weighted average) | AW34: 1.34 | AX34: Waste Heat Factor Demand | AY34: IL TRM v6 vol2 | AZ34: 337-338 (portfolio weighted average)
A35: Business Standard | B35: High Bay Fluorescent Fixture (HP T8 <=4 lamps) | C35: 99.1 | D35: C&I | E35: Lighting | G35: per fixture | H35: 225 | I35: IL TRM v6 vol2 | J35: 357 | K35: 648.7579 | L35: Calculated Value | N35: 0.19966 | O35: 0.66 | P35: IL TRM v6 vol2 | Q35: 337-338 (portfolio weighted average) | R35: 0.1318 | S35: Calculated Value | U35: 3088 | V35: IL TRM v6 vol2 | W35: 338 | X35: 15 | Y35: IL TRM v6 vol2 | Z35: 352 | AA35: High Bay T8 (≤4 lamps, wattage) | AB35: 146 | AC35: Program Tracking Database (weighted average( | AE35: Metal Halide (watts) | AF35: 295 | AG35: IL TRM v6 vol2 | AH35: 357 | AI35: =ROUND((AF35-AB35)/1000*U35*AS35,4) | AJ35: =ROUND(N35*O35,4) | AK35: IL TRM v6 vol2 | AL35: 353354 | AM35: 2020-01-01 | AS35: 1.41 | AT35: Waste Heat Factor Energy | AU35: IL TRM v6 vol2 | AV35: 337-338 (portfolio weighted average) | AW35: 1.34 | AX35: Waste Heat Factor Demand | AY35: IL TRM v6 vol2 | AZ35: 337-338 (portfolio weighted average)
A36: Business Standard | B36: High-Bay Fluorescent Fixture T5 > 4 Lamps w/ HE Electronic Ballast Replacing HID Fixture | C36: 100.2 | D36: C&I | E36: Lighting | G36: per fixture | H36: 100 | I36: IL TRM v6 vol2 | J36: 413 | K36: 701.0069 | L36: Calculated Value | N36: 0.21574 | O36: 0.66 | P36: IL TRM v6 vol2 | Q36: 337-338 (portfolio weighted average) | R36: 0.1424 | S36: Calculated Value | U36: 3088 | V36: IL TRM v6 vol2 | W36: 338 | X36: 15 | Y36: IL TRM v6 vol2 | Z36: 410 | AA36: High Bay T5 (>4 lamps, wattage) | AB36: 295 | AC36: IL TRM v6 vol2 | AD36: 413 (weighted average) | AE36: Metal Halide (watts) | AF36: 456 | AG36: IL TRM v6 vol2 | AH36: 413 (weighted average) | AI36: =ROUND((AF36-AB36)/1000*U36*AS36,4) | AJ36: =ROUND(N36*O36,4) | AK36: IL TRM v6 vol2 | AL36: 411412 | AM36: 2020-01-01 | AS36: 1.41 | AT36: Waste Heat Factor Energy | AU36: IL TRM v6 vol2 | AV36: 337-338 (portfolio weighted average) | AW36: 1.34 | AX36: Waste Heat Factor Demand | AY36: IL TRM v6 vol2 | AZ36: 337-338 (portfolio weighted average)
A37: Business Standard | B37: High-Bay Fluorescent Fixture T5 <= 4 Lamps w/ HE Electronic Ballast Replacing HID Fixture | C37: 101.2 | D37: C&I | E37: Lighting | G37: per fixture | H37: 100 | I37: IL TRM v6 vol2 | J37: 413 | K37: 404.9294 | L37: Calculated Value | N37: 0.12462 | O37: 0.66 | P37: IL TRM v6 vol2 | Q37: 337-338 (portfolio weighted average) | R37: 0.0822 | S37: Calculated Value | U37: 3088 | V37: IL TRM v6 vol2 | W37: 338 | X37: 15 | Y37: IL TRM v6 vol2 | Z37: 410 | AA37: High Bay T5 (≤4 lamps, wattage) | AB37: 117 | AC37: Program Tracking Database (weighted average( | AE37: Metal Halide (watts) | AF37: 210 | AG37: IL TRM v6 vol2 | AH37: 413-414 (portfolio weighted average) | AI37: =ROUND((AF37-AB37)/1000*U37*AS37,4) | AJ37: =ROUND(N37*O37,4) | AK37: IL TRM v6 vol2 | AL37: 411412 | AM37: 2020-01-01 | AS37: 1.41 | AT37: Waste Heat Factor Energy | AU37: IL TRM v6 vol2 | AV37: 337-338 (portfolio weighted average) | AW37: 1.34 | AX37: Waste Heat Factor Demand | AY37: IL TRM v6 vol2 | AZ37: 337-338 (portfolio weighted average)
A38: Business Standard | B38: LED Exit Sign | C38: 102.5 | D38: C&I | E38: Lighting | G38: per lamp | H38: 30 | I38: IL TRM v6 vol2 | J38: 376 | K38: =ROUND((AF38-AB38)/1000*U38*AS38*BA38,4) -> 72.7453 | L38: Calculated Value | N38: =(AF38-AB38)/1000*AW38*BA38 -> 0.01004964748 | O38: 1 | P38: IL TRM v9.0 Vol 2 | Q38: 508 | R38: 0.01 | S38: Calculated Value | U38: 8766 | V38: IL TRM v9.0 | W38: 509 | X38: 5 | Y38: IL TRM v9.0 Vol 2 | Z38: 508 | AA38: LED (watts) | AB38: 2.8 | AC38: Program Tracking Data | AE38: Fluorescent (watts) | AF38: 10.5 | AG38: IL TRM V.7 vol 2 | AH38: 441 (average of dual/single sided signs) | AI38: =ROUND((AF38-AB38)/1000*U38*AS38*BA38,4) | AJ38: =ROUND(N38*O38,4) | AK38: IL TRM v6 vol2 | AL38: 376378 | AM38: 2022-01-01 | AN38: 2022-12-31 | AS38: 1.09 | AT38: Waste Heat Factor | AU38: 'IL TRM v8 building specific values weighted by Evergy verified program savings | AW38: 1.32 | AX38: Waste Heat Factor | AY38: 'IL TRM v8 building specific values weighted by Evergy verified program savings | BA38: 0.9887492598 | BB38: ISR | BC38: Navigant field work
A39: Business Standard | B39: LED Exit Sign | C39: 102.6 | D39: C&I | E39: Lighting | G39: per lamp | H39: 32.5 | I39: IL TRM v10 Vol2 | J39: 570 | K39: =ROUND((AF39-AB39)/1000*U39*AS39*BA39,4) -> 67.7789 | L39: Calculated Value | N39: =(AF39-AB39)/1000*AW39*BA39 -> 0.007732019212 | O39: 1 | P39: IL TRM v10 Vol2 | Q39: 570 | R39: =ROUND(N39*O39,4) -> 0.0077 | S39: Calculated Value | U39: 8766 | V39: IL TRM v10 Vol2 | W39: 571 | X39: 5 | Y39: IL TRM v10 Vol2 | Z39: 508 | AA39: LED (watts) | AB39: 2.68 | AC39: PY2 portfolio weighted average | AE39: Fluorescent (watts) | AF39: 10.5 | AG39: IL TRM V.10 vol 2 | AH39: 571(average of dual/single sided signs) | AI39: =ROUND((AF39-AB39)/1000*U39*AS39*BA39,4) | AJ39: =ROUND(N39*O39,4) | AK39: IL TRM v10 Vol2 | AL39: 570571 | AM39: 2023-01-01 | AS39: 1 | AT39: Waste Heat Factor | AU39: PY2 portfolio weighted average | AW39: 1 | AX39: Waste Heat Factor | AY39: PY2 portfolio weighted average | BA39: 0.9887492598 | BB39: ISR | BC39: Guidehouse field work
A40: Business Standard | B40: LED Flood Light (<15W) | C40: 103.1 | D40: C&I | E40: Lighting | G40: per lamp | H40: 35 | I40: IL TRM v6 vol2 | J40: 370 | K40: =ROUND((AF40-AB40)/1000*U40*AS40,4) -> 210.829 | L40: Calculated Value | N40: =(AF40-AB40)/1000*AW40 -> 0.043 | O40: 0 | P40: IL TRM v6 vol2 | Q40: 338 | R40: =ROUND(N40*O40,4) -> 0 | S40: Calculated Value | U40: 4903 | V40: IL TRM v6 vol2 | W40: 338 | X40: 15 | Y40: IL TRM v6 vol2 | Z40: 363 | AA40: LED (watts) | AB40: 8.7 | AC40: Program Tracking Data | AE40: Metal Halide (watts) | AF40: 51.7 | AI40: =ROUND((AF40-AB40)/1000*U40*AS40,4) | AJ40: =ROUND(N40*O40,4) | AK40: IL TRM v6 vol2 | AL40: 364,368 | AM40: 2020-01-01 | AS40: 1 | AT40: Waste Heat Factor Energy | AU40: IL TRM v6 vol2 | AV40: 338 | AW40: 1 | AX40: Waste Heat Factor Demand | AY40: IL TRM v6 vol2 | AZ40: 338
A41: Business Standard | B41: LED Flood Light (>=15W) | C41: 104.1 | D41: C&I | E41: Lighting | G41: per lamp | H41: 45 | I41: IL TRM v6 vol2 | J41: 370 | K41: 236.3246 | L41: Calculated Value | N41: 0.0482 | O41: 0 | P41: IL TRM v6 vol2 | Q41: 338 | R41: 0 | S41: Calculated Value | U41: 4903 | V41: IL TRM v6 vol2 | W41: 338 | X41: 15 | Y41: IL TRM v6 vol2 | Z41: 363 | AA41: LED (watts) | AB41: 16.2 | AC41: Program Tracking Data | AE41: Metal Halide (watts) | AF41: 64.4 | AI41: =ROUND((AF41-AB41)/1000*U41*AS41,4) | AJ41: =ROUND(N41*O41,4) | AK41: IL TRM v6 vol2 | AL41: 364,368 | AM41: 2020-01-01 | AS41: 1 | AT41: Waste Heat Factor Energy | AU41: IL TRM v6 vol2 | AV41: 338 | AW41: 1 | AX41: Waste Heat Factor Demand | AY41: IL TRM v6 vol2 | AZ41: 338
A42: Business Standard | B42: LED Recessed Fixture (1 ft x 4 ft) | C42: 106.1 | D42: C&I | E42: Lighting | G42: per fixture | H42: 36.17 | I42: IL TRM v6 vol2 | J42: 371 | K42: 116.6893 | L42: Calculated Value | N42: 0.035912 | O42: 0.66 | P42: IL TRM v6 vol2 | Q42: 337-338 (portfolio weighted average) | R42: 0.0237 | S42: Calculated Value | U42: 3088 | V42: IL TRM v6 vol2 | W42: 338 | X42: 15 | Y42: IL TRM v6 vol2 | Z42: 363 | AA42: Linear style LED (watts) | AB42: 32.2 | AC42: Program Tracking Data | AE42: Standard T8 (watts) | AF42: 59 | AG42: Program Tracking Data | AI42: =ROUND((AF42-AB42)/1000*U42*AS42,4) | AJ42: =ROUND(N42*O42,4) | AK42: IL TRM v6 vol2 | AL42: 364,368 | AM42: 2020-01-01 | AS42: 1.41 | AT42: Waste Heat Factor Energy | AU42: IL TRM v6 vol2 | AV42: 337-338 (portfolio weighted average) | AW42: 1.34 | AX42: Waste Heat Factor Demand | AY42: IL TRM v6 vol2 | AZ42: 337-338 (portfolio weighted average)
A43: Business Standard | B43: LED Recessed Fixture (2 ft x 2 ft) | C43: 107.1 | D43: C&I | E43: Lighting | G43: per fixture | H43: 22.55 | I43: IL TRM v6 vol2 | J43: 371 | K43: 70.1007 | L43: Calculated Value | N43: 0.021574 | O43: 0.66 | P43: IL TRM v6 vol2 | Q43: 337-338 (portfolio weighted average) | R43: 0.0142 | S43: Calculated Value | U43: 3088 | V43: IL TRM v6 vol2 | W43: 338 | X43: 15 | Y43: IL TRM v6 vol2 | Z43: 363 | AA43: Linear style LED (watts) | AB43: 44.9 | AC43: Program Tracking Data | AE43: T8 U-tube (watts) | AF43: 61 | AG43: Program Tracking Data | AI43: =ROUND((AF43-AB43)/1000*U43*AS43,4) | AJ43: =ROUND(N43*O43,4) | AK43: IL TRM v6 vol2 | AL43: 364,368 | AM43: 2020-01-01 | AS43: 1.41 | AT43: Waste Heat Factor Energy | AU43: IL TRM v6 vol2 | AV43: 337-338 (portfolio weighted average) | AW43: 1.34 | AX43: Waste Heat Factor Demand | AY43: IL TRM v6 vol2 | AZ43: 337-338 (portfolio weighted average)
A44: Business Standard | B44: LED Recessed Fixture (2 ft x 4 ft) | C44: 108.1 | D44: C&I | E44: Lighting | G44: per fixture | H44: 55.5 | I44: IL TRM v6 vol2 | J44: 371 | K44: 149.7804 | L44: Calculated Value | N44: 0.046096 | O44: 0.66 | P44: IL TRM v6 vol2 | Q44: 337-338 (portfolio weighted average) | R44: 0.0304 | S44: Calculated Value | U44: 3088 | V44: IL TRM v6 vol2 | W44: 338 | X44: 15 | Y44: IL TRM v6 vol2 | Z44: 363 | AA44: Linear style LED (watts) | AB44: 53.6 | AC44: Program Tracking Data | AE44: Standard T8 (watts) | AF44: 88 | AG44: Program Tracking Data | AI44: =ROUND((AF44-AB44)/1000*U44*AS44,4) | AJ44: =ROUND(N44*O44,4) | AK44: IL TRM v6 vol2 | AL44: 364,368 | AM44: 2020-01-01 | AS44: 1.41 | AT44: Waste Heat Factor Energy | AU44: IL TRM v6 vol2 | AV44: 337-338 (portfolio weighted average) | AW44: 1.34 | AX44: Waste Heat Factor Demand | AY44: IL TRM v6 vol2 | AZ44: 337-338 (portfolio weighted average)
A45: Business Standard | B45: Remove 4ft Lamp from T8 or T12 system | C45: 109.3 | D45: C&I | E45: Lighting | G45: per lamp | H45: 12 | I45: IL TRM v6 vol2 | J45: 346 | K45: 134.1057 | L45: Calculated Value | N45: 0.041272 | O45: 0.66 | P45: IL TRM v6 vol2 | Q45: 337-338 (portfolio weighted average) | R45: 0.0272 | S45: Calculated Value | U45: 3088 | V45: IL TRM v6 vol2 | W45: 338 | X45: 11 | Y45: IL TRM v6 vol2 | Z45: 346 | AA45: Remove T8 | AB45: 0 | AC45: IL TRM v6 vol2 | AD45: 346 | AE45: T8 4 ft (watts) | AF45: 30.8 | AG45: IL TRM v7 vol2 | AH45: 406 | AI45: =ROUND((AF45-AB45)/1000*U45*AS45,4) | AJ45: =ROUND(N45*O45,4) | AK45: IL TRM v6 vol2 | AL45: 347348 | AM45: 2020-05-01 | AN45: 2022-12-31 | AS45: 1.41 | AT45: Waste Heat Factor Energy | AU45: IL TRM v6 vol2 | AV45: 337-338 (portfolio weighted average) | AW45: 1.34 | AX45: Waste Heat Factor Demand | AY45: IL TRM v6 vol2 | AZ45: 337-338 (portfolio weighted average)
A46: Business Standard | B46: Remove 4ft Lamp from T8 or T12 system | C46: 109.4 | D46: C&I | E46: Lighting | G46: per lamp | H46: 12 | I46: IL TRM v10 Vol2 | J46: 537 | K46: =ROUND((AF46-AB46)/1000*U46*AS46,4) -> 83.7095 | L46: Calculated Value | N46: =(AF46-AB46)/1000*AW46 -> 0.034136 | O46: 0.62 | P46: PY2 portfolio weighted average | R46: =ROUND(N46*O46,4) -> 0.0212 | S46: Calculated Value | U46: 3088 | V46: IL TRM v10 Vol2 | W46: 533 | X46: 11 | Y46: IL TRM v10 Vol2 | Z46: 537 | AA46: Remove T8 | AB46: 0 | AC46: IL TRM v10 Vol2 | AD46: 537 | AE46: T8 4 ft (watts) | AF46: 25.1 | AG46: IL TRM v10 Vol2 | AH46: 538 | AI46: =ROUND((AF46-AB46)/1000*U46*AS46,4) | AJ46: =ROUND(N46*O46,4) | AK46: IL TRM v10 Vol2 | AL46: 538539 | AM46: 2023-01-01 | AS46: 1.08 | AT46: Waste Heat Factor Energy | AU46: PY2 portfolio weighted average | AW46: 1.36 | AX46: Waste Heat Factor Demand | AY46: PY2 portfolio weighted average
A47: Business Standard | B47: Remove 8ft Lamp from T8 or T12 System | C47: 110.3 | D47: C&I | E47: Lighting | G47: per lamp | H47: 16 | I47: IL TRM v6 vol2 | J47: 346 | K47: =ROUND((AF47-AB47)/1000*U47*AS47,4) -> 243.8285 | L47: Calculated Value | N47: =(AF47-AB47)/1000*AW47 -> 0.07504 | O47: 0.66 | P47: IL TRM v6 vol2 | Q47: 337-338 (portfolio weighted average) | R47: =ROUND(N47*O47,4) -> 0.0495 | S47: Calculated Value | U47: 3088 | V47: IL TRM v6 vol2 | W47: 338 | X47: 11 | Y47: IL TRM v6 vol2 | Z47: 346 | AA47: Remove T8 | AB47: 0 | AC47: IL TRM v6 vol2 | AD47: 346 | AE47: T8 8 ft (watts) | AF47: 56 | AG47: IL TRM v7 vol2 | AH47: 406 | AI47: =ROUND((AF47-AB47)/1000*U47*AS47,4) | AJ47: =ROUND(N47*O47,4) | AK47: IL TRM v6 vol2 | AL47: 347348 | AM47: 2020-05-01 | AN47: 2022-12-31 | AS47: 1.41 | AT47: Waste Heat Factor Energy | AU47: IL TRM v6 vol2 | AV47: 337-338 (portfolio weighted average) | AW47: 1.34 | AX47: Waste Heat Factor Demand | AY47: IL TRM v6 vol2 | AZ47: 337-338 (portfolio weighted average)
A48: Business Standard | B48: Remove 8ft Lamp from T8 or T12 System | C48: 110.4 | D48: C&I | E48: Lighting | G48: per lamp | H48: 16 | I48: IL TRM v10 Vol2 | J48: 537 | K48: =ROUND((AF48-AB48)/1000*U48*AS48,4) -> 150.4443 | L48: Calculated Value | N48: =(AF48-AB48)/1000*AW48 -> 0.056287 | O48: 0.56 | P48: PY2 portfolio weighted average | R48: =ROUND(N48*O48,4) -> 0.0315 | S48: Calculated Value | U48: 3088 | V48: IL TRM v10 Vol2 | W48: 533 | X48: 11 | Y48: IL TRM v10 Vol2 | Z48: 537 | AA48: Remove T8 | AB48: 0 | AC48: IL TRM v10 Vol2vol2 | AD48: 537 | AE48: T8 8 ft (watts) | AF48: 47.3 | AG48: IL TRM v10 Vol2 | AH48: 538 | AI48: =ROUND((AF48-AB48)/1000*U48*AS48,4) | AJ48: =ROUND(N48*O48,4) | AK48: IL TRM v10 Vol2 | AL48: 347348 | AM48: 2023-01-01 | AS48: 1.03 | AT48: Waste Heat Factor Energy | AU48: PY2 portfolio weighted average | AW48: 1.19 | AX48: Waste Heat Factor Demand | AY48: PY2 portfolio weighted average
A49: Business Standard | B49: Interior Omnidirectional LED Lamp replacing 40-60W Lamp | C49: 112.4 | D49: C&I | E49: Lighting | G49: per lamp | H49: 8 | I49: IL TRM v6 vol2 | J49: 370 | K49: =ROUND((AF49-AB49)/1000*U49*AS49,4) -> 178.2996 | L49: Calculated Value | N49: =(AF49-AB49)/1000*AW49 -> 0.054873 | O49: 0.6193 | P49: IL TRM v6 vol2 | Q49: 337-338 (portfolio weighted average) | R49: =ROUND(N49*O49,4) -> 0.034 | S49: Calculated Value | U49: 3088 | V49: IL TRM v6 vol2 | W49: 338 | X49: 15 | Y49: IL TRM v6 vol2 | Z49: 363 | AA49: LED (watts) | AB49: 9.05 | AC49: Program Tracking Data | AE49: EISA tier 1 compliant Halogen (watts) | AF49: 50 | AH49: Midpoint Value | AI49: =ROUND((AF49-AB49)/1000*U49*AS49,4) | AJ49: =ROUND(N49*O49,4) | AK49: IL TRM v6 vol2 | AL49: 364,368 | AM49: 2020-01-01 | AS49: 1.41 | AT49: Waste Heat Factor Energy | AU49: IL TRM v6 vol2 | AV49: 337-338 (portfolio weighted average) | AW49: 1.34 | AX49: Waste Heat Factor Demand | AY49: IL TRM v6 vol2 | AZ49: 337-338 (portfolio weighted average)
A50: Business Standard | B50: Interior Omnidirectional LED Lamp replacing 61-100W Lamp | C50: 113.4 | D50: C&I | E50: Lighting | G50: per lamp | H50: 12 | I50: IL TRM v6 vol2 | J50: 370 | K50: =ROUND((AF50-AB50)/1000*U50*AS50,4) -> 300.4315 | L50: Calculated Value | N50: =(AF50-AB50)/1000*AW50 -> 0.09246 | O50: 0.6193 | P50: IL TRM v6 vol2 | Q50: 337-338 (portfolio weighted average) | R50: =ROUND(N50*O50,4) -> 0.0573 | S50: Calculated Value | U50: 3088 | V50: IL TRM v6 vol2 | W50: 338 | X50: 15 | Y50: IL TRM v6 vol2 | Z50: 363 | AA50: LED (watts) | AB50: 11 | AC50: Program Tracking Data | AE50: EISA tier 1 compliant Halogen (watts) | AF50: 80 | AH50: Midpoint Value | AI50: =ROUND((AF50-AB50)/1000*U50*AS50,4) | AJ50: =ROUND(N50*O50,4) | AK50: IL TRM v6 vol2 | AL50: 364,368 | AM50: 2020-01-01 | AS50: 1.41 | AT50: Waste Heat Factor Energy | AU50: IL TRM v6 vol2 | AV50: 337-338 (portfolio weighted average) | AW50: 1.34 | AX50: Waste Heat Factor Demand | AY50: IL TRM v6 vol2 | AZ50: 337-338 (portfolio weighted average)
A51: Business Standard | B51: Interior Daylighting Controls Replacing No Controls | C51: 114.4 | D51: C&I | E51: Lighting | G51: per sensor | H51: 66 | I51: IL TRM v6 vol2 | J51: 402 (portfolio weighted average) | K51: =ROUND(AB51/1000*AS51*U51*BA51,4) -> 694.9112 | L51: Calculated Value | N51: =AB51/1000*AW51*BA51 -> 0.213864 | O51: 0.66 | P51: IL TRM v6 vol2 | Q51: 337-338 (portfolio weighted average) | R51: =ROUND(AB51/1000*AW51*(O51-BE51),4) -> 0.3895 | S51: Calculated Value | U51: 3088 | V51: IL TRM v6 vol2 | W51: 338 | X51: 8 | Y51: IL TRM v6 vol2 | Z51: 402 | AA51: Photocell Occupancy Sensor (watts controlled) | AB51: 570 | AC51: Based on measure name: Wall-Mount Daylight Sensor Controlling >= 570W | AE51: No Control | AG51: IL TRM v6 vol2 | AH51: 402 | AI51: =ROUND(AB51/1000*AS51*U51*BA51,4) | AJ51: =ROUND(AB51/1000*AW51*(O51-BE51),4) | AK51: IL TRM v5 vol2 | AL51: 412413 | AM51: 2021-01-01 | AN51: 2022-12-31 | AS51: 1.41 | AT51: Waste Heat Factor Energy | AU51: IL TRM v6 vol2 | AV51: 337-338 (portfolio weighted average) | AW51: 1.34 | AX51: Waste Heat Factor Demand | AY51: IL TRM v6 vol2 | AZ51: 337-338 (portfolio weighted average) | BA51: 0.28 | BB51: ESF | BC51: IL TRM v7 vol2 | BD51: 474 | BE51: 0.15 | BF51: CF of occupancy sensor | BG51: IL TRM v7 vol2 | BH51: 475
A52: Business Standard | B52: Interior Daylighting Controls Replacing No Controls | C52: 114.5 | D52: C&I | E52: Lighting | G52: per sensor | H52: 50 | I52: IL TRM v10 Vol2 | J52: 600 | K52: =ROUND(AB52/1000*AS52*U52*BA52,4) -> 547.0577 | L52: Calculated Value | N52: =AB52/1000*AW52*BA52 -> 0.209076 | O52: 0.69 | P52: PY2 portfolio weighted average | R52: =ROUND(AB52/1000*AW52*(O52-BE52),4) -> 0.4032 | S52: Calculated Value | U52: 3088 | V52: IL TRM v10 Vol2 | W52: 533 | X52: 15 | Y52: IL TRM v10 Vol2 | Z52: 599 | AA52: Photocell Occupancy Sensor (watts controlled) | AB52: 570 | AC52: Based on measure name: Wall-Mount Daylight Sensor Controlling >= 570W | AE52: No Control | AG52: IL TRM v10 Vol2 | AH52: 599 | AI52: =ROUND(AB52/1000*AS52*U52*BA52,4) | AJ52: =ROUND(AB52/1000*AW52*(O52-BE52),4) | AK52: IL TRM v10 Vol2 | AL52: 601604 | AM52: 2023-01-01 | AS52: 1.11 | AT52: Waste Heat Factor Energy | AU52: PY2 portfolio weighted average | AW52: 1.31 | AX52: Waste Heat Factor Demand | AY52: PY2 portfolio weighted average | BA52: 0.28 | BB52: ESF | BC52: IL TRM v10 Vol2 | BD52: 603 | BE52: 0.15 | BF52: CF of occupancy sensor | BG52: IL TRM v10 vol2 | BH52: 604
A53: Business Standard | B53: Interior Occupancy or Vacancy Sensor Replacing No Controls | C53: 115.4 | D53: C&I | E53: Lighting | G53: per sensor | H53: 42 | I53: IL TRM v6 vol2 | J53: 402 | K53: =ROUND(AB53/1000*AS53*U53*BA53,4) -> 444.1162 | L53: Calculated Value | N53: =AB53/1000*AW53*BA53 -> 0.13668 | O53: 0.66 | P53: IL TRM v6 vol2 | Q53: 337-338 (portfolio weighted average) | R53: =ROUND(AB53/1000*AW53*(O53-BE53),4) -> 0.2904 | S53: Calculated Value | U53: 3088 | V53: IL TRM v6 vol2 | W53: 338 | X53: 8 | Y53: IL TRM v6 vol2 | Z53: 402 | AA53: Wall-Mount Occupancy Sensor (watts controlled) | AB53: 425 | AC53: Based on measure name: Remote or Wall-Mounted Occupancy Sensor Controlling >= 425W | AE53: No Control | AG53: IL TRM v6 vol2 | AH53: 402 | AI53: =ROUND(AB53/1000*AS53*U53*BA53,4) | AJ53: =ROUND(AB53/1000*AW53*(O53-BE53),4) | AK53: IL TRM v5 vol2 | AL53: 412413 | AM53: 2021-01-01 | AN53: 2022-12-31 | AS53: 1.41 | AT53: Waste Heat Factor Energy | AU53: IL TRM v6 vol2 | AV53: 337-338 (portfolio weighted average) | AW53: 1.34 | AX53: Waste Heat Factor Demand | AY53: IL TRM v6 vol2 | AZ53: 337-338 (portfolio weighted average) | BA53: 0.24 | BB53: ESF | BC53: IL TRM v7 vol2 | BD53: 474 | BE53: 0.15 | BF53: CF of occupancy sensor | BG53: IL TRM v7 vol2 | BH53: 475
A54: Business Standard | B54: Interior Occupancy or Vacancy Sensor Replacing No Controls | C54: 115.5 | D54: C&I | E54: Lighting | G54: per sensor | H54: 55 | I54: IL TRM v10 Vol2 | J54: 600 | K54: =ROUND(AB54/1000*AS54*U54*BA54,4) -> 389.5203 | L54: Calculated Value | N54: =AB54/1000*AW54*BA54 -> 0.13804 | O54: 0.66 | P54: PY2 portfolio weighted average | R54: =ROUND(AB54/1000*AW54*(O54-BE54),4) -> 0.2514 | S54: Calculated Value | U54: 3088 | V54: IL TRM v10 Vol2 | W54: 533 | X54: 15 | Y54: IL TRM v10 Vol2 | Z54: 599 | AA54: Wall-Mount Occupancy Sensor (watts controlled) | AB54: 425 | AC54: Based on measure name: Remote or Wall-Mounted Occupancy Sensor Controlling >= 425W | AE54: No Control | AG54: IL TRM v10 Vol2 | AH54: 599 | AI54: =ROUND(AB54/1000*AS54*U54*BA54,4) | AJ54: =ROUND(AB54/1000*AW54*(O54-BE54),4) | AK54: IL TRM v10 Vol2 | AL54: 601604 | AM54: 2023-01-01 | AS54: 1.06 | AT54: Waste Heat Factor Energy | AU54: PY2 portfolio weighted average | AW54: 1.16 | AX54: Waste Heat Factor Demand | AY54: PY2 portfolio weighted average | BA54: 0.28 | BB54: ESF | BC54: IL TRM v10 Vol2 | BD54: 603 | BE54: 0.15 | BF54: CF of occupancy sensor | BG54: IL TRM v10 vol2 | BH54: 604
A55: Business Standard | B55: High Volume Low Speed Fans (20ft Diameter) | C55: 116.1 | D55: C&I | E55: Pumps/Fans | G55: per fan | H55: 4150 | I55: IL TRM v6 vol2 | J55: 9 | K55: =ROUND(6577,4) -> 6577 | L55: IL TRM v6 vol2 | M55: 9 | R55: =ROUND(2.4,4) -> 2.4 | S55: IL TRM v6 vol2 | T55: 10 | X55: 10 | Y55: IL TRM v6 vol2 | Z55: 9 | AI55: =ROUND(6577,4) | AJ55: =ROUND(2.4,4) | AK55: IL TRM v6 vol2 | AL55: 9,10 | AM55: 2020-01-01
A56: Business Standard | B56: High Volume Low Speed Fans (22ft Diameter) | C56: 117.1 | D56: C&I | E56: Pumps/Fans | G56: per fan | H56: 4180 | I56: IL TRM v6 vol2 | J56: 9 | K56: =ROUND(8543,4) -> 8543 | L56: IL TRM v6 vol2 | M56: 10 | R56: =ROUND(3.1,4) -> 3.1 | S56: IL TRM v6 vol2 | T56: 10 | X56: 10 | Y56: IL TRM v6 vol2 | Z56: 9 | AI56: =ROUND(8543,4) | AJ56: =ROUND(3.1,4) | AK56: IL TRM v6 vol2 | AL56: 9,10 | AM56: 2020-01-01
A57: Business Standard | B57: High Volume Low Speed Fans (24ft Diameter) | C57: 118.1 | D57: C&I | E57: Pumps/Fans | G57: per fan | H57: 4225 | I57: IL TRM v6 vol2 | J57: 9 | K57: =ROUND(10018,4) -> 10018 | L57: IL TRM v6 vol2 | M57: 10 | R57: =ROUND(3.7,4) -> 3.7 | S57: IL TRM v6 vol2 | T57: 10 | X57: 10 | Y57: IL TRM v6 vol2 | Z57: 9 | AI57: =ROUND(10018,4) | AJ57: =ROUND(3.7,4) | AK57: IL TRM v6 vol2 | AL57: 9,10 | AM57: 2020-01-01
A58: Business Standard | B58: Compressed Air - Engineered Nozzle 1/4" | C58: 119.1 | D58: C&I | E58: Pumps/Fans | G58: per unit | H58: 57 | I58: IL TRM v6 vol2 | J58: 472 | K58: =ROUND(1086.638,4) -> 1086.638 | L58: Calculated Value | R58: =ROUND(0.511,4) -> 0.511 | S58: Calculated Value | X58: 15 | Y58: IL TRM v6 vol2 | Z58: 472 | AI58: =ROUND(1086.638,4) | AJ58: =ROUND(0.511,4) | AK58: IL TRM v6 vol2 | AL58: 473474 | AM58: 2020-01-01
A59: Business Standard | B59: Compressed Air - Engineered Nozzle 1/8" | C59: 120.2 | D59: C&I | E59: Pumps/Fans | G59: per unit | H59: 42 | I59: IL TRM v6 vol2 | J59: 472 | K59: =ROUND(AS59*AB59*AW59*BA59*BE59,4) -> 272.688 | L59: IL TRM v7 vol2 | M59: 550 | O59: 0.95 | P59: IL TRM v7 vol2 | Q59: 552 | R59: =ROUND(K59/BE59*O59,4) -> 0.0656 | S59: IL TRM v7 vol2 | T59: 552 | X59: 15 | Y59: IL TRM v6 vol2 | Z59: 472 | AA59: SCFM%Reduced | AB59: 0.5 | AC59: IL TRM v7 vol2 | AD59: 551 | AI59: =ROUND(AS59*AB59*AW59*BA59*BE59,4) | AJ59: =ROUND(K59/BE59*O59,4) | AK59: IL TRM v6 vol2 | AL59: 473474 | AM59: 2021-01-01 | AS59: 21 | AT59: SCFM | AU59: IL TRM v7 vol2 | AV59: 551 | AW59: =AVERAGE(0.18,0.14,0.15,0.06,0.06,0.15,0.18) -> 0.1314285714 | AX59: kW/CFM | AY59: IL TRM v7 vol2 | AZ59: 551 | BA59: 0.05 | BB59: %Use | BC59: IL TRM v7 vol2 | BD59: 551 | BE59: 3952 | BF59: Hours (two shifts) | BG59: IL TRM v7 vol2 | BH59: 551
A60: Business Standard | B60: Compressed Air - No Loss Condensate Drain/Valve | C60: 121.3 | D60: C&I | E60: Pumps/Fans | G60: per unit | H60: 700 | I60: IL TRM v6 vol2 | J60: 470 | K60: =ROUND(AS60*AW60*U60,4) -> 1969.656 | L60: Calculated Value | N60: =ROUND(K60/U60,4) -> 0.321 | O60: 0.95 | P60: IL TRM v6 Vol2 | Q60: 470 | R60: =ROUND(K60/U60*O60,4) -> 0.305 | S60: Calculated Value | U60: 6136 | V60: IL TRM v6 Vol2 | W60: 471 | X60: 10 | Y60: IL TRM v6 Vol2 | Z60: 470 | AI60: =ROUND(AS60*AW60*U60,4) | AJ60: =ROUND(K60/U60*O60,4) | AK60: IL TRM v6 Vol2 | AL60: 470, 471 | AM60: 2020-05-01 | AS60: 3 | AT60: CFM Reduced | AU60: IL TRM v6 Vol2 | AV60: 470 | AW60: 0.107 | AX60: kW/CFM | AY60: IL TRM v6 Vol2 | AZ60: 471
A61: Business Standard | B61: Variable Speed Drive Compressor - 1 shift weekdays | C61: 122.1 | D61: C&I | E61: Pumps/Fans | G61: per HP | H61: 140.37 | I61: IL TRM v6 vol2 | J61: 466 | K61: =ROUND(BA61*(AS61-AW61)*U61,4) -> 329.004 | L61: Calculated Value | N61: =ROUND(K61/U61,4) -> 0.1665 | O61: 0.95 | P61: IL TRM v6 Vol2 | Q61: 464 | R61: =ROUND(K61/U61*O61,4) -> 0.1582 | S61: Calculated Value | U61: 1976 | V61: IL TRM v6 Vol2 | W61: 465 | X61: 10 | Y61: IL TRM v6 vol2 | Z61: 466 | AI61: =ROUND(BA61*(AS61-AW61)*U61,4) | AJ61: =ROUND(K61/U61*O61,4) | AK61: IL TRM v6 vol2 | AL61: 465, 466 | AM61: 2020-01-01 | AS61: 0.89 | AT61: Baseline Compressor Factor | AU61: IL TRM v6 Vol2 | AV61: 465 | AW61: 0.705 | AX61: Efficient Compressor Factor | AY61: IL TRM v6 Vol2 | AZ61: 465 | BA61: 0.9 | BB61: Nominal HP to full load kW conversion factor | BC61: IL TRM v6 Vol2 | BD61: 465
A62: Business Standard | B62: Variable Speed Drive Compressor - 2 shift weekdays | C62: 123.1 | D62: C&I | E62: Pumps/Fans | G62: per HP | H62: 140.37 | I62: IL TRM v6 vol2 | J62: 466 | K62: =ROUND(BA62*(AS62-AW62)*U62,4) -> 658.008 | L62: Calculated Value | N62: =ROUND(K62/U62,4) -> 0.1665 | O62: 0.95 | P62: IL TRM v6 Vol2 | Q62: 464 | R62: =ROUND(K62/U62*O62,4) -> 0.1582 | S62: Calculated Value | U62: 3952 | V62: IL TRM v6 Vol2 | W62: 465 | X62: 10 | Y62: IL TRM v6 vol2 | Z62: 466 | AI62: =ROUND(BA62*(AS62-AW62)*U62,4) | AJ62: =ROUND(K62/U62*O62,4) | AK62: IL TRM v6 vol2 | AL62: 465, 466 | AM62: 2020-01-01 | AN62: 2022-12-31 | AS62: 0.89 | AT62: Baseline Compressor Factor | AU62: IL TRM v6 Vol2 | AV62: 465 | AW62: 0.705 | AX62: Efficient Compressor Factor | AY62: IL TRM v6 Vol2 | AZ62: 465 | BA62: 0.9 | BB62: Nominal HP to full load kW conversion factor | BC62: IL TRM v6 Vol2 | BD62: 465
A63: Business Standard | B63: Variable Speed Drive Compressor - 2 shift weekdays | C63: 123.2 | D63: C&I | E63: Pumps/Fans | G63: per HP | H63: =((((127*50)+1446)*1.24)/50) -> 193.3408 | I63: IL TRM v10 Vol2(weighted by PY2 tracking data) | J63: 681 | K63: =ROUND(BA63*(AS63-AW63)*U63,4) -> 611.7696 | L63: Calculated Value | N63: =ROUND(K63/U63,4) -> 0.1548 | O63: 0.75 | P63: Indiana TRM v1 | Q63: 171-172 (portfolio weighted average) | R63: =ROUND(K63/U63*O63,4) -> 0.1161 | S63: Calculated Value | U63: 3952 | V63: Indiana TRM v1 | W63: 682 | X63: 13 | Y63: IL TRM v10 Vol2 | Z63: 681 | AI63: =ROUND(BA63*(AS63-AW63)*U63,4) | AJ63: =ROUND(K63/U63*O63,4) | AK63: IL TRM v10 Vol2 | AL63: 682683 | AM63: 2023-01-01 | AS63: =AVERAGE(0.836,0.887,0.811,0.786) -> 0.83 | AT63: Baseline Compressor Factor | AU63: IL TRM v10 Vol2 | AV63: 683 | AW63: 0.658 | AX63: Efficient Compressor Factor | AY63: IL TRM v10 Vol2 | AZ63: 683 | BA63: 0.9 | BB63: Nominal HP to full load kW conversion factor | BC63: IL TRM v10 Vol2 | BD63: 682
A64: Business Standard | B64: Variable Speed Drive Compressor - 3 shift weekdays | C64: 124.1 | D64: C&I | E64: Pumps/Fans | G64: per HP | H64: 140.37 | I64: IL TRM v6 vol2 | J64: 466 | K64: =ROUND(BA64*(AS64-AW64)*U64,4) -> 987.012 | L64: Calculated Value | N64: =ROUND(K64/U64,4) -> 0.1665 | O64: 0.95 | P64: IL TRM v6 Vol2 | Q64: 464 | R64: =ROUND(K64/U64*O64,4) -> 0.1582 | S64: Calculated Value | U64: 5928 | V64: IL TRM v6 Vol2 | W64: 465 | X64: 10 | Y64: IL TRM v6 vol2 | Z64: 466 | AI64: =ROUND(BA64*(AS64-AW64)*U64,4) | AJ64: =ROUND(K64/U64*O64,4) | AK64: IL TRM v6 vol2 | AL64: 465, 466 | AM64: 2020-01-01 | AS64: 0.89 | AT64: Baseline Compressor Factor | AU64: IL TRM v6 Vol2 | AV64: 465 | AW64: 0.705 | AX64: Efficient Compressor Factor | AY64: IL TRM v6 Vol2 | AZ64: 465 | BA64: 0.9 | BB64: Nominal HP to full load kW conversion factor | BC64: IL TRM v6 Vol2 | BD64: 465
A65: Business Standard | B65: Variable Speed Drive Compressor - 3 shift weekdays plus weekends | C65: 125.1 | D65: C&I | E65: Pumps/Fans | G65: per HP | H65: 140.37 | I65: IL TRM v6 vol2 | J65: 466 | K65: =ROUND(BA65*(AS65-AW65)*U65,4) -> 1385.28 | L65: Calculated Value | N65: =ROUND(K65/U65,4) -> 0.1665 | O65: 0.95 | P65: IL TRM v6 Vol2 | Q65: 464 | R65: =ROUND(K65/U65*O65,4) -> 0.1582 | S65: Calculated Value | U65: 8320 | V65: IL TRM v6 Vol2 | W65: 465 | X65: 10 | Y65: IL TRM v6 vol2 | Z65: 466 | AI65: =ROUND(BA65*(AS65-AW65)*U65,4) | AJ65: =ROUND(K65/U65*O65,4) | AK65: IL TRM v6 vol2 | AL65: 465, 466 | AM65: 2020-01-01 | AS65: 0.89 | AT65: Baseline Compressor Factor | AU65: IL TRM v6 Vol2 | AV65: 465 | AW65: 0.705 | AX65: Efficient Compressor Factor | AY65: IL TRM v6 Vol2 | AZ65: 465 | BA65: 0.9 | BB65: Nominal HP to full load kW conversion factor | BC65: IL TRM v6 Vol2 | BD65: 465
A66: Business Standard | B66: Advanced Rooftop Unit Controls, 2000-4000 annual hours occupancy | C66: 137.2 | D66: C&I | E66: HVAC | G66: Per Unit | H66: 3412.06 | I66: IL TRM v7 vol2 | J66: 351 | K66: =ROUND(AS66*BA66,4) -> 1062.2 | L66: Calculated Value | O66: 0.913 | P66: IL TRM v7 vol2 | Q66: 351 | R66: =ROUND(AW66*BA66,4) -> 0.366 | S66: Calculated Value | X66: 10 | Y66: IL TRM v7 vol2 | Z66: 350 | AA66: RTU DCV controls with VFD and 2-speed fan control | AC66: IL TRM v7 vol2 | AD66: 354 | AE66: No RTU DCV controls | AG66: IL TRM v7 vol2 | AH66: 354 | AI66: =ROUND(AS66*BA66,4) | AJ66: =ROUND(AW66*BA66,4) | AK66: IL TRM v7 vol3 | AL66: 353, 355 | AM66: 2020-05-01 | AS66: 1062.2 | AT66: Normalized Electric Energy Savings (kWh/ton) - Springfield - Office Low Rise (update this value as needed per building type in Table 4) | AU66: IL TRM v7 vol2 | AV66: 354 | AW66: 0.366 | AX66: Normalized peak electric demand savings (kW/ton) - Springfield Office Low-Rise (update this value as needed per building type in Table 4) | AY66: IL TRM v7 vol2 | AZ66: 355 | BA66: 1 | BB66: Cooling equipment tonnage (update this value as needed per equipment specifications)
A67: Business Standard | B67: Advanced Rooftop Unit Controls, > 4000 annual hours occupancy | C67: 138.2 | D67: C&I | E67: HVAC | G67: per unit | H67: 3412.06 | I67: IL TRM v7 vol2 | J67: 351 | K67: =ROUND(AS67*BA67,4) -> 649.7475 | L67: Calculated Value | O67: 0.913 | P67: IL TRM v7 vol2 | Q67: 351 | R67: =ROUND(AW67*BA67,4) -> 0.1862 | S67: Calculated Value | X67: 10 | Y67: IL TRM v7 vol2 | Z67: 350 | AA67: RTU DCV controls with VFD and 2-speed fan control | AC67: IL TRM v7 vol2 | AD67: 354 | AE67: No RTU DCV controls | AG67: IL TRM v7 vol2 | AH67: 354 | AI67: =ROUND(AS67*BA67,4) | AJ67: =ROUND(AW67*BA67,4) | AK67: IL TRM v7 vol3 | AL67: 353, 355 | AM67: 2020-05-01 | AS67: 649.7474993 | AT67: Normalized Electric Energy Savings (kWh/ton) - multi-variable regression based on the CDD and HDD to extrapolate savings values for the KC climate | AU67: IL TRM v7 vol2 | AV67: 354 | AW67: 0.1862173914 | AX67: Normalized peak electric demand savings (kW/ton) - multi-variable regression based on the CDD and HDD to extrapolate savings values for the KC climate | AY67: IL TRM v7 vol2 | AZ67: 355 | BA67: 1 | BB67: Cooling equipment tonnage (update this value as needed per equipment specifications)
A68: Business Standard | B68: Variable Speed ECM Pump, <100 Watts Max Input, Domestic Hot Water Recirculation | C68: 139.1 | D68: C&I | E68: Pumps/Fans | G68: per pump | H68: 690.79 | I68: WI TRM 2018 | J68: 937 | K68: =ROUND((AS68/1000*(BA68*BI68+BE68*BM68) - (AW68/1000*BE68)),4) -> 1312.0947 | L68: Calculated Value | O68: 1 | P68: WI TRM 2018 | Q68: 221 | R68: =ROUND((AS68-AW68)/1000*O68,4) -> 0.228 | S68: Calculated Value | X68: 15 | Y68: WI TRM 2018 | Z68: 218 | AI68: =ROUND((AS68/1000*(BA68*BI68+BE68*BM68) - (AW68/1000*BE68)),4) | AJ68: =ROUND((AS68-AW68)/1000*O68,4) | AK68: WI TRM 2018 | AL68: 220, 221 | AM68: 2020-01-01 | AS68: 278 | AT68: Watts Base | AU68: WI TRM 2018 | AV68: 220 | AW68: 50 | AX68: Watts EE | AY68: WI TRM 2018 | AZ68: 220 | BA68: 8760 | BB68: HOU uncontrolled | BC68: WI TRM 2018 | BD68: 221 | BE68: 2190 | BF68: HOU controlled | BG68: WI TRM 2018 | BH68: 221 | BI68: 0.445 | BJ68: Constant | BK68: WI TRM 2018 | BL68: 221 | BM68: 0.555 | BN68: Constant | BO68: WI TRM 2018 | BP68: 221
A69: Business Standard | B69: Variable Speed ECM Pump, 100 - 500 Watts Max Input, Domestic Hot Water Recirculation | C69: 140.1 | D69: C&I | E69: Pumps/Fans | G69: per pump | H69: 1324.75 | I69: WI TRM 2018 | J69: 937 | K69: =ROUND((AS69/1000*(BA69*BI69+BE69*BM69) - (AW69/1000*BE69)),4) -> 6555.3599 | L69: Calculated Value | O69: 1 | P69: WI TRM 2018 | Q69: 221 | R69: =ROUND((AS69-AW69)/1000*O69,4) -> 1.139 | S69: Calculated Value | X69: 15 | Y69: WI TRM 2018 | Z69: 218 | AI69: =ROUND((AS69/1000*(BA69*BI69+BE69*BM69) - (AW69/1000*BE69)),4) | AJ69: =ROUND((AS69-AW69)/1000*O69,4) | AK69: WI TRM 2018 | AL69: 220, 221 | AM69: 2020-01-01 | AS69: 1389 | AT69: Watts Base | AU69: WI TRM 2018 | AV69: 220 | AW69: 250 | AX69: Watts EE | AY69: WI TRM 2018 | AZ69: 220 | BA69: 8760 | BB69: HOU uncontrolled | BC69: WI TRM 2018 | BD69: 221 | BE69: 2190 | BF69: HOU controlled | BG69: WI TRM 2018 | BH69: 221 | BI69: 0.445 | BJ69: Constant | BK69: WI TRM 2018 | BL69: 221 | BM69: 0.555 | BN69: Constant | BO69: WI TRM 2018 | BP69: 221
A70: Business Standard | B70: Variable Speed ECM Pump, <100 Watts Max Input, Heating Water Circulation | C70: 142.1 | D70: C&I | E70: Pumps/Fans | G70: per pump | H70: 690.79 | I70: WI TRM 2018 | J70: 222 | K70: =ROUND(359.03,4) -> 359.03 | L70: Calculated Value | R70: =ROUND(0,4) -> 0 | S70: Calculated Value | X70: 15 | Y70: WI TRM 2018 | Z70: 218 | AI70: =ROUND(359.03,4) | AJ70: =ROUND(0,4) | AK70: WI TRM 2018 | AL70: 222 | AM70: 2020-01-01
A71: Business Standard | B71: Variable Speed ECM Pump, 100 - 500 Watts Max Input, Heating Water Circulation | C71: 143.1 | D71: C&I | E71: Pumps/Fans | G71: per pump | H71: 1324.75 | I71: WI TRM 2018 | J71: 222 | K71: =ROUND(1793.58,4) -> 1793.58 | L71: Calculated Value | R71: =ROUND(0,4) -> 0 | S71: Calculated Value | X71: 15 | Y71: WI TRM 2018 | Z71: 218 | AI71: =ROUND(1793.58,4) | AJ71: =ROUND(0,4) | AK71: WI TRM 2018 | AL71: 222 | AM71: 2020-01-01
A72: Business Standard | B72: Variable Speed ECM Pump, >500 Watts Max Input, Heating Water Circulation | C72: 144.1 | D72: C&I | E72: Pumps/Fans | G72: per pump | H72: 1844.58 | I72: WI TRM 2018 | J72: 222 | K72: =ROUND(7174.33,4) -> 7174.33 | L72: Calculated Value | R72: =ROUND(0,4) -> 0 | S72: Calculated Value | X72: 15 | Y72: WI TRM 2018 | Z72: 218 | AI72: =ROUND(7174.33,4) | AJ72: =ROUND(0,4) | AK72: WI TRM 2018 | AL72: 222 | AM72: 2020-01-01
A73: Business Standard | B73: Parking Garage 4ft 3 Lamp T5/T5HO or T8 replacing > 175W Fixture | C73: 146.2 | D73: C&I | E73: Lighting | F73: Annual Operating Hours, Measure Life and CF source: IL TRM | G73: per fixture | H73: 136 | I73: IL TRM v6 vol2 | J73: T8: 356,357 T5:413,414 | K73: =ROUND((AF73-AB73)/1000*U73*AS73,4) -> 902.898 | L73: Calculated Value | N73: =(AF73-AB73)/1000*AW73 -> 0.103 | O73: 1 | P73: IL TRM v6 vol2 | Q73: 337 | R73: =ROUND(N73*O73,4) -> 0.103 | S73: Calculated Value | U73: 8766 | V73: IL TRM v6 vol2 | W73: 337 | X73: 6 | Y73: IL TRM v6 vol2 (calculated value based on lifetime hours) | Z73: 415-416 | AA73: 4-ft 3L to 4L 4' T5, T5HO or T8 | AB73: 155 | AC73: Program Tracking Data | AE73: 200W - 250W HID Fixture | AF73: 258 | AG73: IL TRM v6 vol2 | AH73: 413-414 (portfolio weighted average) | AI73: =ROUND((AF73-AB73)/1000*U73*AS73,4) | AJ73: =ROUND(N73*O73,4) | AK73: IL TRM v6 vol2 | AL73: T8:353,354 T5:411,412 | AM73: 2020-01-01 | AS73: 1 | AT73: Waste Heat Factor Energy | AU73: IL TRM v6 vol2 | AV73: 338 | AW73: 1 | AX73: Waste Heat Factor_Demand | AY73: IL TRM v6 vol2 | AZ73: 338
A74: Business Standard | B74: Parking Garage 4ft 2 Lamp T5/T5HO or T8 replacing 101W-175W Fixture | C74: 147.3 | D74: C&I | E74: Lighting | F74: Annual Operating Hours, Measure Life and CF source: IL TRM | G74: per fixture | H74: 105 | I74: IL TRM v6 vol2 | J74: T8: 356,357 T5:413,414 | K74: =ROUND((AF74-AB74)/1000*U74*AS74,4) -> 578.556 | L74: Calculated Value | N74: =(AF74-AB74)/1000*AW74 -> 0.066 | O74: 1 | P74: IL TRM v6 vol2 | Q74: 337 | R74: =ROUND(N74*O74,4) -> 0.066 | S74: Calculated Value | U74: 8766 | V74: IL TRM v6 vol2 | W74: 337 | X74: 6 | Y74: IL TRM v6 vol2 (calculated value based on lifetime hours) | Z74: 415-416 | AA74: 4-ft 2L to 3L 4' T5, T5HO or T8 | AB74: 84 | AC74: Program Tracking Data | AE74: 125W - 175W HID Fixture | AF74: 150 | AH74: Midpoint Value | AI74: =ROUND((AF74-AB74)/1000*U74*AS74,4) | AJ74: =ROUND(N74*O74,4) | AK74: IL TRM v6 vol2 | AL74: T8:353,354 T5:411,412 | AM74: 2020-01-01 | AS74: 1 | AT74: Waste Heat Factor Energy | AU74: IL TRM v6 vol2 | AV74: 338 | AW74: 1 | AX74: Waste Heat Factor_Demand | AY74: IL TRM v6 vol2 | AZ74: 338
A75: Business Standard | B75: Parking Garage 4ft 1 Lamp T5/T5HO or T8 replacing <= 100W Fixture | C75: 148.2 | D75: C&I | E75: Lighting | F75: Annual Operating Hours, Measure Life and CF source: IL TRM | G75: per fixture | H75: 74 | I75: IL TRM v6 vol2 | J75: T8: 356,357 T5:413,414 | K75: =ROUND((AF75-AB75)/1000*U75*AS75,4) -> 613.62 | L75: Calculated Value | N75: =(AF75-AB75)/1000*AW75 -> 0.07 | O75: 1 | P75: IL TRM v6 vol2 | Q75: 337 | R75: =ROUND(N75*O75,4) -> 0.07 | S75: Calculated Value | U75: 8766 | V75: IL TRM v6 vol2 | W75: 337 | X75: 6 | Y75: IL TRM v6 vol2 (calculated value based on lifetime hours) | Z75: 415-416 | AA75: 4-ft 1L to 2L 4' T5, T5HO or T8 | AB75: 54 | AC75: Program Tracking Data | AE75: ≤ 100 W HID Fixture | AF75: 124 | AG75: Program tracking data | AI75: =ROUND((AF75-AB75)/1000*U75*AS75,4) | AJ75: =ROUND(N75*O75,4) | AK75: IL TRM v6 vol2 | AL75: T8:353,354 T5:411,412 | AM75: 2020-01-01 | AS75: 1 | AT75: Waste Heat Factor Energy | AU75: IL TRM v6 vol2 | AV75: 338 | AW75: 1 | AX75: Waste Heat Factor_Demand | AY75: IL TRM v6 vol2 | AZ75: 338
A76: Business Standard | B76: Interior LED Linear Lamp Replacing 4ft T8, T12, or T5/T5HO Lamp | C76: 166.4 | D76: C&I | E76: Lighting | F76: Annual Operating Hours: Weighted Average IN TRM, Measure Life: IL TRM, CF source: Weighted Average IN TRM | G76: per lamp | H76: 24 | I76: IL TRM v5 vol2 | J76: 378 | K76: =ROUND((AF76-AB76)/1000*U76*AS76,4) -> 70.6596 | L76: Calculated Value | N76: =(AF76-AB76)/1000*AW76 -> 0.020724 | O76: 0.67 | P76: IL TRM v9 Unknown Value (aligns with portfolio weighted average of Evergy Logger Verified CF) | Q76: 471 | R76: =ROUND(N76*O76,4) -> 0.0139 | S76: Calculated Value | U76: 4129 | V76: Evergy Logger Verified HOU weighted by verified program savings | X76: 11 | Y76: IL TRM v6 vol2 (calculated value based on lifetime hours) | Z76: 372-374 | AA76: 4-ft LED Linear Replacement Lamps | AB76: 13.3 | AC76: Program Tracking Data | AE76: 32W 4-ft T8 with Electronic NBF Ballast | AF76: 29 | AG76: IL TRM v6 vol2 (Blend of T8, T12, T5 lamp baseline according to measure name) | AH76: 356-358 | AI76: =ROUND((AF76-AB76)/1000*U76*AS76,4) | AJ76: =ROUND(N76*O76,4) | AK76: IL TRM v5 vol2 | AL76: 370375 | AM76: 2022-01-01 | AN76: 2022-12-31 | AS76: 1.09 | AT76: Waste Heat Factor Energy | AU76: IL TRM v8 building specific values weighted by Evergy verified program savings | AV76: 430-432 (portfolio weighted average) | AW76: 1.32 | AX76: Waste Heat Factor_Demand | AY76: IL TRM v8 building specific values weighted by Evergy verified program savings | AZ76: 430-432 (portfolio weighted average)
A77: Business Standard | B77: Interior LED Linear Lamp Replacing 4ft T8, T12, or T5/T5HO Lamp | C77: 166.5 | D77: C&I | E77: Lighting | F77: Annual Operating Hours: Weighted Average IN TRM, Measure Life: IL TRM, CF source: Weighted Average IN TRM | G77: per lamp | H77: =AVERAGE(15,13) -> 14 | I77: IL TRM v10 Vol2 | J77: 564 | K77: =ROUND((AF77-AB77)/1000*U77*AS77,4) -> 66.468 | L77: Calculated Value | N77: =(AF77-AB77)/1000*AW77 -> 0.02545407105 | O77: 0.68 | P77: PY2 portfolio weighted average | R77: =ROUND(N77*O77,4) -> 0.0173 | S77: Calculated Value | U77: 3088 | V77: IL TRM v10 Vol2 | W77: 533 | X77: =50000/U77 -> 16.19170984 | Y77: IL TRM v10 Vol2 (calculated value based on lifetime hours) | Z77: 566 | AA77: 4-ft LED Linear Replacement Lamps | AB77: 14 | AC77: PY2 portfolio weighted average | AE77: 32W 4-ft T8 with Electronic NBF Ballast | AF77: 33.72657787 | AG77: IL TRM v10 Vol2 (Blend of T8, T12, T5 lamp baseline according to measure name) | AH77: 564 | AI77: =ROUND((AF77-AB77)/1000*U77*AS77,4) | AJ77: =ROUND(N77*O77,4) | AK77: IL TRM v10 Vol2 | AL77: 556, 561 | AM77: 2023-01-01 | AS77: 1.091147872 | AT77: Waste Heat Factor Energy | AU77: PY2 portfolio weighted average | AW77: 1.290343982 | AX77: Waste Heat Factor_Demand | AY77: PY2 portfolio weighted average
A78: Business Standard | B78: Interior LED Linear Lamp Replacing 2ft T8, T12, or T5/T5HO Lamp | C78: 167.3 | D78: C&I | E78: Lighting | F78: Annual Operating Hours: Weighted Average IN TRM, Measure Life: IL TRM, CF source: Weighted Average IN TRM | G78: per lamp | H78: 13 | I78: IL TRM v5 vol2 | J78: 378 | K78: =ROUND((AF78-AB78)/1000*U78*AS78,4) -> 31.9543 | L78: Calculated Value | N78: =(AF78-AB78)/1000*AW78 -> 0.009372 | O78: 0.67 | P78: IL TRM v9 Unknown Value (aligns with portfolio weighted average of Evergy Logger Verified CF) | Q78: 471 | R78: =ROUND(N78*O78,4) -> 0.0063 | S78: Calculated Value | U78: 4129 | V78: Evergy Logger Verified HOU weighted by verified program savings | X78: 11 | Y78: IL TRM v6 vol2 (calculated value based on lifetime hours) | Z78: 372-374 | AA78: 2-ft LED Linear Replacement Lamps | AB78: 9.9 | AC78: Program Tracking Data | AE78: 17W 2-ft T8 with Electronic NBF Ballast | AF78: 17 | AG78: IL TRM v6 vol2 | AH78: 370 (portfolio weighted average) | AI78: =cellformula(K78) -> =ROUND((AF78-AB78)/1000*U78*AS78,4) | AJ78: =cellformula(R78) -> =ROUND(N78*O78,4) | AK78: IL TRM v5 vol2 | AL78: 370375 | AM78: 2022-01-01 | AN78: 2022-12-31 | AS78: 1.09 | AT78: Waste Heat Factor Energy | AU78: IL TRM v8 building specific values weighted by Evergy verified program savings | AV78: 430-432 (portfolio weighted average) | AW78: 1.32 | AX78: Waste Heat Factor_Demand | AY78: IL TRM v8 building specific values weighted by Evergy verified program savings | AZ78: 430-432 (portfolio weighted average)
A79: Business Standard | B79: Interior LED Linear Lamp Replacing 2ft T8, T12, or T5/T5HO Lamp | C79: 167.4 | D79: C&I | E79: Lighting | F79: Annual Operating Hours: Weighted Average IN TRM, Measure Life: IL TRM, CF source: Weighted Average IN TRM | G79: per lamp | H79: 13 | I79: IL TRM v10 Vol2 | J79: 564 | K79: =ROUND((AF79-AB79)/1000*U79*AS79,4) -> 28.2326 | L79: Calculated Value | N79: =(AF79-AB79)/1000*AW79 -> 0.01077828924 | O79: 0.69 | P79: PY2 portfolio weighted average | R79: =ROUND(N79*O79,4) -> 0.0074 | S79: Calculated Value | U79: 3088 | V79: IL TRM v10 Vol2 | W79: 533 | X79: =50000/U79 -> 16.19170984 | Y79: IL TRM v10 Vol2 (calculated value based on lifetime hours) | Z79: 566 | AA79: 2-ft LED Linear Replacement Lamps | AB79: 10.2 | AC79: PY2 portfolio weighted average | AE79: 17W 2-ft T8 with Electronic NBF Ballast | AF79: 18.4688388 | AG79: IL TRM v10 Vol2 (portfolio weighted average) | AH79: 564 | AI79: =ROUND((AF79-AB79)/1000*U79*AS79,4) | AJ79: =ROUND(N79*O79,4) | AK79: IL TRM v10 Vol2 | AL79: 556, 561 | AM79: 2023-01-01 | AS79: 1.105680468 | AT79: Waste Heat Factor Energy | AU79: PY2 portfolio weighted average | AW79: 1.303482811 | AX79: Waste Heat Factor_Demand | AY79: PY2 portfolio weighted average
A80: Business Standard | B80: LED Refrig Case Lights w/Doors 4ft 5ft or 6ft repl Fluor Refrig Case Lights w/Doors 4ft 5ft or 6ft | C80: 174.5 | D80: C&I | E80: Lighting | F80: Annual Operating Hours source, Measure Life and CF source: IL TRM | G80: per door | H80: 230 | I80: Program Tracking Data | K80: =ROUND((AF80-AB80)/1000*U80*AS80,4) -> 468.9089 | L80: Calculated Value | N80: =(AF80-AB80)/1000*O80*AW80 -> 0.0808185 | O80: 1 | P80: IL TRM v9 vol2 | Q80: 471 | R80: =ROUND(N80*O80,4) -> 0.0808 | S80: Calculated Value | U80: 5802 | V80: IL TRM v9 vol2 | W80: 471 | X80: 8 | Y80: IL TRM v6 vol2 (calculated value based on lifetime hours) | Z80: 372-374 | AA80: LED Refrigerated (Medium Temp) Case Light Fixtures (4, 5, and 6-foot) | AB80: 22.1 | AC80: Program Tracking Data | AE80: Linear Fluorescent T8 Fixtures | AF80: 84.75 | AG80: Mid Atlantic TRM v9 | AH80: 388 (average between T8 and T12HO) | AI80: =ROUND((AF80-AB80)/1000*U80*AS80,4) | AJ80: =ROUND(N80*O80,4) | AK80: IL TRM v6 vol2 | AL80: 364368 | AM80: 2022-01-01 | AN80: 2022-12-31 | AS80: 1.29 | AT80: Waste Heat Factor Energy | AU80: IL TRM V9 vol 2 | AV80: 471 | AW80: 1.29 | AX80: Waste Heat Factor_Demand | AY80: IL TRM V9 vol 2 | AZ80: 471
A81: Business Standard | B81: LED Refrig Case Lights w/Doors 4ft 5ft or 6ft repl Fluor Refrig Case Lights w/Doors 4ft 5ft or 6ft | C81: 174.6 | D81: C&I | E81: Lighting | F81: Annual Operating Hours source, Measure Life and CF source: IL TRM | G81: per door | H81: 230 | I81: PY1 Tracking data | K81: =ROUND((AF81-AB81)/1000*U81*AS81,4) -> 479.8138 | L81: Calculated Value | N81: =(AF81-AB81)/1000*O81*AW81 -> 0.0808185 | O81: 1 | P81: IL TRM v10 Vol2 | Q81: 533 | R81: =ROUND(N81*O81,4) -> 0.0808 | S81: Calculated Value | U81: 5802 | V81: IL TRM v10 Vol2 | W81: 533 | X81: =50000/U81 -> 8.617718028 | Y81: IL TRM v10 Vol2 (calculated value based on lifetime hours) | Z81: 566 | AA81: LED Refrigerated (Medium Temp) Case Light Fixtures (4, 5, and 6-foot) | AB81: 22.1 | AC81: PY1 Tracking Data | AE81: Linear Fluorescent T8 Fixtures | AF81: =5*AVERAGE(15.2,18.7) -> 84.75 | AG81: Mid Atlantic TRM v10 | AH81: 269-270 (average between T8 and T12HO) | AI81: =ROUND((AF81-AB81)/1000*U81*AS81,4) | AJ81: =ROUND(N81*O81,4) | AK81: IL TRM v10 Vol2 | AL81: 556561 | AM81: 2023-01-01 | AS81: 1.32 | AT81: Waste Heat Factor Energy | AU81: PY2 portfolio weighted average | AW81: 1.29 | AX81: Waste Heat Factor_Demand | AY81: PY2 portfolio weighted average
A82: Business Standard | B82: LED Freezer Case Lights w/Doors 4ft 5ft or 6ft repl Fluor Frezer Case Lights w/Doors 4ft 5ft or 6ft | C82: 175.5 | D82: C&I | E82: Lighting | F82: Annual Operating Hours source, Measure Life and CF source: IL TRM | G82: per door | H82: 230 | I82: Program Tracking Data | K82: =ROUND((AF82-AB82)/1000*U82*AS82,4) -> 552.2054 | L82: Calculated Value | N82: =(AF82-AB82)/1000*O82*AW82 -> 0.095175 | O82: 1 | P82: IL TRM v9 vol2 | Q82: 471 | R82: =ROUND(N82*O82,4) -> 0.0952 | S82: Calculated Value | U82: 5802 | V82: IL TRM v9 vol2 | W82: 471 | X82: 8 | Y82: IL TRM v6 vol2 (calculated value based on lifetime hours) | Z82: 372-374 | AA82: LED Freezer (Low Temp) Case Light Fixtures (4, 5, and 6-foot) | AB82: 21.3 | AC82: Program Tracking Data | AE82: Linear Fluorescent T8 Fixtures | AF82: 84.75 | AG82: Mid Atlantic TRM v9 | AH82: 388 (average between T8 and T12HO) | AI82: =ROUND((AF82-AB82)/1000*U82*AS82,4) | AJ82: =ROUND(N82*O82,4) | AK82: IL TRM v6 vol2 | AL82: 364368 | AM82: 2022-01-01 | AN82: 2022-12-31 | AS82: 1.5 | AT82: Waste Heat Factor Energy | AU82: IL TRM V9 vol 2 | AV82: 471 | AW82: 1.5 | AX82: Waste Heat Factor_Demand | AY82: IL TRM V9 vol 2 | AZ82: 471
A83: Business Standard | B83: LED Freezer Case Lights w/Doors 4ft 5ft or 6ft repl Fluor Frezer Case Lights w/Doors 4ft 5ft or 6ft | C83: 175.6 | D83: C&I | E83: Lighting | F83: Annual Operating Hours source, Measure Life and CF source: IL TRM | G83: per door | H83: 230 | I83: PY1 Tracking data | K83: =ROUND((AF83-AB83)/1000*U83*AS83,4) -> 598.435 | L83: Calculated Value | N83: =(AF83-AB83)/1000*O83*AW83 -> 0.096444 | O83: 1 | P83: IL TRM v10 Vol2 | Q83: 533 | R83: =ROUND(N83*O83,4) -> 0.0964 | S83: Calculated Value | U83: 6205 | V83: Evergy Logger Verified HOU weighted by verified program savings | X83: =50000/U83 -> 8.058017728 | Y83: IL TRM v10 Vol2 (calculated value based on lifetime hours) | Z83: 566 | AA83: LED Freezer (Low Temp) Case Light Fixtures (4, 5, and 6-foot) | AB83: 21.3 | AC83: PY1 Tracking Data | AE83: Linear Fluorescent T8 Fixtures | AF83: 84.75 | AG83: Mid Atlantic TRM v9 | AH83: 388 (average between T8 and T12HO) | AI83: =ROUND((AF83-AB83)/1000*U83*AS83,4) | AJ83: =ROUND(N83*O83,4) | AK83: IL TRM v10 Vol2 | AL83: 556561 | AM83: 2023-01-01 | AS83: 1.52 | AT83: Waste Heat Factor Energy | AU83: PY2 portfolio weighted average | AW83: 1.52 | AX83: Waste Heat Factor_Demand | AY83: PY2 portfolio weighted average
A84: Business Standard | B84: Interior LED Downlight or Retrofit Kit replacing 45-60W Fixture | C84: 176.3 | D84: C&I | E84: Lighting | F84: Annual Operating Hours: Weighted Average IN TRM, Measure Life: IL TRM, CF source: Weighted Average IN TRM | G84: per fixture | H84: 27 | I84: IL TRM v6 vol2 | J84: 370 | K84: =ROUND((AF84-AB84)/1000*U84*AS84,4) -> 199.9537 | L84: Calculated Value | N84: =(AF84-AB84)/1000*AW84 -> 0.06191 | O84: 0.7 | P84: Indiana TRM v1 | Q84: 171-172 (portfolio weighted average) | R84: =ROUND(N84*O84,4) -> 0.0433 | S84: Calculated Value | U84: 3933 | V84: Indiana TRM v1 | W84: 171-172 (portfolio weighted average) | X84: 13 | Y84: IL TRM v6 vol2 (calculated value based on lifetime hours) | Z84: 372-374 | AA84: LED Downlight or Retrofit Kit ≤ 13W | AB84: 11 | AC84: Program Tracking Data | AE84: Incandescent and Halogen Downlights < 1000 lumens | AF84: 52 | AH84: Midpoint Value | AI84: =ROUND((AF84-AB84)/1000*U84*AS84,4) | AJ84: =ROUND(N84*O84,4) | AK84: IL TRM v6 vol2 | AL84: 364368 | AM84: 2020-01-01 | AS84: 1.24 | AT84: Waste Heat Factor Energy | AU84: IL TRM v6 vol2 | AV84: 337-338 (portfolio weighted average) | AW84: 1.51 | AX84: Waste Heat Factor_Demand | AY84: IL TRM v6 vol2 | AZ84: 337-338 (portfolio weighted average)
A85: Business Standard | B85: Interior LED Downlight or Retrofit Kit replacing 61-100W Fixture | C85: 177.3 | D85: C&I | E85: Lighting | F85: Annual Operating Hours: Weighted Average IN TRM, Measure Life: IL TRM, CF source: Weighted Average IN TRM | G85: per fixture | H85: 27 | I85: IL TRM v6 vol2 | J85: 370 | K85: 302.369 | L85: Calculated Value | N85: 0.09362 | O85: 0.7 | P85: Indiana TRM v1 | Q85: 171-172 (portfolio weighted average) | R85: 0.0655 | S85: Calculated Value | U85: 3933 | V85: Indiana TRM v1 | W85: 171-172 (portfolio weighted average) | X85: 13 | Y85: IL TRM v6 vol2 (calculated value based on lifetime hours) | Z85: 372-374 | AA85: LED Downlight or Retrofit Kit 14 to 21W | AB85: 18 | AC85: Program Tracking Data | AE85: Incandescent and Halogen Downlights 1000 to 2000 lumens | AF85: 80 | AH85: Midpoint Value | AI85: =ROUND((AF85-AB85)/1000*U85*AS85,4) | AJ85: =ROUND(N85*O85,4) | AK85: IL TRM v6 vol2 | AL85: 364368 | AM85: 2020-01-01 | AS85: 1.24 | AT85: Waste Heat Factor Energy | AU85: IL TRM v6 vol2 | AV85: 337-338 (portfolio weighted average) | AW85: 1.51 | AX85: Waste Heat Factor_Demand | AY85: IL TRM v6 vol2 | AZ85: 337-338 (portfolio weighted average)
A86: Business Standard | B86: Interior LED Downlight or Retrofit Kit replacing 101-155W Fixture | C86: 178.3 | D86: C&I | E86: Lighting | F86: Annual Operating Hours: Weighted Average IN TRM, Measure Life: IL TRM, CF source: Weighted Average IN TRM | G86: per fixture | H86: 27 | I86: IL TRM v6 vol2 | J86: 370 | K86: 511.5889 | L86: Calculated Value | N86: 0.158399 | O86: 0.7 | P86: Indiana TRM v1 | Q86: 171-172 (portfolio weighted average) | R86: 0.1109 | S86: Calculated Value | U86: 3933 | V86: Indiana TRM v1 | W86: 171-172 (portfolio weighted average) | X86: 13 | Y86: IL TRM v6 vol2 (calculated value based on lifetime hours) | Z86: 372-374 | AA86: LED Downlight or Retrofit Kit ≥ 22W | AB86: 23.1 | AC86: Program Tracking Data | AE86: Incandescent, HID and Halogen Downlights > 2000 lumens | AF86: 128 | AH86: Midpoint Value | AI86: =ROUND((AF86-AB86)/1000*U86*AS86,4) | AJ86: =ROUND(N86*O86,4) | AK86: IL TRM v6 vol2 | AL86: 364368 | AM86: 2020-01-01 | AS86: 1.24 | AT86: Waste Heat Factor Energy | AU86: IL TRM v6 vol2 | AV86: 337-338 (portfolio weighted average) | AW86: 1.51 | AX86: Waste Heat Factor_Demand | AY86: IL TRM v6 vol2 | AZ86: 337-338 (portfolio weighted average)
A87: Business Standard | B87: Interior Directional LED Lamp replacing 50-70W Lamp | C87: 179.3 | D87: Small C&I | E87: Lighting | G87: per lamp | H87: 15 | I87: IL TRM v6 vol2 | J87: 370 | K87: 273.3946 | L87: Calculated Value | N87: 0.066062 | O87: 0.7 | P87: IL TRM v6 vol2 | Q87: 337-338 (portfolio weighted average) | R87: 0.0462 | S87: Calculated Value | U87: 3933 | V87: IL TRM v6 vol2 | W87: 337-338 (portfolio weighted average) | X87: 6 | Y87: IL TRM v6 vol2 (calculated value based on lifetime hours) | Z87: 372-374 | AA87: LED (watts) | AB87: 10.7 | AC87: Program Tracking Data | AE87: Incandescent (watts) | AF87: 60 | AH87: Midpoint Value | AI87: =ROUND((AF87-AB87)/1000*U87*AS87,4) | AJ87: =ROUND(N87*O87,4) | AK87: IL TRM v6 vol2 | AL87: 364368 | AM87: 2020-01-01 | AS87: 1.41 | AT87: Waste Heat Factor Energy | AU87: IL TRM v6 vol2 | AV87: 337-338 (portfolio weighted average) | AW87: 1.34 | AX87: Waste Heat Factor Demand | AY87: IL TRM v6 vol2 | AZ87: 337-338 (portfolio weighted average)
A88: Business Standard | B88: High Performance High-Bay Fluorescent Fixture T8 > 4 Lamps Replacing HID Fixture | C88: 181.3 | D88: Small C&I | E88: Lighting | G88: per fixture | H88: 200 | I88: IL TRM v6 vol2 | J88: 357 | K88: 1478.4696 | L88: Calculated Value | N88: 0.3216 | O88: 0.78 | P88: IL TRM v6 vol2 | Q88: 337-338 (portfolio weighted average) | R88: 0.2508 | S88: Calculated Value | U88: 4369 | V88: IL TRM v6 vol2 | W88: 337-338 (portfolio weighted average) | X88: 15 | Y88: IL TRM v6 vol2 | Z88: 352 | AA88: High Bay T8 (>4 lamps, wattage) | AB88: 240 | AC88: Program Tracking Data | AE88: Metal Halide (watts) | AF88: 480 | AG88: IL TRM v6 vol2 | AH88: 357 (portfolio weighted average) | AI88: =ROUND((AF88-AB88)/1000*U88*AS88,4) | AJ88: =ROUND(N88*O88,4) | AK88: IL TRM v6 vol2 | AL88: 353354 | AM88: 2020-05-01 | AS88: 1.41 | AT88: Waste Heat Factor Energy | AU88: IL TRM v6 vol2 | AV88: 337-338 (portfolio weighted average) | AW88: 1.34 | AX88: Waste Heat Factor Demand | AY88: IL TRM v6 vol2 | AZ88: 337-338 (portfolio weighted average)
A89: Business Standard | B89: High‐Bay Fluorescent Fixture T5 <= 4 Lamps w/ HE Electronic Ballast Replacing HID Fixture | C89: 183.3 | D89: Small C&I | E89: Lighting | G89: per fixture | H89: 100 | I89: IL TRM v6 vol2 | J89: 413 | K89: 677.6319 | L89: Calculated Value | N89: 0.1474 | O89: 0.78 | P89: IL TRM v6 vol2 | Q89: 337-338 (portfolio weighted average) | R89: 0.115 | S89: Calculated Value | U89: 4369 | V89: IL TRM v6 vol2 | W89: 337-338 (portfolio weighted average) | X89: 15 | Y89: IL TRM v6 vol2 | Z89: 410 | AA89: High Bay T5 (≤4 lamps, wattage) | AB89: 110 | AC89: Program Tracking Data | AE89: Metal Halide (watts) | AF89: 220 | AG89: IL TRM v6 vol2 | AH89: 413-414 (portfolio weighted average) | AI89: =ROUND((AF89-AB89)/1000*U89*AS89,4) | AJ89: =ROUND(N89*O89,4) | AK89: IL TRM v6 vol2 | AL89: 411412 | AM89: 2020-05-01 | AS89: 1.41 | AT89: Waste Heat Factor Energy | AU89: IL TRM v6 vol2 | AV89: 337-338 (portfolio weighted average) | AW89: 1.34 | AX89: Waste Heat Factor Demand | AY89: IL TRM v6 vol2 | AZ89: 337-338 (portfolio weighted average)
A90: Business Standard | B90: Remove 8ft Lamp from T8 or T12 System | C90: 186.3 | D90: Small C&I | E90: Lighting | G90: per lamp | H90: 30 | I90: IL TRM v5 vol2 | J90: 349 | K90: 252.5366 | L90: Calculated Value | N90: 0.07772 | O90: 0.66 | P90: IL TRM v6 vol2 | Q90: 337-338 (portfolio weighted average) | R90: 0.0513 | S90: Calculated Value | U90: 3088 | V90: IL TRM v6 vol2 | W90: 338 | X90: 11 | Y90: IL TRM v6 vol2 | Z90: 346 | AA90: Remove T8 | AB90: 0 | AC90: IL TRM v5 vol3 | AD90: 349 | AE90: T8 8 ft (watts) | AF90: 58 | AG90: IL TRM v5 vol3 | AH90: 347 (portfolio weighted average) | AI90: =ROUND((AF90-AB90)/1000*U90*AS90,4) | AJ90: =ROUND(N90*O90,4) | AK90: IL TRM v6 vol2 | AL90: 353354 | AM90: 2020-05-01 | AS90: 1.41 | AT90: Waste Heat Factor Energy | AU90: IL TRM v6 vol2 | AV90: 338 | AW90: 1.34 | AX90: Waste Heat Factor Demand | AY90: IL TRM v6 vol2 | AZ90: 337-338 (portfolio weighted average)
A91: Business Standard | B91: Interior Omnidirectional LED Lamp replacing 40-60W Lamp | C91: 187.3 | D91: Small C&I | E91: Lighting | G91: per lamp | H91: 1.96 | I91: IL TRM v6 vol2 | J91: 370 | K91: 222.075 | L91: Calculated Value | N91: 0.05628 | O91: 0.65 | P91: IL TRM v6 vol2 | Q91: 337-338 (portfolio weighted average) | R91: 0.0366 | S91: Calculated Value | U91: 3750 | V91: IL TRM v6 vol2 | W91: 337-338 (portfolio weighted average) | X91: 7 | Y91: IL TRM v6 vol2 (calculated value based on lifetime hours) | Z91: 372-374 | AA91: LED (watts) | AB91: 8 | AC91: Program Tracking Data | AE91: EISA tier 1 compliant Halogen (watts) | AF91: 50 | AH91: Midpoint Value | AI91: =ROUND((AF91-AB91)/1000*U91*AS91,4) | AJ91: =ROUND(N91*O91,4) | AK91: IL TRM v6 vol2 | AL91: 364368 | AM91: 2020-01-01 | AS91: 1.41 | AT91: Waste Heat Factor Energy | AU91: IL TRM v6 vol2 | AV91: 337-338 (portfolio weighted average) | AW91: 1.34 | AX91: Waste Heat Factor Demand | AY91: IL TRM v6 vol2 | AZ91: 337-338 (portfolio weighted average)
A92: Business Standard | B92: Interior Omnidirectional LED Lamp replacing 61-100W Lamp | C92: 188.3 | D92: Small C&I | E92: Lighting | G92: per lamp | H92: 1.96 | I92: IL TRM v6 vol2 | J92: 370 | K92: 382.6416 | L92: Calculated Value | N92: 0.09246 | O92: 0.7 | P92: IL TRM v6 vol2 | Q92: 337-338 (portfolio weighted average) | R92: 0.0647 | S92: Calculated Value | U92: 3933 | V92: IL TRM v6 vol2 | W92: 337-338 (portfolio weighted average) | X92: 6 | Y92: IL TRM v6 vol2 (calculated value based on lifetime hours) | Z92: 372-374 | AA92: LED (watts) | AB92: 11 | AC92: Program Tracking Data | AE92: EISA tier 1 compliant Halogen (watts) | AF92: 80 | AH92: Midpoint Value | AI92: =ROUND((AF92-AB92)/1000*U92*AS92,4) | AJ92: =ROUND(N92*O92,4) | AK92: IL TRM v6 vol2 | AL92: 364368 | AM92: 2020-01-01 | AS92: 1.41 | AT92: Waste Heat Factor Energy | AU92: IL TRM v6 vol2 | AV92: 337-338 (portfolio weighted average) | AW92: 1.34 | AX92: Waste Heat Factor Demand | AY92: IL TRM v6 vol2 | AZ92: 337-338 (portfolio weighted average)
A93: Business Standard | B93: Interior Occupancy or Vacancy Sensor Replacing No Controls | C93: 190.3 | D93: Small C&I | E93: Lighting | G93: per sensor | H93: 84 | I93: IL TRM v6 vol2 | J93: 402 | K93: =ROUND(AB93/1000*AS93*U93*BA93,4) -> 323.0366 | L93: Calculated Value | N93: =AB93/1000*AW93*BA93 -> 0.07437 | O93: 0.95 | P93: IL TRM v6 vol2 | Q93: 337-338 (portfolio weighted average) | R93: 0.0707 | S93: Calculated Value | U93: 4128 | V93: IL TRM v6 vol2 | W93: 337-338 (portfolio weighted average) | X93: 8 | Y93: IL TRM v6 vol2 | Z93: 402 | AA93: Wall-Mount Occupancy Sensor | AB93: 185 | AC93: Program Tracking Database (watts controlled) | AE93: No Control | AG93: IL TRM v6 vol2 | AH93: 402 | AI93: =ROUND(AB93/1000*AS93*U93*BA93,4) | AJ93: =ROUND(N93*O93,4) | AK93: IL TRM v6 vol2 | AL93: 403404 | AM93: 2020-01-01 | AS93: 1.41 | AT93: Waste Heat Factor Energy | AU93: IL TRM v6 vol2 | AV93: 337-338 (portfolio weighted average) | AW93: 1.34 | AX93: Waste Heat Factor Demand | AY93: IL TRM v6 vol2 | AZ93: 337-338 (portfolio weighted average) | BA93: 0.3 | BB93: ESF | BC93: IL TRM v6 vol2 | BD93: 404 (portfolio weighted average)
A94: Business Standard | B94: Parking Garage 4'3L T5, T5HP, or T8 replacing >175W fixture | C94: 191.2 | D94: Small C&I | E94: Lighting | G94: per fixture | H94: 136 | I94: IL TRM v6 vol2 | J94: T8: 356,357 T5:413,414 | K94: =ROUND((AF94-AB94)/1000*U94*AS94,4) -> 902.898 | L94: Calculated Value | N94: =(AF94-AB94)/1000*AW94 -> 0.103 | O94: 1 | P94: IL TRM v6 vol2 | Q94: 337 | R94: 0.103 | S94: Calculated Value | U94: 8766 | V94: IL TRM v6 vol2 | W94: 337 | X94: 6 | Y94: IL TRM v6 vol2 (calculated value based on lifetime hours) | Z94: 415-416 | AA94: 4-ft 3L to 4L 4' T5, T5HO or T8 | AB94: 155 | AC94: Program Tracking Data | AE94: 200W - 250W HID Fixture | AF94: 258 | AG94: IL TRM v6 vol2 | AH94: 413-414 (portfolio weighted average) | AI94: =ROUND((AF94-AB94)/1000*U94*AS94,4) | AJ94: =ROUND(N94*O94,4) | AK94: IL TRM v6 vol2 | AL94: T8:353,354 T5:411,412 | AM94: 2020-01-01 | AS94: 1 | AT94: Waste Heat Factor Energy | AU94: IL TRM v6 vol2 | AV94: 338 | AW94: 1 | AX94: Waste Heat Factor Demand | AY94: IL TRM v6 vol2 | AZ94: 338
A95: Business Standard | B95: Parking Garage 4'2L T5, T5HP, or T8 replacing 101W-175W fixture | C95: 192.3 | D95: Small C&I | E95: Lighting | G95: per fixture | H95: 105 | I95: IL TRM v6 vol2 | J95: T8: 356,357 T5:413,414 | K95: =ROUND((AF95-AB95)/1000*U95*AS95,4) -> 578.556 | L95: Calculated Value | N95: =(AF95-AB95)/1000*AW95 -> 0.066 | O95: 1 | P95: IL TRM v6 vol2 | Q95: 337 | R95: 0.066 | S95: Calculated Value | U95: 8766 | V95: IL TRM v6 vol2 | W95: 337 | X95: 6 | Y95: IL TRM v6 vol2 (calculated value based on lifetime hours) | Z95: 415-416 | AA95: 4-ft 2L to 3L 4' T5, T5HO or T8 | AB95: 84 | AC95: Program Tracking Data | AE95: 125W - 175W HID Fixture | AF95: 150 | AH95: Midpoint Value | AI95: =ROUND((AF95-AB95)/1000*U95*AS95,4) | AJ95: =ROUND(N95*O95,4) | AK95: IL TRM v6 vol2 | AL95: T8:353,354 T5:411,412 | AM95: 2020-01-01 | AS95: 1 | AT95: Waste Heat Factor Energy | AU95: IL TRM v6 vol2 | AV95: 338 | AW95: 1 | AX95: Waste Heat Factor Demand | AY95: IL TRM v6 vol2 | AZ95: 338
A96: Business Standard | B96: Parking Garage 4'1L T5, T5HP, or T8 replacing <=100W fixture | C96: 193.2 | D96: Small C&I | E96: Lighting | G96: per fixture | H96: 74 | I96: IL TRM v6 vol2 | J96: T8: 356,357 T5:413,414 | K96: =ROUND((AF96-AB96)/1000*U96*AS96,4) -> 613.62 | L96: Calculated Value | N96: =(AF96-AB96)/1000*AW96 -> 0.07 | O96: 1 | P96: IL TRM v6 vol2 | Q96: 337 | R96: 0.07 | S96: Calculated Value | U96: 8766 | V96: IL TRM v6 vol2 | W96: 337 | X96: 6 | Y96: IL TRM v6 vol2 (calculated value based on lifetime hours) | Z96: 415-416 | AA96: 4-ft 1L to 2L 4' T5, T5HO or T8 | AB96: 54 | AC96: Program Tracking Data | AE96: ≤ 100 W HID Fixture | AF96: 124 | AG96: Program tracking data | AI96: =ROUND((AF96-AB96)/1000*U96*AS96,4) | AJ96: =ROUND(N96*O96,4) | AK96: IL TRM v6 vol2 | AL96: T8:353,354 T5:411,412 | AM96: 2020-01-01 | AS96: 1 | AT96: Waste Heat Factor Energy | AU96: IL TRM v6 vol2 | AV96: 338 | AW96: 1 | AX96: Waste Heat Factor Demand | AY96: IL TRM v6 vol2 | AZ96: 338
A97: Business Standard | B97: Exterior LED replacing > 400W Fixture or Mogul Screw-Base Lamp | C97: 194.3 | D97: Small C&I | E97: Lighting | G97: per fixture | H97: 1182.5 | I97: IL TRM v6 vol2 | J97: 372 | K97: =ROUND((AF97-AB97)/1000*U97*AS97,4) -> 3839.9 | L97: Calculated Value | N97: =(AF97-AB97)/1000*AW97 -> 0.893 | O97: 0 | P97: IL TRM v6 vol2 | Q97: 338 | R97: 0 | S97: Calculated Value | U97: 4300 | V97: Indiana TRM v1 | W97: 178 | X97: 12 | Y97: IL TRM v6 vol2 (calculated value based on lifetime hours) | Z97: 372-374 | AA97: LED Exterior Lighting Fixtures (Includes Street and Area, Decorative, Soffit and Canopy, Wall-mounted, and Landscape and Flood lighting) | AB97: 185 | AC97: Program Tracking Data | AE97: > 400 W HID Fixture | AF97: 1078 | AG97: Mid Atlantic TRM v7 | AH97: 307 (1000W HID fixture) | AI97: =ROUND((AF97-AB97)/1000*U97*AS97,4) | AJ97: =ROUND(N97*O97,4) | AK97: IL TRM v6 vol2 | AL97: 364368 | AM97: 2020-01-01 | AN97: 2022-12-31 | AS97: 1 | AT97: Waste Heat Factor Energy | AU97: IL TRM v6 vol2 | AV97: 338 | AW97: 1 | AX97: Waste Heat Factor Demand | AY97: IL TRM v6 vol2 | AZ97: 338
A98: Business Standard | B98: Exterior LED replacing > 400W Fixture or Mogul Screw-Base Lamp | C98: 194.4 | D98: Small C&I | E98: Lighting | G98: per fixture | H98: =AVERAGE(946,700,850,1100) -> 899 | I98: IL TRM v10 Vol2 | J98: 565 | K98: =ROUND((AF98-AB98)/1000*U98*AS98,4) -> 3653.247 | L98: Calculated Value | N98: =(AF98-AB98)/1000*AW98 -> 0.849 | O98: 0 | P98: IL TRM v10 Vol2 | Q98: 533 | R98: =ROUND(N98*O98,4) -> 0 | S98: Calculated Value | U98: 4303 | V98: IL TRM v10 Vol2 | W98: 533 | X98: =50000/U98 -> 11.61980014 | Y98: IL TRM v10 Vol2 (calculated value based on lifetime hours) | Z98: 569 | AA98: LED Exterior Lighting Fixtures (Includes Street and Area, Decorative, Soffit and Canopy, Wall-mounted, and Landscape and Flood lighting) | AB98: 226 | AC98: PY2 portfolio weighted average | AE98: > 400 W HID Fixture | AF98: 1075 | AG98: Mid Atlantic TRM v10 | AH98: 242 | AI98: =ROUND((AF98-AB98)/1000*U98*AS98,4) | AJ98: =ROUND(N98*O98,4) | AK98: IL TRM v10 Vol2 | AL98: 556, 561 | AM98: 2023-01-01 | AS98: 1 | AT98: Waste Heat Factor Energy | AU98: PY2 portfolio weighted average | AW98: 1 | AX98: Waste Heat Factor Demand | AY98: PY2 portfolio weighted average
A99: Business Standard | B99: Exterior LED replacing 251W-400W Fixture or Mogul Screw‐Base Lamp | C99: 195.3 | D99: Small C&I | E99: Lighting | G99: per fixture | H99: 535 | I99: IL TRM v6 vol2 | J99: 372 | K99: =ROUND((AF99-AB99)/1000*U99*AS99,4) -> 795.5 | L99: Calculated Value | N99: =(AF99-AB99)/1000*AW99 -> 0.185 | O99: 0 | P99: IL TRM v6 vol2 | Q99: 338 | R99: =ROUND(N99*O99,4) -> 0 | S99: Calculated Value | U99: 4300 | V99: Indiana TRM v1 | W99: 178 | X99: 12 | Y99: IL TRM v6 vol2 (calculated value based on lifetime hours) | Z99: 372-374 | AA99: LED Exterior Lighting Fixtures (Includes Street and Area, Decorative, Soffit and Canopy, Wall-mounted, and Landscape and Flood lighting) | AB99: 140 | AC99: Program Tracking Data | AE99: 320 W Pulse Start and 400W MH/HPS Fixture | AF99: 325 | AH99: Midpoint Value | AI99: =ROUND((AF99-AB99)/1000*U99*AS99,4) | AJ99: =ROUND(N99*O99,4) | AK99: IL TRM v6 vol2 | AL99: 364368 | AM99: 2020-01-01 | AN99: 2022-12-31 | AS99: 1 | AT99: Waste Heat Factor Energy | AU99: IL TRM v6 vol2 | AV99: 338 | AW99: 1 | AX99: Waste Heat Factor Demand | AY99: IL TRM v6 vol2 | AZ99: 338
A100: Business Standard | B100: Exterior LED replacing 251W-400W Fixture or Mogul Screw‐Base Lamp | C100: 195.4 | D100: Small C&I | E100: Lighting | G100: per fixture | H100: 566 | I100: IL TRM v10 Vol2 | J100: 565 | K100: =ROUND((AF100-AB100)/1000*U100*AS100,4) -> 1339.3884 | L100: Calculated Value | N100: =(AF100-AB100)/1000*AW100 -> 0.3112685 | O100: 0 | P100: IL TRM v10 Vol2 | Q100: 533 | R100: =ROUND(N100*O100,4) -> 0 | S100: Calculated Value | U100: 4303 | V100: IL TRM v10 Vol2 | W100: 533 | X100: =50000/U100 -> 11.61980014 | Y100: IL TRM v10 Vol2 (calculated value based on lifetime hours) | Z100: 569 | AA100: LED Exterior Lighting Fixtures (Includes Street and Area, Decorative, Soffit and Canopy, Wall-mounted, and Landscape and Flood lighting) | AB100: 123 | AC100: PY2 portfolio weighted average | AE100: 320 W Pulse Start and 400W MH/HPS Fixture | AF100: 434.2685 | AG100: PY2 portfolio weighted average | AI100: =ROUND((AF100-AB100)/1000*U100*AS100,4) | AJ100: =ROUND(N100*O100,4) | AK100: IL TRM v10 Vol2 | AL100: 556, 561 | AM100: 2023-01-01 | AS100: 1 | AT100: Waste Heat Factor Energy | AU100: PY2 portfolio weighted average | AW100: 1 | AX100: Waste Heat Factor Demand | AY100: PY2 portfolio weighted average
A101: Business Standard | B101: Exterior LED replacing 175W-250W Fixture or Mogul Screw-Base Lamp | C101: 196.3 | D101: Small C&I | E101: Lighting | G101: per fixture | H101: 398.8 | I101: IL TRM v6 vol2 | J101: 372 | K101: =ROUND((AF101-AB101)/1000*U101*AS101,4) -> 602 | L101: Calculated Value | N101: =(AF101-AB101)/1000*AW101 -> 0.14 | O101: 0 | P101: IL TRM v6 vol2 | Q101: 338 | R101: =ROUND(N101*O101,4) -> 0 | S101: Calculated Value | U101: 4300 | V101: Indiana TRM v1 | W101: 178 | X101: 12 | Y101: IL TRM v6 vol2 (calculated value based on lifetime hours) | Z101: 372-374 | AA101: LED Exterior Lighting Fixtures (Includes Street and Area, Decorative, Soffit and Canopy, Wall-mounted, and Landscape and Flood lighting) | AB101: 73 | AC101: Program Tracking Data | AE101: 175 W HID - 250 W HID Fixture | AF101: 213 | AH101: Midpoint Value | AI101: =ROUND((AF101-AB101)/1000*U101*AS101,4) | AJ101: =ROUND(N101*O101,4) | AK101: IL TRM v6 vol2 | AL101: 364368 | AM101: 2020-01-01 | AN101: 2022-12-31 | AS101: 1 | AT101: Waste Heat Factor Energy | AU101: IL TRM v6 vol2 | AV101: 338 | AW101: 1 | AX101: Waste Heat Factor Demand | AY101: IL TRM v6 vol2 | AZ101: 338
A102: Business Standard | B102: Exterior LED replacing 175W-250W Fixture or Mogul Screw-Base Lamp | C102: 196.4 | D102: Small C&I | E102: Lighting | G102: per fixture | H102: 248 | I102: IL TRM v10 Vol2 | J102: 565 | K102: =ROUND((AF102-AB102)/1000*U102*AS102,4) -> 861.4606 | L102: Calculated Value | N102: =(AF102-AB102)/1000*AW102 -> 0.2002 | O102: 0 | P102: IL TRM v10 Vol2 | Q102: 533 | R102: =ROUND(N102*O102,4) -> 0 | S102: Calculated Value | U102: 4303 | V102: IL TRM v10 Vol2 | W102: 533 | X102: =50000/U102 -> 11.61980014 | Y102: IL TRM v10 Vol2 (calculated value based on lifetime hours) | Z102: 569 | AA102: LED Exterior Lighting Fixtures (Includes Street and Area, Decorative, Soffit and Canopy, Wall-mounted, and Landscape and Flood lighting) | AB102: 80.8 | AC102: PY2 portfolio weighted average | AE102: 175 W HID - 250 W HID Fixture | AF102: 281 | AG102: PY2 portfolio weighted average | AI102: =ROUND((AF102-AB102)/1000*U102*AS102,4) | AJ102: =ROUND(N102*O102,4) | AK102: IL TRM v10 Vol2 | AL102: 556, 561 | AM102: 2023-01-01 | AS102: 1 | AT102: Waste Heat Factor Energy | AU102: PY2 portfolio weighted average | AW102: 1 | AX102: Waste Heat Factor Demand | AY102: PY2 portfolio weighted average
A103: Business Standard | B103: Exterior LED replacing < 175W Fixture or Mogul Screw-Base Lamp | C103: 197.3 | D103: Small C&I | E103: Lighting | G103: per fixture | H103: 299.75 | I103: IL TRM v6 vol2 | J103: 372 | K103: =ROUND((AF103-AB103)/1000*U103*AS103,4) -> 533.2 | L103: Calculated Value | N103: =(AF103-AB103)/1000*AW103 -> 0.124 | O103: 0 | P103: IL TRM v6 vol2 | Q103: 338 | R103: =ROUND(N103*O103,4) -> 0 | S103: Calculated Value | U103: 4300 | V103: Indiana TRM v1 | W103: 178 | X103: 12 | Y103: IL TRM v6 vol2 (calculated value based on lifetime hours) | Z103: 372-374 | AA103: LED Exterior Lighting Fixtures (Includes Street and Area, Decorative, Soffit and Canopy, Wall-mounted, and Landscape and Flood lighting) | AB103: 27 | AC103: Program Tracking Data | AE103: < 175 W HID Fixture | AF103: 151 | AG103: IL TRM v6 vol2 | AH103: 370-372 (portfolio weighted average) | AI103: =ROUND((AF103-AB103)/1000*U103*AS103,4) | AJ103: =ROUND(N103*O103,4) | AK103: IL TRM v6 vol2 | AL103: 364368 | AM103: 2020-01-01 | AN103: 2022-12-31 | AS103: 1 | AT103: Waste Heat Factor Energy | AU103: IL TRM v6 vol2 | AV103: 338 | AW103: 1 | AX103: Waste Heat Factor Demand | AY103: IL TRM v6 vol2 | AZ103: 338
A104: Business Standard | B104: Exterior LED replacing < 175W Fixture or Mogul Screw-Base Lamp | C104: 197.4 | D104: Small C&I | E104: Lighting | G104: per fixture | H104: 80 | I104: IL TRM v10 Vol2 | J104: 565 | K104: =ROUND((AF104-AB104)/1000*U104*AS104,4) -> 396.6505 | L104: Calculated Value | N104: =(AF104-AB104)/1000*AW104 -> 0.09218 | O104: 0 | P104: IL TRM v10 Vol2 | Q104: 533 | R104: =ROUND(N104*O104,4) -> 0 | S104: Calculated Value | U104: 4303 | V104: IL TRM v10 Vol2 | W104: 533 | X104: =50000/U104 -> 11.61980014 | Y104: IL TRM v10 Vol2 (calculated value based on lifetime hours) | Z104: 569 | AA104: LED Exterior Lighting Fixtures (Includes Street and Area, Decorative, Soffit and Canopy, Wall-mounted, and Landscape and Flood lighting) | AB104: 35.5 | AC104: PY2 portfolio weighted average | AE104: < 175 W HID Fixture | AF104: 127.68 | AG104: PY2 portfolio weighted average | AI104: =ROUND((AF104-AB104)/1000*U104*AS104,4) | AJ104: =ROUND(N104*O104,4) | AK104: IL TRM v10 Vol2 | AL104: 556, 561 | AM104: 2023-01-01 | AS104: 1 | AT104: Waste Heat Factor Energy | AU104: PY2 portfolio weighted average | AW104: 1 | AX104: Waste Heat Factor Demand | AY104: PY2 portfolio weighted average
A105: Business Standard | B105: Parking Garage LED replacing > 175W Fixture or Mogul Screw-Base Lamp | C105: 198.3 | D105: Small C&I | E105: Lighting | G105: per fixture | H105: 520 | I105: IL TRM v6 vol2 | J105: 371-372 | K105: =ROUND((AF105-AB105)/1000*U105*AS105,4) -> 1377.1386 | L105: Calculated Value | N105: 0.1571 | O105: 1 | P105: IL TRM v6 vol2 | Q105: 337 | R105: =ROUND(N105*O105,4) -> 0.1571 | S105: Calculated Value | U105: 8766 | V105: IL TRM v6 vol2 | W105: 337 | X105: 6 | Y105: IL TRM v6 vol2 (calculated value based on lifetime hours) | Z105: 372-374 | AA105: LED Parking Garage Lighting Fixtures | AB105: 100.9 | AC105: Program Tracking Data | AE105: 200W - 250W HID Fixture | AF105: 258 | AG105: IL TRM v6 vol2 | AH105: 413-414 (portfolio weighted average) | AI105: =ROUND((AF105-AB105)/1000*U105*AS105,4) | AJ105: =ROUND(N105*O105,4) | AK105: IL TRM v6 vol2 | AL105: 364368 | AM105: 2020-01-01 | AS105: 1 | AT105: Waste Heat Factor Energy | AU105: IL TRM v6 vol2 | AV105: 338 | AW105: 1 | AX105: Waste Heat Factor Demand | AY105: IL TRM v6 vol2 | AZ105: 338
A106: Business Standard | B106: Parking Garage LED replacing 101W-175W Fixture or Mogul Screw-Base Lamp | C106: 199.3 | D106: Small C&I | E106: Lighting | G106: per fixture | H106: 380 | I106: IL TRM v6 vol2 | J106: 371-372 | K106: =ROUND((AF106-AB106)/1000*U106*AS106,4) -> 706.5396 | L106: Calculated Value | N106: 0.0806 | O106: 1 | P106: IL TRM v6 vol2 | Q106: 337 | R106: =ROUND(N106*O106,4) -> 0.0806 | S106: Calculated Value | U106: 8766 | V106: IL TRM v6 vol2 | W106: 337 | X106: 6 | Y106: IL TRM v6 vol2 (calculated value based on lifetime hours) | Z106: 372-374 | AA106: LED Parking Garage Lighting Fixtures | AB106: 56.4 | AC106: Program Tracking Data | AE106: 125W - 175W HID Fixture | AF106: 137 | AH106: Midpoint Value | AI106: =ROUND((AF106-AB106)/1000*U106*AS106,4) | AJ106: =ROUND(N106*O106,4) | AK106: IL TRM v6 vol2 | AL106: 364368 | AM106: 2020-01-01 | AN106: 2022-12-31 | AS106: 1 | AT106: Waste Heat Factor Energy | AU106: IL TRM v6 vol2 | AV106: 338 | AW106: 1 | AX106: Waste Heat Factor Demand | AY106: IL TRM v6 vol2 | AZ106: 338
A107: Business Standard | B107: Parking Garage LED replacing 101W-175W Fixture or Mogul Screw-Base Lamp | C107: 199.4 | D107: Small C&I | E107: Lighting | G107: per fixture | H107: 248 | I107: IL TRM v10 Vol2 | J107: 566 | K107: =ROUND((AF107-AB107)/1000*U107*AS107,4) -> 1074.0255 | L107: Calculated Value | N107: 0.0806 | O107: 1 | P107: IL TRM v10 Vol2 | Q107: 532 | R107: =ROUND(N107*O107,4) -> 0.0806 | S107: Calculated Value | U107: 8766 | V107: IL TRM v10 Vol2 | W107: 532 | X107: =50000/U107 -> 5.703855807 | Y107: IL TRM v10 Vol2 (calculated value based on lifetime hours) | Z107: 569 | AA107: LED Parking Garage Lighting Fixtures | AB107: 35.1087 | AC107: PY2 portfolio weighted average | AE107: 125W - 175W HID Fixture | AF107: 157.6304348 | AG107: PY2 portfolio weighted average | AI107: =ROUND((AF107-AB107)/1000*U107*AS107,4) | AJ107: =ROUND(N107*O107,4) | AK107: IL TRM v10 Vol2 | AL107: 556, 561 | AM107: 2023-01-01 | AS107: 1 | AT107: Waste Heat Factor Energy | AU107: PY2 portfolio weighted average | AW107: 1 | AX107: Waste Heat Factor Demand | AY107: PY2 portfolio weighted average
A108: Business Standard | B108: Parking Garage LED replacing <= 100W Fixture or Mogul Screw-Base Lamp | C108: 200.2 | D108: Small C&I | E108: Lighting | G108: per fixture | H108: 320 | I108: IL TRM v6 vol2 | J108: 371-372 | K108: =ROUND((AF108-AB108)/1000*U108*AS108,4) -> 613.62 | L108: Calculated Value | N108: =(AF108-AB108)/1000*AW108 -> 0.07 | O108: 1 | P108: IL TRM v6 vol2 | Q108: 337 | R108: =ROUND(N108*O108,4) -> 0.07 | S108: Calculated Value | U108: 8766 | V108: IL TRM v6 vol2 | W108: 337 | X108: 6 | Y108: IL TRM v6 vol2 (calculated value based on lifetime hours) | Z108: 372-374 | AA108: LED Parking Garage Lighting Fixtures | AB108: 54 | AC108: Program Tracking Data | AE108: ≤ 100 W HID Fixture | AF108: 124 | AG108: Program tracking data | AI108: =ROUND((AF108-AB108)/1000*U108*AS108,4) | AJ108: =ROUND(N108*O108,4) | AK108: IL TRM v6 vol2 | AL108: 364368 | AM108: 2020-01-01 | AN108: 2022-12-31 | AS108: 1 | AT108: Waste Heat Factor Energy | AU108: IL TRM v6 vol2 | AV108: 338 | AW108: 1 | AX108: Waste Heat Factor Demand | AY108: IL TRM v6 vol2 | AZ108: 338
A109: Business Standard | B109: Parking Garage LED replacing <= 100W Fixture or Mogul Screw-Base Lamp | C109: 200.3 | D109: Small C&I | E109: Lighting | G109: per fixture | H109: 80 | I109: IL TRM v10 Vol2 | J109: 565 | K109: =ROUND((AF109-AB109)/1000*U109*AS109,4) -> 849.5591 | L109: Calculated Value | N109: =(AF109-AB109)/1000*AW109 -> 0.09691525424 | O109: 1 | P109: IL TRM v10 Vol2 | Q109: 532 | R109: =ROUND(N109*O109,4) -> 0.0969 | S109: Calculated Value | U109: 8766 | V109: IL TRM v10 Vol2 | W109: 532 | X109: =50000/U109 -> 5.703855807 | Y109: IL TRM v10 vol2 (calculated value based on lifetime hours) | Z109: 569 | AA109: LED Parking Garage Lighting Fixtures | AB109: 29 | AC109: PY2 portfolio weighted average | AE109: ≤ 100 W HID Fixture | AF109: 125.9152542 | AG109: PY2 portfolio weighted average | AI109: =ROUND((AF109-AB109)/1000*U109*AS109,4) | AJ109: =ROUND(N109*O109,4) | AK109: IL TRM v10 Vol2 | AL109: 556, 561 | AM109: 2023-01-01 | AS109: 1 | AT109: Waste Heat Factor Energy | AU109: PY2 portfolio weighted average | AW109: 1 | AX109: Waste Heat Factor Demand | AY109: PY2 portfolio weighted average
A110: Business Standard | B110: Interior LED Linear Lamp Replacing 4ft T8, T12, or T5/T5HO Lamp | C110: 201.3 | D110: Small C&I | E110: Lighting | G110: per lamp | H110: 24 | I110: IL TRM v5 vol2 | J110: 378 | K110: =ROUND((AF110-AB110)/1000*U110*AS110,4) -> 69.3504 | L110: Calculated Value | N110: =(AF110-AB110)/1000*AW110 -> 0.021 | O110: 0.75 | P110: Indiana TRM v1 | Q110: 171-172 (portfolio weighted average) | R110: =ROUND(N110*O110,4) -> 0.0158 | S110: Calculated Value | U110: 4128 | V110: Indiana TRM v1 | W110: 171-172 (portfolio weighted average) | X110: 12 | Y110: IL TRM v6 vol2 (calculated value based on lifetime hours) | Z110: 372-374 | AA110: 4-ft LED Linear Replacement Lamps | AB110: 15 | AC110: Program Tracking Data | AE110: 32W 4-ft T8 with Electronic NBF Ballast | AF110: 29 | AG110: IL TRM v6 vol2 (Blend of T8, T12, T5 lamp baseline according to measure name) | AH110: 356-358 | AI110: =ROUND((AF110-AB110)/1000*U110*AS110,4) | AJ110: =ROUND(N110*O110,4) | AK110: IL TRM v5 vol2 | AL110: 370375 | AM110: 2020-01-01 | AS110: 1.2 | AT110: Waste Heat Factor Energy | AU110: IL TRM v6 vol2 | AV110: 337-338 (portfolio weighted average) | AW110: 1.5 | AX110: Waste Heat Factor Demand | AY110: IL TRM v6 vol2 | AZ110: 337-338 (portfolio weighted average)
A111: Business Standard | B111: Interior LED Linear Lamp Replacing 2ft T8, T12, or T5/T5HO Lamp | C111: 202.2 | D111: Small C&I | E111: Lighting | G111: per lamp | H111: 13 | I111: IL TRM v5 vol2 | J111: 378 | K111: =ROUND((AF111-AB111)/1000*U111*AS111,4) -> 34.6752 | L111: Calculated Value | N111: =(AF111-AB111)/1000*AW111 -> 0.0105 | O111: 0.75 | P111: Indiana TRM v1 | Q111: 171-172 (portfolio weighted average) | R111: =ROUND(N111*O111,4) -> 0.0079 | S111: Calculated Value | U111: 4128 | V111: Indiana TRM v1 | W111: 171-172 (portfolio weighted average) | X111: 12 | Y111: IL TRM v6 vol2 (calculated value based on lifetime hours) | Z111: 372-374 | AA111: 2-ft LED Linear Replacement Lamps | AB111: 10 | AC111: Program Tracking Data | AE111: 17W 2-ft T8 with Electronic NBF Ballast | AF111: 17 | AG111: IL TRM v6 vol2 | AH111: 370-372 (portfolio weighted average) | AI111: =ROUND((AF111-AB111)/1000*U111*AS111,4) | AJ111: =ROUND(N111*O111,4) | AK111: IL TRM v5 vol2 | AL111: 370375 | AM111: 2020-01-01 | AS111: 1.2 | AT111: Waste Heat Factor Energy | AU111: IL TRM v6 vol2 | AV111: 337-338 (portfolio weighted average) | AW111: 1.5 | AX111: Waste Heat Factor Demand | AY111: IL TRM v6 vol2 | AZ111: 337-338 (portfolio weighted average)
A112: Business Standard | B112: Interior LED 1X4 Retrofit Kit replacing T8, T12 or T5/T5HO fixture | C112: 203.3 | D112: Small C&I | E112: Lighting | G112: per fixture | H112: 155 | I112: IL TRM v6 vol2 | J112: 370-371 (blend of T8, T12, and T5HO) | K112: =ROUND((AF112-AB112)/1000*U112*AS112,4) -> 234.4482 | L112: Calculated Value | N112: =(AF112-AB112)/1000*AW112 -> 0.070993275 | O112: 0.75 | P112: Indiana TRM v1 | Q112: 171-172 (portfolio weighted average) | R112: =ROUND(N112*O112,4) -> 0.0532 | S112: Calculated Value | U112: 4128 | V112: Indiana TRM v1 | W112: 171-172 (portfolio weighted average) | X112: 12 | Y112: IL TRM v6 vol2 (calculated value based on lifetime hours) | Z112: 372-374 | AA112: LED 1X4 Retrofit Kits | AB112: 30 | AC112: Program Tracking Data | AE112: 1x4 T8, T5, or T5HO Fluorescents | AF112: 77.32885 | AG112: IL TRM v6 vol2 | AH112: 370-371,414 (Average of T8, T5, and T5HO fixtures) | AI112: =ROUND((AF112-AB112)/1000*U112*AS112,4) | AJ112: =ROUND(N112*O112,4) | AK112: IL TRM v6 vol2 | AL112: 364368 | AM112: 2020-01-01 | AN112: 2022-12-31 | AS112: 1.2 | AT112: Waste Heat Factor Energy | AU112: IL TRM v6 vol2 | AV112: 337-338 (portfolio weighted average) | AW112: 1.5 | AX112: Waste Heat Factor Demand | AY112: IL TRM v6 vol2 | AZ112: 337-338 (portfolio weighted average)
A113: Business Standard | B113: Interior LED 1X4 Retrofit Kit replacing T8, T12 or T5/T5HO fixture | C113: 203.4 | D113: Small C&I | E113: Lighting | G113: per fixture | H113: =AVERAGE(22,72,83) -> 59 | I113: IL TRM v10 Vol2 | J113: 564 | K113: =ROUND((AF113-AB113)/1000*U113*AS113,4) -> 161.7589 | L113: Calculated Value | N113: =(AF113-AB113)/1000*AW113 -> 0.05112671159 | O113: 0.5581614834 | P113: PY2 portfolio weighted average | R113: =ROUND(N113*O113,4) -> 0.0285 | S113: Calculated Value | U113: 3656.131998 | V113: PY2 portfolio weighted average | X113: =50000/U113 -> 13.67565505 | Y113: IL TRM v10 Vol2 (calculated value based on lifetime hours) | Z113: 566 | AA113: LED 1X4 Retrofit Kits | AB113: 18.6 | AC113: PY2 portfolio weighted average | AE113: 1x4 T8, T5, or T5HO Fluorescents | AF113: 61.66707608 | AG113: IL TRM v10 Vol2 | AH113: 564, 612(Average of T8, T5, and T5HO fixtures) | AI113: =ROUND((AF113-AB113)/1000*U113*AS113,4) | AJ113: =ROUND(N113*O113,4) | AK113: IL TRM v10 Vol2 | AL113: 556, 561 | AM113: 2023-01-01 | AS113: 1.027308693 | AT113: Waste Heat Factor Energy | AU113: PY2 portfolio weighted average | AW113: 1.18714146 | AX113: Waste Heat Factor Demand | AY113: PY2 portfolio weighted average
A114: Business Standard | B114: Interior LED 2X4 Retrofit Kit replacing T8, T12 or T5/T5HO fixture | C114: 204.3 | D114: Small C&I | E114: Lighting | G114: per fixture | H114: 145 | I114: IL TRM v6 vol2 | J114: 370-371 (blend of T8, T12, and T5HO) | K114: =ROUND((AF114-AB114)/1000*U114*AS114,4) -> 312.3599 | L114: Calculated Value | N114: =(AF114-AB114)/1000*AW114 -> 0.09458572437 | O114: 0.75 | P114: Indiana TRM v1 | Q114: 171-172 (portfolio weighted average) | R114: =ROUND(N114*O114,4) -> 0.0709 | S114: Calculated Value | U114: 4128 | V114: Indiana TRM v1 | W114: 171-172 (portfolio weighted average) | X114: 12 | Y114: IL TRM v6 vol2 (calculated value based on lifetime hours) | Z114: 372-374 | AA114: LED 2X4 Retrofit Kits | AB114: 35 | AC114: Program Tracking Data | AE114: 2x4 T8, T5, or T5HO Fluorescents | AF114: 98.05714958 | AG114: IL TRM v6 vol2 | AH114: 370-371,414 (Average of 3 lamp T8 and T5 fixtures, and 2 lamp T5HO fixtures) | AI114: =ROUND((AF114-AB114)/1000*U114*AS114,4) | AJ114: =ROUND(N114*O114,4) | AK114: IL TRM v6 vol2 | AL114: 364368 | AM114: 2020-01-01 | AN114: 2022-12-31 | AS114: 1.2 | AT114: Waste Heat Factor Energy | AU114: IL TRM v6 vol2 | AV114: 337-338 (portfolio weighted average) | AW114: 1.5 | AX114: Waste Heat Factor Demand | AY114: IL TRM v6 vol2 | AZ114: 337-338 (portfolio weighted average)
A115: Business Standard | B115: Interior LED 2X4 Retrofit Kit replacing T8, T12 or T5/T5HO fixture | C115: 204.4 | D115: Small C&I | E115: Lighting | G115: per fixture | H115: =AVERAGE(55,76,104) -> 78.33333333 | I115: IL TRM v10 Vol2 | J115: 564 | K115: =ROUND((AF115-AB115)/1000*U115*AS115,4) -> 258.9361 | L115: Calculated Value | N115: =(AF115-AB115)/1000*AW115 -> 0.1027878446 | O115: 0.6700567272 | P115: PY2 portfolio weighted average | R115: =ROUND(N115*O115,4) -> 0.0689 | S115: Calculated Value | U115: 3088 | V115: IL TRM v10 Vol2 | W115: 533 | X115: =50000/U115 -> 16.19170984 | Y115: IL TRM v10 Vol2 (calculated value based on lifetime hours) | Z115: 566 | AA115: LED 2X4 Retrofit Kits | AB115: 41 | AC115: PY2 portfolio weighted average | AE115: 2x4 T8, T5, or T5HO Fluorescents | AF115: 117.277632 | AG115: IL TRM v10 Vol2 | AH115: 564, 612(Average of T8, T5, and T5HO fixtures) | AI115: =ROUND((AF115-AB115)/1000*U115*AS115,4) | AJ115: =ROUND(N115*O115,4) | AK115: IL TRM v10 Vol2 | AL115: 556, 561 | AM115: 2023-01-01 | AS115: 1.099304619 | AT115: Waste Heat Factor Energy | AU115: PY2 portfolio weighted average | AW115: 1.347548972 | AX115: Waste Heat Factor Demand | AY115: PY2 portfolio weighted average
A116: Business Standard | B116: Interior LED 2X2 Retrofit Kit replacing T8, T12 or T5/T5HO fixture | C116: 205.3 | D116: Small C&I | E116: Lighting | G116: per fixture | H116: 130 | I116: IL TRM v6 vol2 | J116: 370-371 (blend of T8, T12, and T5HO) | K116: =ROUND((AF116-AB116)/1000*U116*AS116,4) -> 234.4482 | L116: Calculated Value | N116: =(AF116-AB116)/1000*AW116 -> 0.070993275 | O116: 0.75 | P116: Indiana TRM v1 | Q116: 171-172 (portfolio weighted average) | R116: =ROUND(N116*O116,4) -> 0.0532 | S116: Calculated Value | U116: 4128 | V116: Indiana TRM v1 | W116: 171-172 (portfolio weighted average) | X116: 12 | Y116: IL TRM v6 vol2 (calculated value based on lifetime hours) | Z116: 372-374 | AA116: LED 2X2 Retrofit Kits | AB116: 30 | AC116: Program Tracking Data | AE116: 2x2 T8, T5 or T5HO Fluorescents | AF116: 77.32885 | AG116: IL TRM v6 vol2 | AH116: 370-371,414 (Average of T8, T5, and T5HO fixtures) | AI116: =ROUND((AF116-AB116)/1000*U116*AS116,4) | AJ116: =ROUND(N116*O116,4) | AK116: IL TRM v6 vol2 | AL116: 364368 | AM116: 2020-01-01 | AN116: 2022-12-31 | AS116: 1.2 | AT116: Waste Heat Factor Energy | AU116: IL TRM v6 vol2 | AV116: 337-338 (portfolio weighted average) | AW116: 1.5 | AX116: Waste Heat Factor Demand | AY116: IL TRM v6 vol2 | AZ116: 337-338 (portfolio weighted average)
A117: Business Standard | B117: Interior LED 2X2 Retrofit Kit replacing T8, T12 or T5/T5HO fixture | C117: 205.4 | D117: Small C&I | E117: Lighting | G117: per fixture | H117: =AVERAGE(53,69) -> 61 | I117: IL TRM v10 Vol2 | J117: 564 | K117: =ROUND((AF117-AB117)/1000*U117*AS117,4) -> 113.4014 | L117: Calculated Value | N117: =(AF117-AB117)/1000*AW117 -> 0.04556813495 | O117: 0.6620206013 | P117: PY2 portfolio weighted average | R117: =ROUND(N117*O117,4) -> 0.0302 | S117: Calculated Value | U117: 3088 | V117: IL TRM v10 Vol2 | W117: 533 | X117: =50000/U117 -> 16.19170984 | Y117: IL TRM v10 Vol2 (calculated value based on lifetime hours) | Z117: 566 | AA117: LED 2X2 Retrofit Kits | AB117: 25.5 | AC117: PY2 portfolio weighted average | AE117: 2x2 T8, T5 or T5HO Fluorescents | AF117: 58.89708561 | AG117: IL TRM v10 Vol2 | AH117: 564, 612(Average of T8, T5, and T5HO fixtures) | AI117: =ROUND((AF117-AB117)/1000*U117*AS117,4) | AJ117: =ROUND(N117*O117,4) | AK117: IL TRM v10 Vol2 | AL117: 556, 561 | AM117: 2023-01-01 | AS117: 1.09959429 | AT117: Waste Heat Factor Energy | AU117: PY2 portfolio weighted average | AW117: 1.364434474 | AX117: Waste Heat Factor Demand | AY117: PY2 portfolio weighted average
A118: Business Standard | B118: Interior LED 1X4 Troffer or Linear Ambient replacing T8, T12 or T5/T5HO fixture | C118: 206.3 | D118: Small C&I | E118: Lighting | G118: per fixture | H118: 180 | I118: IL TRM v5 vol2 | J118: 378-379 (blend between replacement of T8, T12, and T5HOs) | K118: =ROUND((AF118-AB118)/1000*U118*AS118,4) -> 175.005 | L118: Calculated Value | N118: =(AF118-AB118)/1000*AW118 -> 0.052993275 | O118: 0.75 | P118: Indiana TRM v1 | Q118: 171-172 (portfolio weighted average) | R118: =ROUND(N118*O118,4) -> 0.0397 | S118: Calculated Value | U118: 4128 | V118: Indiana TRM v1 | W118: 171-172 (portfolio weighted average) | X118: 12 | Y118: IL TRM v6 vol2 (calculated value based on lifetime hours) | Z118: 372-374 | AA118: LED 1X4 Troffer or Linear Ambient Fixtures | AB118: 42 | AC118: Program Tracking Data | AE118: 1X4 Troffer or Linear Ambient T8, or T5/T5HO | AF118: 77.32885 | AG118: IL TRM v6 vol2 | AH118: 370-371,414 (Average of T8, T5, and T5HO fixtures) | AI118: =ROUND((AF118-AB118)/1000*U118*AS118,4) | AJ118: =ROUND(N118*O118,4) | AK118: IL TRM v6 vol2 | AL118: 364368 | AM118: 2020-01-01 | AN118: 2022-12-31 | AS118: 1.2 | AT118: Waste Heat Factor Energy | AU118: IL TRM v6 vol2 | AV118: 337-338 (portfolio weighted average) | AW118: 1.5 | AX118: Waste Heat Factor Demand | AY118: IL TRM v6 vol2 | AZ118: 337-338 (portfolio weighted average)
A119: Business Standard | B119: Interior LED 1X4 Troffer or Linear Ambient replacing T8, T12 or T5/T5HO fixture | C119: 206.4 | D119: Small C&I | E119: Lighting | G119: per fixture | H119: =AVERAGE(22,72,83) -> 59 | I119: IL TRM v10 Vol2 | J119: 564 | K119: =ROUND((AF119-AB119)/1000*U119*AS119,4) -> 94.2462 | L119: Calculated Value | N119: =(AF119-AB119)/1000*AW119 -> 0.03729488608 | O119: 0.66 | P119: PY2 portfolio weighted average | R119: =ROUND(N119*O119,4) -> 0.0246 | S119: Calculated Value | U119: 3088 | V119: IL TRM v10 Vol2 | W119: 533 | X119: =50000/U119 -> 16.19170984 | Y119: IL TRM v10 Vol2 (calculated value based on lifetime hours) | Z119: 566 | AA119: LED 1X4 Troffer or Linear Ambient Fixtures | AB119: 32 | AC119: PY2 portfolio weighted average | AE119: 1X4 Troffer or Linear Ambient T8, or T5/T5HO | AF119: 59.82007475 | AG119: IL TRM v10 Vol2 | AH119: 564, 612(Average of T8, T5, and T5HO fixtures) | AI119: =ROUND((AF119-AB119)/1000*U119*AS119,4) | AJ119: =ROUND(N119*O119,4) | AK119: IL TRM v10 Vol2 | AL119: 556561 | AM119: 2023-01-01 | AS119: 1.097054147 | AT119: Waste Heat Factor Energy | AU119: PY2 portfolio weighted average | AW119: 1.340574618 | AX119: Waste Heat Factor Demand | AY119: PY2 portfolio weighted average
A120: Business Standard | B120: Interior LED 2X4 Troffer or Linear Ambient replacing T8, T12 or T5/T5HO fixture | C120: 207.2 | D120: Small C&I | E120: Lighting | G120: per fixture | H120: 170 | I120: IL TRM v5 vol2 | J120: 378-379 (blend between replacement of T8, T12, and T5HOs) | K120: =ROUND((AF120-AB120)/1000*U120*AS120,4) -> 257.8703 | L120: Calculated Value | N120: =(AF120-AB120)/1000*AW120 -> 0.07808572437 | O120: 0.75 | P120: Indiana TRM v1 | Q120: 171-172 (portfolio weighted average) | R120: =ROUND(N120*O120,4) -> 0.0586 | S120: Calculated Value | U120: 4128 | V120: Indiana TRM v1 | W120: 171-172 (portfolio weighted average) | X120: 12 | Y120: IL TRM v6 vol2 (calculated value based on lifetime hours) | Z120: 372-374 | AA120: LED 2X4 Troffer or Linear Ambient replacing T8, T12 or T5/T5HO fixture | AB120: 46 | AC120: Program Tracking Data | AE120: 2X4 Troffer or Linear Ambient T8, or T5/T5HO | AF120: 98.05714958 | AG120: IL TRM v6 vol2 | AH120: 370-371,414 (Average of 3 lamp T8 and T5 fixtures, and 2 lamp T5HO fixtures) | AI120: =ROUND((AF120-AB120)/1000*U120*AS120,4) | AJ120: =ROUND(N120*O120,4) | AK120: IL TRM v6 vol2 | AL120: 364368 | AM120: 2020-01-01 | AN120: 2022-12-31 | AS120: 1.2 | AT120: Waste Heat Factor Energy | AU120: IL TRM v6 vol2 | AV120: 337-338 (portfolio weighted average) | AW120: 1.5 | AX120: Waste Heat Factor Demand | AY120: IL TRM v6 vol2 | AZ120: 337-338 (portfolio weighted average)
A121: Business Standard | B121: Interior LED 2X4 Troffer or Linear Ambient replacing T8, T12 or T5/T5HO fixture | C121: 207.3 | D121: Small C&I | E121: Lighting | G121: per fixture | H121: =AVERAGE(55,76,104) -> 78.33333333 | I121: IL TRM v10 Vol2 | J121: 564 | K121: =ROUND((AF121-AB121)/1000*U121*AS121,4) -> 267.3072 | L121: Calculated Value | N121: =(AF121-AB121)/1000*AW121 -> 0.1008141764 | O121: 0.67 | P121: PY2 portfolio weighted average | R121: =ROUND(N121*O121,4) -> 0.0675 | S121: Calculated Value | U121: 3088 | V121: IL TRM v10 Vol2 | W121: 533 | X121: =50000/U121 -> 16.19170984 | Y121: IL TRM v10 Vol2 (calculated value based on lifetime hours) | Z121: 566 | AA121: LED 2X4 Troffer or Linear Ambient replacing T8, T12 or T5/T5HO fixture | AB121: 70 | AC121: PY2 portfolio weighted average | AE121: 2X4 Troffer or Linear Ambient T8, or T5/T5HO | AF121: 149.7992451 | AG121: IL TRM v10 Vol2 | AH121: 564, 612(Average of T8, T5, and T5HO fixtures) | AI121: =ROUND((AF121-AB121)/1000*U121*AS121,4) | AJ121: =ROUND(N121*O121,4) | AK121: IL TRM v10 Vol2 | AL121: 556561 | AM121: 2023-01-01 | AS121: 1.084762333 | AT121: Waste Heat Factor Energy | AU121: PY2 portfolio weighted average | AW121: 1.263347495 | AX121: Waste Heat Factor Demand | AY121: PY2 portfolio weighted average
A122: Business Standard | B122: Interior LED 2X2 Troffer or Linear Ambient replacing T8, T12 or T5/T5HO fixture | C122: 208.3 | D122: Small C&I | E122: Lighting | G122: per fixture | H122: 155 | I122: IL TRM v5 vol2 | J122: 378-379 (blend between replacement of T8, T12, and T5HOs) | K122: =ROUND((AF122-AB122)/1000*U122*AS122,4) -> 224.541 | L122: Calculated Value | N122: =(AF122-AB122)/1000*AW122 -> 0.067993275 | O122: 0.75 | P122: Indiana TRM v1 | Q122: 171-172 (portfolio weighted average) | R122: =ROUND(N122*O122,4) -> 0.051 | S122: Calculated Value | U122: 4128 | V122: Indiana TRM v1 | W122: 171-172 (portfolio weighted average) | X122: 12 | Y122: IL TRM v6 vol2 (calculated value based on lifetime hours) | Z122: 372-374 | AA122: LED 2X2 Troffer or Linear Ambient replacing T8, T12 or T5/T5HO fixture | AB122: 32 | AC122: Program Tracking Data | AE122: 2X2 Troffer or Linear Ambient T8 or T5/T5HO | AF122: 77.32885 | AG122: IL TRM v6 vol2 | AH122: 370-371,414 (Average of T8, T5, and T5HO fixtures) | AI122: =ROUND((AF122-AB122)/1000*U122*AS122,4) | AJ122: =ROUND(N122*O122,4) | AK122: IL TRM v6 vol2 | AL122: 364368 | AM122: 2020-01-01 | AN122: 2022-12-31 | AS122: 1.2 | AT122: Waste Heat Factor Energy | AU122: IL TRM v6 vol2 | AV122: 337-338 (portfolio weighted average) | AW122: 1.5 | AX122: Waste Heat Factor Demand | AY122: IL TRM v6 vol2 | AZ122: 337-338 (portfolio weighted average)
A123: Business Standard | B123: Interior LED 2X2 Troffer or Linear Ambient replacing T8, T12 or T5/T5HO fixture | C123: 208.4 | D123: Small C&I | E123: Lighting | G123: per fixture | H123: =AVERAGE(53,69) -> 61 | I123: IL TRM v10 Vol2 | J123: 564 | K123: =ROUND((AF123-AB123)/1000*U123*AS123,4) -> 69.7121 | L123: Calculated Value | N123: =(AF123-AB123)/1000*AW123 -> 0.02662284899 | O123: 0.7 | P123: PY2 portfolio weighted average | R123: =ROUND(N123*O123,4) -> 0.0186 | S123: Calculated Value | U123: 3088 | V123: IL TRM v10 Vol2 | W123: 533 | X123: =50000/U123 -> 16.19170984 | Y123: IL TRM v10 Vol2 (calculated value based on lifetime hours) | Z123: 566 | AA123: LED 2X2 Troffer or Linear Ambient replacing T8, T12 or T5/T5HO fixture | AB123: 30 | AC123: PY2 portfolio weighted average | AE123: 2X2 Troffer or Linear Ambient T8 or T5/T5HO | AF123: 50.35558751 | AG123: IL TRM v10 Vol2 | AH123: 564, 612(Average of T8, T5, and T5HO fixtures) | AI123: =ROUND((AF123-AB123)/1000*U123*AS123,4) | AJ123: =ROUND(N123*O123,4) | AK123: IL TRM v10 Vol2 | AL123: 556561 | AM123: 2023-01-01 | AS123: 1.109039469 | AT123: Waste Heat Factor Energy | AU123: PY2 portfolio weighted average | AW123: 1.307889 | AX123: Waste Heat Factor Demand | AY123: PY2 portfolio weighted average
A124: Business Standard | B124: LED Refrig Case Lights w/Doors 4ft 5ft or 6ft repl Fluor Refrig Case Lights w/Doors 4ft 5ft or 6ft | C124: 209.3 | D124: Small C&I | E124: Lighting | G124: per fixture | H124: 230 | I124: Program Tracking Data | K124: =ROUND((AF124-AB124)/1000*U124*AS124,4) -> 710.4229 | L124: Calculated Value | N124: =(AF124-AB124)/1000*AW124 -> 0.114492 | O124: 0.92 | P124: IL TRM v6 vol2 | Q124: 337-338 (portfolio weighted average) | R124: =ROUND(N124*O124,4) -> 0.1053 | S124: Calculated Value | U124: 6205 | V124: IL TRM v5 vol2 | W124: 341 | X124: 8 | Y124: IL TRM v6 vol2 (calculated value based on lifetime hours) | Z124: 372-374 | AA124: LED Refrigerated (Medium Temp) Case Light Fixtures (4, 5, and 6-foot) | AB124: 20.8 | AC124: Program Tracking Data | AE124: Linear Fluorescent T8 Fixtures | AF124: 102 | AG124: IL TRM v6 vol2 | AH124: 370-372 (portfolio weighted average) | AI124: =ROUND((AF124-AB124)/1000*U124*AS124,4) | AJ124: =ROUND(N124*O124,4) | AK124: IL TRM v6 vol2 | AL124: 364368 | AM124: 2020-01-01 | AN124: 2022-12-31 | AS124: 1.41 | AT124: Waste Heat Factor Energy | AU124: IL TRM v6 vol2 | AV124: 337-338 (portfolio weighted average) | AW124: 1.41 | AX124: Waste Heat Factor Demand | AY124: IL TRM v6 vol2 | AZ124: 337-338 (portfolio weighted average)
A125: Business Standard | B125: LED Refrig Case Lights w/Doors 4ft 5ft or 6ft repl Fluor Refrig Case Lights w/Doors 4ft 5ft or 6ft | C125: 209.4 | D125: Small C&I | E125: Lighting | G125: per Fixture | H125: 230 | I125: PY1 Tracking data | K125: =ROUND((AF125-AB125)/1000*U125*AS125,4) -> 621.8816 | L125: Calculated Value | N125: =(AF125-AB125)/1000*AW125 -> 0.104748 | O125: 0.69 | P125: PY2 portfolio weighted average | R125: =ROUND(N125*O125,4) -> 0.0723 | S125: Calculated Value | U125: 5802 | V125: IL TRM v10 Vol2 | W125: 533 | X125: =50000/U125 -> 8.617718028 | Y125: IL TRM v10 Vol2 (calculated value based on lifetime hours) | Z125: 566 | AA125: LED Refrigerated (Medium Temp) Case Light Fixtures (4, 5, and 6-foot) | AB125: 20.8 | AC125: PY1 Tracking Data | AE125: Linear Fluorescent T8 Fixtures | AF125: 102 | AG125: IL TRM v6 vol2 | AH125: 370-372 (portfolio weighted average) | AI125: =ROUND((AF125-AB125)/1000*U125*AS125,4) | AJ125: =ROUND(N125*O125,4) | AK125: IL TRM v10 Vol2 | AL125: 556561 | AM125: 2023-01-01 | AS125: 1.32 | AT125: Waste Heat Factor Energy | AU125: PY2 portfolio weighted average | AW125: 1.29 | AX125: Waste Heat Factor Demand | AY125: PY2 portfolio weighted average
A126: Business Standard | B126: LED Freezer Case Lights w/Doors 4ft 5ft or 6ft repl Fluor Frezer Case Lights w/Doors 4ft 5ft or 6ft | C126: 210.3 | D126: Small C&I | E126: Lighting | G126: per fixture | H126: 230 | I126: Program Tracking Data | K126: =ROUND((AF126-AB126)/1000*U126*AS126,4) -> 761.1301 | L126: Calculated Value | N126: 0.122664 | O126: 0.92 | P126: IL TRM v6 vol2 | Q126: 337-338 (portfolio weighted average) | R126: =ROUND(N126*O126,4) -> 0.1129 | S126: Calculated Value | U126: 6205 | V126: IL TRM v5 vol2 | W126: 341 | X126: 8 | Y126: IL TRM v6 vol2 (calculated value based on lifetime hours) | Z126: 370-372 | AA126: LED Freezer (Low Temp) Case Light Fixtures (4, 5, and 6-foot) | AB126: 21.3 | AC126: Program Tracking Data | AE126: Linear Fluorescent T8 Fixtures | AF126: 102 | AG126: IL TRM v6 vol2 | AH126: 370-372 (portfolio weighted average) | AI126: =ROUND((AF126-AB126)/1000*U126*AS126,4) | AJ126: =ROUND(N126*O126,4) | AK126: IL TRM v6 vol2 | AL126: 364368 | AM126: 2020-01-01 | AN126: 2022-12-31 | AS126: 1.52 | AT126: Waste Heat Factor Energy | AU126: IL TRM v6 vol2 | AV126: 337-338 (portfolio weighted average) | AW126: 1.52 | AX126: Waste Heat Factor Demand | AY126: IL TRM v6 vol2 | AZ126: 337-338 (portfolio weighted average)
A127: Business Standard | B127: LED Freezer Case Lights w/Doors 4ft 5ft or 6ft repl Fluor Frezer Case Lights w/Doors 4ft 5ft or 6ft | C127: 210.4 | D127: Small C&I | E127: Lighting | G127: per fixture | H127: 230 | I127: PY1 Tracking data | K127: =ROUND((AF127-AB127)/1000*U127*AS127,4) -> 761.1301 | L127: Calculated Value | N127: 0.122664 | O127: 0.92 | P127: PY2 portfolio weighted average | R127: =ROUND(N127*O127,4) -> 0.1129 | S127: Calculated Value | U127: 6205 | V127: Evergy Logger Verified HOU weighted by verified program savings | X127: =50000/U127 -> 8.058017728 | Y127: IL TRM v10 Vol2 (calculated value based on lifetime hours) | Z127: 566 | AA127: LED Freezer (Low Temp) Case Light Fixtures (4, 5, and 6-foot) | AB127: 21.3 | AC127: PY1 Tracking Data | AE127: Linear Fluorescent T8 Fixtures | AF127: 102 | AG127: IL TRM v6 vol2 | AH127: 370-372 (portfolio weighted average) | AI127: =ROUND((AF127-AB127)/1000*U127*AS127,4) | AJ127: =ROUND(N127*O127,4) | AK127: IL TRM v10 Vol2 | AL127: 556561 | AM127: 2023-01-01 | AS127: 1.52 | AT127: Waste Heat Factor Energy | AU127: PY2 portfolio weighted average | AW127: 1.52 | AX127: Waste Heat Factor Demand | AY127: PY2 portfolio weighted average
A128: Business Standard | B128: Interior LED Downlight or Retrofit Kit replacing 45-60W Fixture | C128: 211.3 | D128: Small C&I | E128: Lighting | G128: per fixture | H128: 27 | I128: IL TRM v6 vol2 | J128: 370 | K128: =ROUND((AF128-AB128)/1000*U128*AS128,4) -> 199.9537 | L128: Calculated Value | N128: 0.06191 | O128: 0.7 | P128: Indiana TRM v1 | Q128: 171-172 (portfolio weighted average) | R128: =ROUND(N128*O128,4) -> 0.0433 | S128: Calculated Value | U128: 3933 | V128: Indiana TRM v1 | W128: 171-172 (portfolio weighted average) | X128: 13 | Y128: IL TRM v6 vol2 (calculated value based on lifetime hours) | Z128: 372-374 | AA128: LED Downlight or Retrofit Kit ≤ 13W | AB128: 11 | AC128: Program Tracking Data | AE128: Incandescent and Halogen Downlights < 1000 lumens | AF128: 52 | AH128: Midpoint Value | AI128: =ROUND((AF128-AB128)/1000*U128*AS128,4) | AJ128: =ROUND(N128*O128,4) | AK128: IL TRM v6 vol2 | AL128: 364368 | AM128: 2020-01-01 | AS128: 1.24 | AT128: Waste Heat Factor Energy | AU128: IL TRM v6 vol2 | AV128: 337-338 (portfolio weighted average) | AW128: 1.51 | AX128: Waste Heat Factor Demand | AY128: IL TRM v6 vol2 | AZ128: 337-338 (portfolio weighted average)
A129: Business Standard | B129: Interior LED Downlight or Retrofit Kit replacing 61-100W Fixture | C129: 212.3 | D129: Small C&I | E129: Lighting | G129: per fixture | H129: 27 | I129: IL TRM v6 vol2 | J129: 370 | K129: =ROUND((AF129-AB129)/1000*U129*AS129,4) -> 302.369 | L129: Calculated Value | N129: 0.09362 | O129: 0.7 | P129: Indiana TRM v1 | Q129: 171-172 (portfolio weighted average) | R129: =ROUND(N129*O129,4) -> 0.0655 | S129: Calculated Value | U129: 3933 | V129: Indiana TRM v1 | W129: 171-172 (portfolio weighted average) | X129: 13 | Y129: IL TRM v6 vol2 (calculated value based on lifetime hours) | Z129: 372-374 | AA129: LED Downlight or Retrofit Kit 14 to 21W | AB129: 18 | AC129: Program Tracking Data | AE129: Incandescent and Halogen Downlights 1000 to 2000 lumens | AF129: 80 | AH129: Midpoint Value | AI129: =ROUND((AF129-AB129)/1000*U129*AS129,4) | AJ129: =ROUND(N129*O129,4) | AK129: IL TRM v6 vol2 | AL129: 364368 | AM129: 2020-01-01 | AS129: 1.24 | AT129: Waste Heat Factor Energy | AU129: IL TRM v6 vol2 | AV129: 337-338 (portfolio weighted average) | AW129: 1.51 | AX129: Waste Heat Factor Demand | AY129: IL TRM v6 vol2 | AZ129: 337-338 (portfolio weighted average)
A130: Business Standard | B130: Interior LED Downlight or Retrofit Kit replacing 101-155W Fixture | C130: 213.3 | D130: Small C&I | E130: Lighting | G130: per fixture | H130: 27 | I130: IL TRM v6 vol2 | J130: 370 | K130: =ROUND((AF130-AB130)/1000*U130*AS130,4) -> 512.0766 | L130: Calculated Value | N130: 0.15855 | O130: 0.7 | P130: Indiana TRM v1 | Q130: 171-172 (portfolio weighted average) | R130: =ROUND(N130*O130,4) -> 0.111 | S130: Calculated Value | U130: 3933 | V130: Indiana TRM v1 | W130: 171-172 (portfolio weighted average) | X130: 13 | Y130: IL TRM v6 vol2 (calculated value based on lifetime hours) | Z130: 372-374 | AA130: LED Downlight or Retrofit Kit ≥ 22W | AB130: 23 | AC130: Program Tracking Data | AE130: Incandescent, HID and Halogen Downlights > 2000 lumens | AF130: 128 | AH130: Midpoint Value | AI130: =ROUND((AF130-AB130)/1000*U130*AS130,4) | AJ130: =ROUND(N130*O130,4) | AK130: IL TRM v6 vol2 | AL130: 364368 | AM130: 2020-01-01 | AS130: 1.24 | AT130: Waste Heat Factor Energy | AU130: IL TRM v6 vol2 | AV130: 337-338 (portfolio weighted average) | AW130: 1.51 | AX130: Waste Heat Factor Demand | AY130: IL TRM v6 vol2 | AZ130: 337-338 (portfolio weighted average)
A131: Business Standard | B131: LED Low Bay Fixture replacing 150W-300W fixture | C131: 214.3 | D131: Small C&I | E131: Lighting | G131: per fixture | H131: 305 | I131: IL TRM v5 vol2 | J131: 379 | K131: =ROUND((AF131-AB131)/1000*U131*AS131,4) -> 668.0855 | L131: Calculated Value | N131: 0.14539 | O131: 0.83 | P131: IL TRM v6 vol2 | Q131: 337-338 (portfolio weighted average) | R131: =ROUND(N131*O131,4) -> 0.1207 | S131: Calculated Value | U131: 4367 | V131: IL TRM v6 vol2 | W131: 337-338 (portfolio weighted average) | X131: 11 | Y131: IL TRM v6 vol2 (calculated value based on lifetime hours) | Z131: 372-374 | AA131: LED Low Bay (watts) | AB131: 116.5 | AC131: Program Tracking Data | AE131: Pulse Start Metal Halide (watts) | AF131: 225 | AH131: Midpoint Value | AI131: =ROUND((AF131-AB131)/1000*U131*AS131,4) | AJ131: =ROUND(N131*O131,4) | AK131: IL TRM v5 vol2 | AL131: 370375 | AM131: 2020-01-01 | AN131: 2022-12-31 | AS131: 1.41 | AT131: Waste Heat Factor Energy | AU131: IL TRM v6 vol2 | AV131: 337-338 (portfolio weighted average) | AW131: 1.34 | AX131: Waste Heat Factor Demand | AY131: IL TRM v6 vol2 | AZ131: 337-338 (portfolio weighted average)
A132: Business Standard | B132: LED Low Bay Fixture replacing 150W-300W fixture | C132: 214.4 | D132: Small C&I | E132: Lighting | G132: per fixture | H132: =AVERAGE(44,137,202) -> 127.6666667 | I132: IL TRM v10 Vol2 | J132: 565 | K132: =ROUND((AF132-AB132)/1000*U132*AS132,4) -> 627.983 | L132: Calculated Value | N132: 0.14539 | O132: 0.66 | P132: PY2 portfolio weighted average | R132: =ROUND(N132*O132,4) -> 0.096 | S132: Calculated Value | U132: 3869.238309 | V132: PY2 portfolio weighted average | X132: =50000/U132 -> 12.92244003 | Y132: IL TRM v10 Vol2 (calculated value based on lifetime hours) | Z132: 566 | AA132: LED Low Bay (watts) | AB132: 108 | AC132: PY2 portfolio weighted average | AE132: Pulse Start Metal Halide (watts) | AF132: 257 | AG132: PY2 portfolio weihgted average | AI132: =ROUND((AF132-AB132)/1000*U132*AS132,4) | AJ132: =ROUND(N132*O132,4) | AK132: IL TRM v10 Vol2 | AL132: 556561 | AM132: 2023-01-01 | AS132: 1.089271576 | AT132: Waste Heat Factor Energy | AU132: PY2 portfolio weighted average | AW132: 1.334865196 | AX132: Waste Heat Factor Demand | AY132: PY2 portfolio weighted average
A133: Business Standard | B133: LED Low/High Bay Fixture replacing 301W-450W fixture | C133: 215.3 | D133: Small C&I | E133: Lighting | G133: per fixture | H133: 330 | I133: IL TRM v5 vol2 | J133: 379 (portfolio weighted blend) | K133: =ROUND((AF133-AB133)/1000*U133*AS133,4) -> 1234.5727 | L133: Calculated Value | N133: 0.26867 | O133: 0.83 | P133: IL TRM v6 vol2 | Q133: 337-338 (portfolio weighted average) | R133: =ROUND(N133*O133,4) -> 0.223 | S133: Calculated Value | U133: 4367 | V133: IL TRM v6 vol2 | W133: 337-338 (portfolio weighted average) | X133: 11 | Y133: IL TRM v6 vol2 (calculated value based on lifetime hours) | Z133: 372-374 | AA133: LED High/Low Bay (watts) | AB133: 174.5 | AC133: Program Tracking Data | AE133: Pulse Start Metal Halide (watts) | AF133: 375 | AH133: Midpoint Value | AI133: =ROUND((AF133-AB133)/1000*U133*AS133,4) | AJ133: =ROUND(N133*O133,4) | AK133: IL TRM v5 vol2 | AL133: 370375 | AM133: 2020-01-01 | AN133: 2022-12-31 | AS133: 1.41 | AT133: Waste Heat Factor Energy | AU133: IL TRM v6 vol2 | AV133: 337-338 (portfolio weighted average) | AW133: 1.34 | AX133: Waste Heat Factor Demand | AY133: IL TRM v6 vol2 | AZ133: 337-338 (portfolio weighted average)
A134: Business Standard | B134: LED Low/High Bay Fixture replacing 301W-450W fixture | C134: 215.4 | D134: Small C&I | E134: Lighting | G134: per fixture | H134: =AVERAGE(202,264) -> 233 | I134: IL TRM v10 Vol2 | J134: 565 | K134: =ROUND((AF134-AB134)/1000*U134*AS134,4) -> 1228.7477 | L134: Calculated Value | N134: 0.26867 | O134: 0.6 | P134: PY2 portfolio weighted average | R134: =ROUND(N134*O134,4) -> 0.1612 | S134: Calculated Value | U134: 3951.722672 | V134: PY2 portfolio weighted average | X134: =50000/U134 -> 12.65270975 | Y134: IL TRM v10 Vol2 (calculated value based on lifetime hours) | Z134: 566 | AA134: LED High/Low Bay (watts) | AB134: 157.3 | AC134: PY2 portfolio weighted average | AE134: Pulse Start Metal Halide (watts) | AF134: 455 | AG134: PY2 portfolio weihgted average | AI134: =ROUND((AF134-AB134)/1000*U134*AS134,4) | AJ134: =ROUND(N134*O134,4) | AK134: IL TRM v10 Vol2 | AL134: 556561 | AM134: 2023-01-01 | AS134: 1.044473483 | AT134: Waste Heat Factor Energy | AU134: PY2 portfolio weighted average | AW134: 1.210544513 | AX134: Waste Heat Factor Demand | AY134: PY2 portfolio weighted average
A135: Business Standard | B135: LED High Bay Fixture replacing 451W - 750W fixture | C135: 216.3 | D135: Small C&I | E135: Lighting | G135: per fixture | H135: 430 | I135: IL TRM v5 vol2 | J135: 379 | K135: =ROUND((AF135-AB135)/1000*U135*AS135,4) -> 2567.0492 | L135: Calculated Value | N135: 0.558646 | O135: 0.83 | P135: IL TRM v6 vol2 | Q135: 337-338 (portfolio weighted average) | R135: =ROUND(N135*O135,4) -> 0.4637 | S135: Calculated Value | U135: 4367 | V135: IL TRM v6 vol2 | W135: 337-338 (portfolio weighted average) | X135: 11 | Y135: IL TRM v6 vol2 (calculated value based on lifetime hours) | Z135: 370-372 | AA135: LED High Bay (watts) | AB135: 183.1 | AC135: Program Tracking Data | AE135: Pulse Start Metal Halide (watts) | AF135: 600 | AH135: Midpoint Value | AI135: =ROUND((AF135-AB135)/1000*U135*AS135,4) | AJ135: =ROUND(N135*O135,4) | AK135: IL TRM v5 vol2 | AL135: 370375 | AM135: 2020-01-01 | AN135: 2022-12-31 | AS135: 1.41 | AT135: Waste Heat Factor Energy | AU135: IL TRM v6 vol2 | AV135: 337-338 (portfolio weighted average) | AW135: 1.34 | AX135: Waste Heat Factor Demand | AY135: IL TRM v6 vol2 | AZ135: 337-338 (portfolio weighted average)
A136: Business Standard | B136: LED High Bay Fixture replacing 451W - 750W fixture | C136: 216.4 | D136: Small C&I | E136: Lighting | G136: per fixture | H136: 264 | I136: PY2 portfolio weighted average | J136: 565 | K136: =ROUND((AF136-AB136)/1000*U136*AS136,4) -> 2235.0731 | L136: Calculated Value | N136: 0.558646 | O136: 1 | P136: PY2 portfolio weighted average | R136: =ROUND(N136*O136,4) -> 0.5586 | S136: Calculated Value | U136: 3614.370606 | V136: Assumed similar to Primary Key 217.4 due to lack of data | X136: =50000/U136 -> 13.83366717 | Y136: IL TRM v10 Vol2 (calculated value based on lifetime hours) | Z136: 566 | AA136: LED High Bay (watts) | AB136: 150 | AC136: PY2 portfolio weighted average | AE136: Pulse Start Metal Halide (watts) | AF136: 750 | AG136: PY2 portfolio weihgted average | AI136: =ROUND((AF136-AB136)/1000*U136*AS136,4) | AJ136: =ROUND(N136*O136,4) | AK136: IL TRM v10 Vol2 | AL136: 556561 | AM136: 2023-01-01 | AS136: 1.030641892 | AT136: Waste Heat Factor Energy | AU136: Assumed similar to Primary Key 217.4 due to lack of data | AW136: 1.18652027 | AX136: Waste Heat Factor Demand | AY136: Assumed similar to Primary Key 217.4 due to lack of data
A137: Business Standard | B137: LED High Bay fixture replacing > 750W fixture | C137: 217.3 | D137: Small C&I | E137: Lighting | G137: per fixture | H137: 725 | I137: IL TRM v5 vol2 | J137: 379 | K137: =ROUND((AF137-AB137)/1000*U137*AS137,4) -> 5131.6355 | L137: Calculated Value | N137: 1.116756 | O137: 0.83 | P137: IL TRM v6 vol2 | Q137: 337-338 (portfolio weighted average) | R137: =ROUND(N137*O137,4) -> 0.9269 | S137: Calculated Value | U137: 4367 | V137: IL TRM v6 vol2 | W137: 337-338 (portfolio weighted average) | X137: 11 | Y137: IL TRM v6 vol2 (calculated value based on lifetime hours) | Z137: 370-372 | AA137: LED High Bay (watts) | AB137: 244.6 | AC137: Program Tracking Data | AE137: Pulse Start Metal Halide (watts) | AF137: 1078 | AG137: IL TRM v6 vol2 | AH137: 370-372 (portfolio weighted average) | AI137: =ROUND((AF137-AB137)/1000*U137*AS137,4) | AJ137: =ROUND(N137*O137,4) | AK137: IL TRM v5 vol2 | AL137: 370375 | AM137: 2020-01-01 | AN137: 2022-12-31 | AS137: 1.41 | AT137: Waste Heat Factor Energy | AU137: IL TRM v6 vol2 | AV137: 337-338 (portfolio weighted average) | AW137: 1.34 | AX137: Waste Heat Factor Demand | AY137: IL TRM v6 vol2 | AZ137: 337-338 (portfolio weighted average)
A138: Business Standard | B138: LED High Bay fixture replacing > 750W fixture | C138: 217.4 | D138: Small C&I | E138: Lighting | G138: per fixture | H138: =AVERAGE(400,425,550) -> 458.3333333 | I138: PY2 portfolio weighted average | J138: 565 | K138: =ROUND((AF138-AB138)/1000*U138*AS138,4) -> 3166.3535 | L138: Calculated Value | N138: 1.116756 | O138: 0.56 | P138: PY2 portfolio weighted average | R138: =ROUND(N138*O138,4) -> 0.6254 | S138: Calculated Value | U138: 3614.370606 | V138: PY2 portfolio weighted average | X138: =50000/U138 -> 13.83366717 | Y138: IL TRM v10 Vol2 (calculated value based on lifetime hours) | Z138: 566 | AA138: LED High Bay (watts) | AB138: 283 | AC138: PY2 portfolio weighted average | AE138: Pulse Start Metal Halide (watts) | AF138: 1133 | AG138: PY2 portfolio weihgted average | AI138: =ROUND((AF138-AB138)/1000*U138*AS138,4) | AJ138: =ROUND(N138*O138,4) | AK138: IL TRM v10 Vol2 | AL138: 556561 | AM138: 2023-01-01 | AS138: 1.030641892 | AT138: Waste Heat Factor Energy | AU138: PY2 portfolio weighted average | AW138: 1.18652027 | AX138: Waste Heat Factor Demand | AY138: PY2 portfolio weighted average
A139: Business Standard | B139: 28W - 4 ft fluorescent T8 lamp | C139: 218.2 | D139: Small C&I | E139: Lighting | G139: per lamp | H139: 1 | I139: IL TRM v5 vol2 | J139: 364 | K139: =ROUND((AF139-AB139)/1000*U139*AS139,4) -> 22.058 | L139: Calculated Value | N139: 0.00536 | O139: 0.72 | P139: IL TRM v6 vol2 | Q139: 337-338 (portfolio weighted average) | R139: =ROUND(N139*O139,4) -> 0.0039 | S139: Calculated Value | U139: 3911 | V139: IL TRM v6 vol2 | W139: 337-338 (portfolio weighted average) | X139: 15 | Y139: IL TRM v5 vol2 | Z139: 356 | AA139: 28W - 4 ft fluorescent T8 lamp | AB139: 28 | AC139: Program Tracking Data | AE139: 32W 4 ft fluorescent T8 lamp | AF139: 32 | AG139: IL TRM v6 vol2 | AH139: 414 | AI139: =ROUND((AF139-AB139)/1000*U139*AS139,4) | AJ139: =ROUND(N139*O139,4) | AK139: IL TRM v5 vol2 | AL139: 357359 | AM139: 2020-01-01 | AS139: 1.41 | AT139: Waste Heat Factor Energy | AU139: IL TRM v6 vol2 | AV139: 337-338 (portfolio weighted average) | AW139: 1.34 | AX139: Waste Heat Factor Demand | AY139: IL TRM v6 vol2 | AZ139: 337-338 (portfolio weighted average)
A140: Business Standard | B140: 25W - 4 ft fluorescent T8 lamp | C140: 219.2 | D140: Small C&I | E140: Lighting | G140: per lamp | H140: 2.5 | I140: IL TRM v5 vol2 | J140: 364 | K140: =ROUND((AF140-AB140)/1000*U140*AS140,4) -> 38.6016 | L140: Calculated Value | N140: 0.00938 | O140: 0.72 | P140: IL TRM v6 vol2 | Q140: 337-338 (portfolio weighted average) | R140: =ROUND(N140*O140,4) -> 0.0068 | S140: Calculated Value | U140: 3911 | V140: IL TRM v6 vol2 | W140: 337-338 (portfolio weighted average) | X140: 15 | Y140: IL TRM v5 vol2 | Z140: 356 | AA140: 25W - 4 ft fluorescent T8 lamp | AB140: 25 | AC140: Program Tracking Data | AE140: 32W 4 ft fluorescent T8 lamp | AF140: 32 | AG140: IL TRM v6 vol2 | AH140: 414 | AI140: =ROUND((AF140-AB140)/1000*U140*AS140,4) | AJ140: =ROUND(N140*O140,4) | AK140: IL TRM v5 vol2 | AL140: 357359 | AM140: 2020-01-01 | AS140: 1.41 | AT140: Waste Heat Factor Energy | AU140: IL TRM v6 vol2 | AV140: 337-338 (portfolio weighted average) | AW140: 1.34 | AX140: Waste Heat Factor Demand | AY140: IL TRM v6 vol2 | AZ140: 337-338 (portfolio weighted average)
A141: Business Standard | B141: 28W 4ft T8 Lamp Replacing 32W 4ft T8 Lamp | C141: 224.3 | D141: C&I | E141: Lighting | G141: per lamp | H141: 1 | I141: IL TRM v5 vol2 | J141: 364 | K141: =ROUND((AF141-AB141)/1000*U141*AS141,4) -> 22.058 | L141: Calculated Value | N141: 0.00536 | O141: 0.72 | P141: IL TRM v6 vol2 | Q141: 337-338 (portfolio weighted average) | R141: =ROUND(N141*O141,4) -> 0.0039 | S141: Calculated Value | U141: 3911 | V141: IL TRM v6 vol2 | W141: 337-338 (portfolio weighted average) | X141: 15 | Y141: IL TRM v5 vol2 | Z141: 356 | AA141: 28W - 4 ft fluorescent T8 lamp | AB141: 28 | AC141: Program Tracking Data | AE141: 32W 4 ft fluorescent T8 lamp | AF141: 32 | AG141: IL TRM v6 vol2 | AH141: 414 | AI141: =ROUND((AF141-AB141)/1000*U141*AS141,4) | AJ141: =ROUND(N141*O141,4) | AK141: IL TRM v5 vol2 | AL141: 357359 | AM141: 2020-01-01 | AS141: 1.41 | AT141: Waste Heat Factor Energy | AU141: IL TRM v6 vol2 | AV141: 337-338 (portfolio weighted average) | AW141: 1.34 | AX141: Waste Heat Factor Demand | AY141: IL TRM v6 vol2 | AZ141: 337-338 (portfolio weighted average)
A142: Business Standard | B142: 25W 4ft T8 Lamp Replacing 32W 4ft T8 Lamp | C142: 225.3 | D142: C&I | E142: Lighting | G142: per lamp | H142: 2.5 | I142: IL TRM v5 vol2 | J142: 364 | K142: =ROUND((AF142-AB142)/1000*U142*AS142,4) -> 38.6016 | L142: Calculated Value | N142: 0.00938 | O142: 0.72 | P142: IL TRM v6 vol2 | Q142: 337-338 (portfolio weighted average) | R142: =ROUND(N142*O142,4) -> 0.0068 | S142: Calculated Value | U142: 3911 | V142: IL TRM v6 vol2 | W142: 337-338 (portfolio weighted average) | X142: 15 | Y142: IL TRM v5 vol2 | Z142: 356 | AA142: 25W - 4 ft fluorescent T8 lamp | AB142: 25 | AC142: Program Tracking Data | AE142: 32W 4 ft fluorescent T8 lamp | AF142: 32 | AG142: IL TRM v6 vol2 | AH142: 414 | AI142: =cellformula(K142) -> =ROUND((AF142-AB142)/1000*U142*AS142,4) | AJ142: =cellformula(R142) -> =ROUND(N142*O142,4) | AK142: IL TRM v5 vol2 | AL142: 357359 | AM142: 2020-01-01 | AS142: 1.41 | AT142: Waste Heat Factor Energy | AU142: IL TRM v6 vol2 | AV142: 337-338 (portfolio weighted average) | AW142: 1.34 | AX142: Waste Heat Factor Demand | AY142: IL TRM v6 vol2 | AZ142: 337-338 (portfolio weighted average)
A143: Business Standard | B143: LED low bay mogul screw-base lamp/retrofit kit replacing 150W - 300W fixture | C143: 226.3 | D143: C&I | E143: Lighting | G143: per fixture | H143: 100 | I143: IL TRM v6 vol2 | J143: 371 | K143: =ROUND((AF143-AB143)/1000*U143*AS143,4) -> 799.7584 | L143: Calculated Value | N143: =(AF143-AB143)/1000*AW143 -> 0.234564 | O143: 0.67 | P143: IL TRM v9 Unknown Value (aligns with portfolio weighted average of Evergy Logger Verified CF) | Q143: 471 | R143: =ROUND(N143*O143,4) -> 0.1572 | S143: Calculated Value | U143: 4129 | V143: Evergy Logger Verified HOU weighted by verified program savings | X143: 11 | Y143: IL TRM v6 vol2 (calculated value based on lifetime hours) | Z143: 373374 | AA143: LED Low Bay (watts) | AB143: 47.3 | AC143: Program Tracking Data | AE143: Pulse Start Metal Halide (watts) | AF143: 225 | AH143: Midpoint Value | AI143: =ROUND((AF143-AB143)/1000*U143*AS143,4) | AJ143: =ROUND(N143*O143,4) | AK143: IL TRM v6 vol2 | AL143: 364368 | AM143: 2022-01-01 | AN143: 2022-12-31 | AS143: 1.09 | AT143: Waste Heat Factor Energy | AU143: IL TRM v8 building specific values weighted by Evergy verified program savings | AV143: 430-432 (portfolio weighted average) | AW143: 1.32 | AX143: Waste Heat Factor_Demand | AY143: IL TRM v8 building specific values weighted by Evergy verified program savings | AZ143: 430-432 (portfolio weighted average)
A144: Business Standard | B144: LED low bay mogul screw-base lamp/retrofit kit replacing 150W - 300W fixture | C144: 226.4 | D144: C&I | E144: Lighting | G144: per fixture | H144: 100 | I144: IL TRM v6 vol2 | J144: 371 | K144: =ROUND((AF144-AB144)/1000*U144*AS144,4) -> 754.692 | L144: Calculated Value | N144: =(AF144-AB144)/1000*AW144 -> 0.2045380323 | O144: 0.72 | P144: PY2 portfolio weighted average | R144: =ROUND(N144*O144,4) -> 0.1473 | S144: Calculated Value | U144: 4349.963404 | V144: PY2 portfolio weighted average | X144: =50000/U144 -> 11.49434957 | Y144: IL TRM v10 Vol2 (calculated value based on lifetime hours) | Z144: 568 | AA144: LED Low Bay (watts) | AB144: 48 | AC144: PY2 portfolio weighted average | AE144: Pulse Start Metal Halide (watts) | AF144: 205 | AG144: PY2 portfolio weighted average | AH144: Midpoint Value | AI144: =ROUND((AF144-AB144)/1000*U144*AS144,4) | AJ144: =ROUND(N144*O144,4) | AK144: IL TRM v10 Vol2 | AL144: 556561 | AM144: 2023-01-01 | AS144: 1.105056518 | AT144: Waste Heat Factor Energy | AU144: PY2 portfolio weighted average | AW144: 1.302790014 | AX144: Waste Heat Factor_Demand | AY144: PY2 portfolio weighted average
A145: Business Standard | B145: LED low/high bay mogul screw-base lamp/retrofit kit replacing 301W - 450W fixture | C145: 227.3 | D145: C&I | E145: Lighting | G145: per fixture | H145: 150 | I145: IL TRM v6 vol2 | J145: 371 | K145: =ROUND((AF145-AB145)/1000*U145*AS145,4) -> 1145.4052 | L145: Calculated Value | N145: =(AF145-AB145)/1000*AW145 -> 0.33594 | O145: 0.67 | P145: IL TRM v9 Unknown Value (aligns with portfolio weighted average of Evergy Logger Verified CF) | Q145: 471 | R145: =ROUND(N145*O145,4) -> 0.2251 | S145: Calculated Value | U145: 4129 | V145: Evergy Logger Verified HOU weighted by verified program savings | X145: 11 | Y145: IL TRM v6 vol2 (calculated value based on lifetime hours) | Z145: 373374 | AA145: LED High/Low Bay (watts) | AB145: 120.5 | AC145: Program Tracking Data | AE145: Pulse Start Metal Halide (watts) | AF145: 375 | AH145: Midpoint Value | AI145: =ROUND((AF145-AB145)/1000*U145*AS145,4) | AJ145: =ROUND(N145*O145,4) | AK145: IL TRM v6 vol2 | AL145: 364368 | AM145: 2022-01-01 | AN145: 2022-12-31 | AS145: 1.09 | AT145: Waste Heat Factor Energy | AU145: IL TRM v8 building specific values weighted by Evergy verified program savings | AV145: 430-432 (portfolio weighted average) | AW145: 1.32 | AX145: Waste Heat Factor_Demand | AY145: IL TRM v8 building specific values weighted by Evergy verified program savings | AZ145: 430-432 (portfolio weighted average)
A146: Business Standard | B146: LED low/high bay mogul screw-base lamp/retrofit kit replacing 301W - 450W fixture | C146: 227.4 | D146: C&I | E146: Lighting | G146: per fixture | H146: 150 | I146: IL TRM v6 vol2 | J146: 371 | K146: =ROUND((AF146-AB146)/1000*U146*AS146,4) -> 1365.1292 | L146: Calculated Value | N146: =(AF146-AB146)/1000*AW146 -> 0.400738283 | O146: 0.61 | P146: PY2 portfolio weighted average | R146: =ROUND(N146*O146,4) -> 0.2445 | S146: Calculated Value | U146: 3962.307881 | V146: PY2 portfolio weighted average | X146: =50000/U146 -> 12.61890835 | Y146: IL TRM v10 Vol2 (calculated value based on lifetime hours) | Z146: 568 | AA146: LED High/Low Bay (watts) | AB146: 124 | AC146: PY2 portfolio weighted average | AE146: Pulse Start Metal Halide (watts) | AF146: 450 | AG146: PY2 portfolio weighted average | AH146: Midpoint Value | AI146: =ROUND((AF146-AB146)/1000*U146*AS146,4) | AJ146: =ROUND(N146*O146,4) | AK146: IL TRM v10 Vol2 | AL146: 556561 | AM146: 2023-01-01 | AS146: 1.056836818 | AT146: Waste Heat Factor Energy | AU146: PY2 portfolio weighted average | AW146: 1.229258537 | AX146: Waste Heat Factor_Demand | AY146: PY2 portfolio weighted average
A147: Business Standard | B147: LED high bay mogul screw-base lamp/retrofit kit replacing 451W - 750W fixture | C147: 228.3 | D147: C&I | E147: Lighting | G147: per fixture | H147: 200 | I147: IL TRM v6 vol2 | J147: 371 | K147: =ROUND((AF147-AB147)/1000*U147*AS147,4) -> 1620.2196 | L147: Calculated Value | N147: =(AF147-AB147)/1000*AW147 -> 0.4752 | O147: 0.67 | P147: IL TRM v9 Unknown Value (aligns with portfolio weighted average of Evergy Logger Verified CF) | Q147: 471 | R147: =ROUND(N147*O147,4) -> 0.3184 | S147: Calculated Value | U147: 4129 | V147: Evergy Logger Verified HOU weighted by verified program savings | X147: 11 | Y147: IL TRM v6 vol2 (calculated value based on lifetime hours) | Z147: 373374 | AA147: LED High Bay (watts) | AB147: 240 | AC147: Program Tracking Data | AE147: Pulse Start Metal Halide (watts) | AF147: 600 | AH147: Midpoint Value | AI147: =ROUND((AF147-AB147)/1000*U147*AS147,4) | AJ147: =ROUND(N147*O147,4) | AK147: IL TRM v6 vol2 | AL147: 364368 | AM147: 2022-01-01 | AN147: 2022-12-31 | AS147: 1.09 | AT147: Waste Heat Factor Energy | AU147: IL TRM v8 building specific values weighted by Evergy verified program savings | AV147: 430-432 (portfolio weighted average) | AW147: 1.32 | AX147: Waste Heat Factor_Demand | AY147: IL TRM v8 building specific values weighted by Evergy verified program savings | AZ147: 430-432 (portfolio weighted average)
A148: Business Standard | B148: LED high bay mogul screw-base lamp/retrofit kit replacing 451W - 750W fixture | C148: 228.4 | D148: C&I | E148: Lighting | G148: per fixture | H148: 200 | I148: IL TRM v6 vol2 | J148: 371 | K148: =ROUND((AF148-AB148)/1000*U148*AS148,4) -> 2460.1322 | L148: Calculated Value | N148: =(AF148-AB148)/1000*AW148 -> 0.7978641667 | O148: 0.69 | P148: PY2 portfolio weighted average | R148: =ROUND(N148*O148,4) -> 0.5505 | S148: Calculated Value | U148: 3635.578299 | V148: PY2 portfolio weighted average | X148: =50000/U148 -> 13.7529702 | Y148: IL TRM v10 Vol2 (calculated value based on lifetime hours) | Z148: 568 | AA148: LED High Bay (watts) | AB148: 192 | AC148: PY2 portfolio weighted average | AE148: Pulse Start Metal Halide (watts) | AF148: 803 | AG148: PY2 portfolio weighted average | AH148: Midpoint Value | AI148: =ROUND((AF148-AB148)/1000*U148*AS148,4) | AJ148: =ROUND(N148*O148,4) | AK148: IL TRM v10 Vol2 | AL148: 556561 | AM148: 2023-01-01 | AS148: 1.1075 | AT148: Waste Heat Factor Energy | AU148: PY2 portfolio weighted average | AW148: 1.305833333 | AX148: Waste Heat Factor_Demand | AY148: PY2 portfolio weighted average
A149: Business Standard | B149: LED high bay mogul screw-base lamp/retrofit kit replacing > 750W fixture | C149: 229.2 | D149: C&I | E149: Lighting | G149: per fixture | H149: 350 | I149: IL TRM v6 vol2 | J149: 371 | K149: =ROUND((AF149-AB149)/1000*U149*AS149,4) -> 3276.4441 | L149: Calculated Value | N149: =(AF149-AB149)/1000*AW149 -> 0.96096 | O149: 0.67 | P149: IL TRM v9 Unknown Value (aligns with portfolio weighted average of Evergy Logger Verified CF) | Q149: 471 | R149: =ROUND(N149*O149,4) -> 0.6438 | S149: Calculated Value | U149: 4129 | V149: Evergy Logger Verified HOU weighted by verified program savings | X149: 11 | Y149: IL TRM v6 vol2 (calculated value based on lifetime hours) | Z149: 373374 | AA149: LED High Bay (watts) | AB149: 350 | AC149: Program Tracking Data | AE149: Pulse Start Metal Halide (watts) | AF149: 1078 | AG149: IL TRM v6 vol2 | AH149: 370-372 (portfolio weighted average) | AI149: =ROUND((AF149-AB149)/1000*U149*AS149,4) | AJ149: =ROUND(N149*O149,4) | AK149: IL TRM v6 vol2 | AL149: 364368 | AM149: 2022-01-01 | AS149: 1.09 | AT149: Waste Heat Factor Energy | AU149: IL TRM v8 building specific values weighted by Evergy verified program savings | AV149: 430-432 (portfolio weighted average) | AW149: 1.32 | AX149: Waste Heat Factor_Demand | AY149: IL TRM v8 building specific values weighted by Evergy verified program savings | AZ149: 430-432 (portfolio weighted average)
A150: Business Standard | B150: LED low bay mogul screw-base lamp/retrofit kit replacing 150W - 300W fixture | C150: 230.2 | D150: Small C&I | E150: Lighting | G150: per fixture | H150: 100 | I150: IL TRM v6 vol2 | J150: 371 | K150: =ROUND((AF150-AB150)/1000*U150*AS150,4) -> 1073.247 | L150: Calculated Value | N150: =(AF150-AB150)/1000*AW150 -> 0.233562 | O150: 0.83 | P150: IL TRM v6 vol2 | Q150: 337-338 (portfolio weighted average) | R150: =ROUND(N150*O150,4) -> 0.1939 | S150: Calculated Value | U150: 4367 | V150: IL TRM v6 vol2 | W150: 337-338 (portfolio weighted average) | X150: 11 | Y150: IL TRM v6 vol2 (calculated value based on lifetime hours) | Z150: 373374 | AA150: LED Low Bay (watts) | AB150: 50.7 | AC150: Program Tracking Data | AE150: Pulse Start Metal Halide (watts) | AF150: 225 | AH150: Midpoint Value | AI150: =ROUND((AF150-AB150)/1000*U150*AS150,4) | AJ150: =ROUND(N150*O150,4) | AK150: IL TRM v6 vol2 | AL150: 364368 | AM150: 2020-01-01 | AN150: 2022-12-31 | AS150: 1.41 | AT150: Waste Heat Factor Energy | AU150: IL TRM v6 vol2 | AV150: 337-338 (portfolio weighted average) | AW150: 1.34 | AX150: Waste Heat Factor Demand | AY150: IL TRM v6 vol2 | AZ150: 337-338 (portfolio weighted average)
A151: Business Standard | B151: LED low bay mogul screw-base lamp/retrofit kit replacing 150W - 300W fixture | C151: 230.3 | D151: Small C&I | E151: Lighting | G151: per fixture | H151: 100 | I151: IL TRM v6 vol2 | J151: 371 | K151: =ROUND((AF151-AB151)/1000*U151*AS151,4) -> 754.692 | L151: Calculated Value | N151: =(AF151-AB151)/1000*AW151 -> 0.2045380323 | O151: 0.7172555112 | P151: PY2 portfolio weighted average | R151: =ROUND(N151*O151,4) -> 0.1467 | S151: Calculated Value | U151: 4349.963404 | V151: PY2 portfolio weighted average | X151: =50000/U151 -> 11.49434957 | Y151: IL TRM v10 Vol2 (calculated value based on lifetime hours) | Z151: 568 | AA151: LED Low Bay (watts) | AB151: 48 | AC151: PY2 portfolio weighted average | AE151: Pulse Start Metal Halide (watts) | AF151: 205 | AG151: PY2 portfolio weighted average | AH151: Midpoint Value | AI151: =ROUND((AF151-AB151)/1000*U151*AS151,4) | AJ151: =ROUND(N151*O151,4) | AK151: IL TRM v10 Vol2 | AL151: 556561 | AM151: 2023-01-01 | AS151: 1.105056518 | AT151: Waste Heat Factor Energy | AU151: PY2 portfolio weighted average | AW151: 1.302790014 | AX151: Waste Heat Factor Demand | AY151: PY2 portfolio weighted average
A152: Business Standard | B152: LED low/high bay mogul screw-base lamp/retrofit kit replacing 301W - 450W fixture | C152: 231.2 | D152: Small C&I | E152: Lighting | G152: per fixture | H152: 150 | I152: IL TRM v6 vol2 | J152: 371 | K152: =ROUND((AF152-AB152)/1000*U152*AS152,4) -> 1858.3244 | L152: Calculated Value | N152: =(AF152-AB152)/1000*AW152 -> 0.404412 | O152: 0.83 | P152: IL TRM v6 vol2 | Q152: 337-338 (portfolio weighted average) | R152: =ROUND(N152*O152,4) -> 0.3357 | S152: Calculated Value | U152: 4367 | V152: IL TRM v6 vol2 | W152: 337-338 (portfolio weighted average) | X152: 11 | Y152: IL TRM v6 vol2 (calculated value based on lifetime hours) | Z152: 373374 | AA152: LED High/Low Bay (watts) | AB152: 73.2 | AC152: Program Tracking Data | AE152: Pulse Start Metal Halide (watts) | AF152: 375 | AH152: Midpoint Value | AI152: =ROUND((AF152-AB152)/1000*U152*AS152,4) | AJ152: =ROUND(N152*O152,4) | AK152: IL TRM v6 vol2 | AL152: 364368 | AM152: 2020-01-01 | AN152: 2022-12-31 | AS152: 1.41 | AT152: Waste Heat Factor Energy | AU152: IL TRM v6 vol2 | AV152: 337-338 (portfolio weighted average) | AW152: 1.34 | AX152: Waste Heat Factor Demand | AY152: IL TRM v6 vol2 | AZ152: 337-338 (portfolio weighted average)
A153: Business Standard | B153: LED low/high bay mogul screw-base lamp/retrofit kit replacing 301W - 450W fixture | C153: 231.3 | D153: Small C&I | E153: Lighting | G153: per fixture | H153: 150 | I153: IL TRM v6 vol2 | J153: 371 | K153: =ROUND((AF153-AB153)/1000*U153*AS153,4) -> 1365.1292 | L153: Calculated Value | N153: =(AF153-AB153)/1000*AW153 -> 0.400738283 | O153: 0.6115308262 | P153: PY2 portfolio weighted average | R153: =ROUND(N153*O153,4) -> 0.2451 | S153: Calculated Value | U153: 3962.307881 | V153: PY2 portfolio weighted average | X153: =50000/U153 -> 12.61890835 | Y153: IL TRM v10 Vol2 (calculated value based on lifetime hours) | Z153: 568 | AA153: LED High/Low Bay (watts) | AB153: 124 | AC153: PY2 portfolio weighted average | AE153: Pulse Start Metal Halide (watts) | AF153: 450 | AG153: PY2 portfolio weighted average | AH153: Midpoint Value | AI153: =ROUND((AF153-AB153)/1000*U153*AS153,4) | AJ153: =ROUND(N153*O153,4) | AK153: IL TRM v10 Vol2 | AL153: 556561 | AM153: 2023-01-01 | AS153: 1.056836818 | AT153: Waste Heat Factor Energy | AU153: PY2 portfolio weighted average | AW153: 1.229258537 | AX153: Waste Heat Factor Demand | AY153: PY2 portfolio weighted average
A154: Business Standard | B154: LED high bay mogul screw-base lamp/retrofit kit replacing 451W - 750W fixture | C154: 232.2 | D154: Small C&I | E154: Lighting | G154: per fixture | H154: 200 | I154: IL TRM v6 vol2 | J154: 371 | K154: =ROUND((AF154-AB154)/1000*U154*AS154,4) -> 3109.5224 | L154: Calculated Value | N154: =(AF154-AB154)/1000*AW154 -> 0.6767 | O154: 0.83 | P154: IL TRM v6 vol2 | Q154: 337-338 (portfolio weighted average) | R154: =ROUND(N154*O154,4) -> 0.5617 | S154: Calculated Value | U154: 4367 | V154: IL TRM v6 vol2 | W154: 337-338 (portfolio weighted average) | X154: 11 | Y154: IL TRM v6 vol2 | Z154: 373374 | AA154: LED High Bay (watts) | AB154: 95 | AC154: Program Tracking Data | AE154: Pulse Start Metal Halide (watts) | AF154: 600 | AH154: Midpoint Value | AI154: =ROUND((AF154-AB154)/1000*U154*AS154,4) | AJ154: =ROUND(N154*O154,4) | AK154: IL TRM v6 vol2 | AL154: 364368 | AM154: 2020-01-01 | AN154: 2022-12-31 | AS154: 1.41 | AT154: Waste Heat Factor Energy | AU154: IL TRM v6 vol2 | AV154: 337-338 (portfolio weighted average) | AW154: 1.34 | AX154: Waste Heat Factor Demand | AY154: IL TRM v6 vol2 | AZ154: 337-338 (portfolio weighted average)
A155: Business Standard | B155: LED high bay mogul screw-base lamp/retrofit kit replacing 451W - 750W fixture | C155: 232.3 | D155: Small C&I | E155: Lighting | G155: per fixture | H155: 200 | I155: IL TRM v6 vol2 | J155: 371 | K155: =ROUND((AF155-AB155)/1000*U155*AS155,4) -> 2460.1322 | L155: Calculated Value | N155: =(AF155-AB155)/1000*AW155 -> 0.7978641667 | O155: 0.6925424893 | P155: PY2 portfolio weighted average | R155: =ROUND(N155*O155,4) -> 0.5526 | S155: Calculated Value | U155: 3635.578299 | V155: PY2 portfolio weighted average | X155: =50000/U155 -> 13.7529702 | Y155: IL TRM v10 Vol2 (calculated value based on lifetime hours) | Z155: 568 | AA155: LED High Bay (watts) | AB155: 192 | AC155: PY2 portfolio weighted average | AE155: Pulse Start Metal Halide (watts) | AF155: 803 | AG155: PY2 portfolio weighted average | AH155: Midpoint Value | AI155: =ROUND((AF155-AB155)/1000*U155*AS155,4) | AJ155: =ROUND(N155*O155,4) | AK155: IL TRM v10 Vol2 | AL155: 556561 | AM155: 2023-01-01 | AS155: 1.1075 | AT155: Waste Heat Factor Energy | AU155: PY2 portfolio weighted average | AW155: 1.305833333 | AX155: Waste Heat Factor Demand | AY155: PY2 portfolio weighted average
A156: Business Standard | B156: LED high bay mogul screw-base lamp/retrofit kit replacing > 750W fixture | C156: 233.1 | D156: Small C&I | E156: Lighting | G156: per fixture | H156: 350 | I156: IL TRM v6 vol2 | J156: 371 | K156: =ROUND((AF156-AB156)/1000*U156*AS156,4) -> 4482.6382 | L156: Calculated Value | N156: =(AF156-AB156)/1000*AW156 -> 0.97552 | O156: 0.83 | P156: IL TRM v6 vol2 | Q156: 337-338 (portfolio weighted average) | R156: =ROUND(N156*O156,4) -> 0.8097 | S156: Calculated Value | U156: 4367 | V156: IL TRM v6 vol2 | W156: 337-338 (portfolio weighted average) | X156: 12 | Y156: IL TRM v6 vol2 | Z156: 373374 | AA156: LED High Bay (watts) | AB156: 350 | AC156: Program Tracking Data | AE156: Pulse Start Metal Halide (watts) | AF156: 1078 | AG156: IL TRM v6 vol2 | AH156: 370-372 (portfolio weighted average) | AI156: =ROUND((AF156-AB156)/1000*U156*AS156,4) | AJ156: =ROUND(N156*O156,4) | AK156: IL TRM v6 vol2 | AL156: 364368 | AM156: 2020-01-01 | AS156: 1.41 | AT156: Waste Heat Factor Energy | AU156: IL TRM v6 vol2 | AV156: 337-338 (portfolio weighted average) | AW156: 1.34 | AX156: Waste Heat Factor Demand | AY156: IL TRM v6 vol2 | AZ156: 337-338 (portfolio weighted average)
A157: Business Standard | B157: Low Flow Faucet Aerator Kitchen | C157: 251.1 | D157: C&I | E157: Hot Water | F157: Kitchen | G157: per unit | H157: 8 | I157: IL TRM v5 vol2 | J157: 93 | K157: =ROUND(1*(AF157-AB157)/AF157*AS157*AW157*BA157,4) -> 74.5049 | L157: Calculated Value | N157: =ROUND(K157/BE157,4) -> 3.0622 | O157: 0.0064 | P157: IL TRM v5 vol2 | Q157: 97 | R157: =ROUND(K157/BE157*O157,4) -> 0.0196 | S157: Calculated Value | V157: IL TRM v5 vol2 | W157: 96 | X157: 9 | Y157: IL TRM v5 vol2 | Z157: 93 | AA157: Low Flow (GPM) | AB157: 0.94 | AC157: IL TRM v5 vol2 | AD157: 94 | AE157: Standard (GPM) | AF157: 1.39 | AG157: IL TRM v5 vol2 | AH157: 94 | AI157: =ROUND(1*(AF157-AB157)/AF157*AS157*AW157*BA157,4) | AJ157: =ROUND(K157/BE157*O157,4) | AK157: IL TRM v5 vol2 | AL157: 94,96 | AM157: 2020-01-01 | AS157: 2500 | AT157: Usage - Estimated usage of mixed water (mixture of hot water from water heater line and cold water line) per faucet (gallons per year) | AU157: IL TRM v5 vol2 | AV157: 95 | AW157: 0.0969 | AX157: EPG_electric - Energy per gallon of mixed water used by faucet (electric water heater) | AY157: IL TRM v5 vol2 | AZ157: 95 | BA157: 0.95 | BB157: ISR - in service rate | BC157: IL TRM v5 vol2 | BD157: 96 | BE157: 24.33035714 | BF157: Annual Recovery Hours - Annual electric DHW recovery hours for faucet use | BG157: IL TRM v5 vol2 | BH157: 96
A158: Business Standard | B158: Low Flow Faucet Aerator Bathroom | C158: 252.2 | D158: C&I | E158: Hot Water | F158: Bathroom | G158: per unit | H158: 8 | I158: IL TRM v5 vol2 | J158: 93 | K158: =ROUND(1*(AF158-AB158)/AF158*AS158*AW158*BA158,4) -> 122.2527 | L158: Calculated Value | N158: =ROUND(K158/BE158,4) -> 2.5123 | O158: 0.0128 | P158: IL TRM v7 vol2 | Q158: 97 | R158: =ROUND(K158/BE158*O158,4) -> 0.0322 | S158: Calculated Value | X158: 9 | Y158: IL TRM v5 vol2 | Z158: 93 | AA158: Low Flow (GPM) | AB158: 0.94 | AC158: IL TRM v5 vol2 | AD158: 94 | AE158: Standard (GPM) | AF158: 1.39 | AG158: IL TRM v7 vol2 | AH158: 94 | AI158: =ROUND(1*(AF158-AB158)/AF158*AS158*AW158*BA158,4) | AJ158: =ROUND(K158/BE158*O158,4) | AK158: IL TRM v5 vol2 | AL158: 94,96 | AM158: 2020-05-01 | AS158: 5000 | AT158: Usage - Estimated usage of mixed water (mixture of hot water from water heater line and cold water line) per faucet (gallons per year). Used 'Other' space type | AU158: IL TRM v7 vol2 | AV158: 95 | AW158: 0.0795 | AX158: EPG_electric - Energy per gallon of mixed water used by faucet (electric water heater) | AY158: IL TRM v5 vol2 | AZ158: 95 | BA158: 0.95 | BB158: ISR - in service rate | BC158: IL TRM v5 vol2 | BD158: 96 | BE158: =AS158*0.545/56 -> 48.66071429 | BF158: Annual Recovery Hours - Annual electric DHW recovery hours for faucet use. 'Other' space type. | BG158: IL TRM v7 vol2 | BH158: 97
A159: Business Standard | B159: Pre-Rinse Spray Valves Small | C159: 253.1 | D159: C&I | E159: Hot Water | F159: Small, quick- service restaurants | G159: per unit | H159: 100 | I159: IL TRM v5 vol2 | J159: 62 | K159: =ROUND((AF159-AB159)*60*BA159*BE159*8.33*1*AS159/AW159/3413,4) -> 2769.6198 | L159: Calculated Value | R159: =ROUND(0,4) -> 0 | S159: IL TRM v5 vol2 | T159: 63 | X159: 5 | Y159: IL TRM v5 vol2 | Z159: 62 | AA159: Low Flow (GPM) | AB159: 1.06 | AC159: IL TRM v5 vol2 | AD159: 64 | AE159: Standard (GPM) | AF159: 1.9 | AG159: IL TRM v5 vol2 | AH159: 64 | AI159: =ROUND((AF159-AB159)*60*BA159*BE159*8.33*1*AS159/AW159/3413,4) | AJ159: =ROUND(0,4) | AK159: IL TRM v5 vol2 | AL159: 63 | AM159: 2020-01-01 | AS159: 70 | AT159: Temp difference between water heater outlet water temperature | AU159: IL TRM v5 vol2 | AV159: 63 | AW159: 0.97 | AX159: EFF_Elec - Efficiency of electric water heater supplying hot water to pre-rinse spray valve | AY159: IL TRM v5 vol2 | AZ159: 63 | BA159: 1 | BB159: Hours per day that the pre-rinse spray valve is used at the site - Hours/day | BC159: IL TRM v5 vol2 | BD159: 65 | BE159: 312 | BF159: Days per year | BG159: IL TRM v5 vol2 | BH159: 65
A160: Business Standard | B160: Pre-Rinse Spray Valves Medium | C160: 254.1 | D160: C&I | E160: Hot Water | F160: Medium-sized casual dining restaurants | G160: per unit | H160: 100 | I160: IL TRM v5 vol2 | J160: 62 | K160: =ROUND((AF160-AB160)*60*BA160*BE160*8.33*1*AS160/AW160/3413,4) -> 4154.4296 | L160: Calculated Value | R160: =ROUND(0,4) -> 0 | S160: IL TRM v5 vol2 | T160: 63 | X160: 5 | Y160: IL TRM v5 vol2 | Z160: 62 | AA160: Low Flow (GPM) | AB160: 1.06 | AC160: IL TRM v5 vol2 | AD160: 64 | AE160: Standard (GPM) | AF160: 1.9 | AG160: IL TRM v5 vol2 | AH160: 64 | AI160: =ROUND((AF160-AB160)*60*BA160*BE160*8.33*1*AS160/AW160/3413,4) | AJ160: =ROUND(0,4) | AK160: IL TRM v5 vol2 | AL160: 63 | AM160: 2020-01-01 | AS160: 70 | AT160: Temp difference between water heater outlet water temperature | AU160: IL TRM v5 vol2 | AV160: 63 | AW160: 0.97 | AX160: EFF_Elec - Efficiency of electric water heater supplying hot water to pre-rinse spray valve | AY160: IL TRM v5 vol2 | AZ160: 63 | BA160: 1.5 | BB160: Hours per day that the pre-rinse spray valve is used at the site - Hours/day | BC160: IL TRM v5 vol2 | BD160: 65 | BE160: 312 | BF160: Days per year | BG160: IL TRM v5 vol2 | BH160: 65
A161: Business Standard | B161: Pre-Rinse Spray Valves Large | C161: 255.1 | D161: C&I | E161: Hot Water | F161: Large institutional establishments with cafeteria | G161: per unit | H161: 100 | I161: IL TRM v5 vol2 | J161: 62 | K161: =ROUND((AF161-AB161)*60*BA161*BE161*8.33*1*AS161/AW161/3413,4) -> 8308.8593 | L161: Calculated Value | R161: =ROUND(0,4) -> 0 | S161: IL TRM v5 vol2 | T161: 63 | X161: 5 | Y161: IL TRM v5 vol2 | Z161: 62 | AA161: Low Flow (GPM) | AB161: 1.06 | AC161: IL TRM v5 vol2 | AD161: 64 | AE161: Standard (GPM) | AF161: 1.9 | AG161: IL TRM v5 vol2 | AH161: 64 | AI161: =ROUND((AF161-AB161)*60*BA161*BE161*8.33*1*AS161/AW161/3413,4) | AJ161: =ROUND(0,4) | AK161: IL TRM v5 vol2 | AL161: 63 | AM161: 2020-01-01 | AS161: 70 | AT161: Temp difference between water heater outlet water temperature | AU161: IL TRM v5 vol2 | AV161: 63 | AW161: 0.97 | AX161: EFF_Elec - Efficiency of electric water heater supplying hot water to pre-rinse spray valve | AY161: IL TRM v5 vol2 | AZ161: 63 | BA161: 3 | BB161: Hours per day that the pre-rinse spray valve is used at the site - Hours/day | BC161: IL TRM v5 vol2 | BD161: 65 | BE161: 312 | BF161: Days per year | BG161: IL TRM v5 vol2 | BH161: 65
A162: Business Standard | B162: ENERGY STAR Beverage Machine w/o software | C162: 256.1 | D162: C&I | E162: Refrigeration | F162: kWh savings per machine w/o software | G162: per unit | H162: 500 | I162: IL TRM v6 vol2 | J162: 445 | K162: =ROUND(1310,4) -> 1310 | L162: IL TRM v6 vol2 | M162: 446 | O162: 0 | P162: IL TRM v6 vol2 | Q162: 446 | R162: =ROUND(0,4) -> 0 | S162: IL TRM v6 vol2 | T162: 446 | X162: 14 | Y162: IL TRM v6 vol2 | Z162: 445 | AA162: Energy Star Vending Machine w/o software | AC162: IL TRM v6 vol2 | AD162: 445 | AE162: Standard Vending Machine | AG162: IL TRM v6 vol2 | AH162: 445 | AI162: =ROUND(1310,4) | AJ162: =ROUND(0,4) | AK162: IL TRM v6 vol2 | AL162: 446 | AM162: 2020-01-01
A163: Business Standard | B163: ENERGY STAR Beverage Machine w/ software | C163: 257.1 | D163: C&I | E163: Refrigeration | F163: kWh savings per machine w/ software | G163: per unit | H163: 500 | I163: IL TRM v6 vol2 | J163: 445 | K163: =ROUND(1842,4) -> 1842 | L163: IL TRM v6 vol2 | M163: 446 | O163: 0 | P163: IL TRM v6 vol2 | Q163: 446 | R163: =ROUND(0,4) -> 0 | S163: IL TRM v6 vol2 | T163: 446 | X163: 14 | Y163: IL TRM v6 vol2 | Z163: 445 | AA163: Energy Star Vending Machine w software | AC163: IL TRM v6 vol2 | AD163: 445 | AE163: Standard Vending Machine | AG163: IL TRM v6 vol2 | AH163: 445 | AI163: =ROUND(1842,4) | AJ163: =ROUND(0,4) | AK163: IL TRM v6 vol2 | AL163: 446 | AM163: 2020-01-01
A164: Business Standard | B164: High Efficiency Reach-In Refrigerator | C164: 258.2 | D164: C&I | E164: Refrigeration | F164: No unique savings for this measure. The savings is based on actual chilled or frozen compartment volume of the efficient unit. This measure life is for refrigerator | G164: per unit | H164: 164 | I164: IL TRM v6 vol2 | J164: 22 | K164: =ROUND((AF164-AB164)*365.25,4) -> 295.8525 | L164: Calculated Value | O164: 0.937 | P164: IL TRM v5 vol2 | Q164: 24 | R164: =ROUND(K164/U164*O164,4) -> 0.0316 | S164: Calculated Value | U164: 8766 | V164: IL TRM v5 vol2 | W164: 24 | X164: 12 | Y164: IL TRM v5 vol2 | Z164: 22 | AA164: High Efficiency kWh/day | AB164: 1.3 | AC164: IL TRM v9 vol2 | AD164: 53 (calculated for 15 cuft solid door refrigerators) | AE164: Standard kWh/day | AF164: 2.11 | AG164: IL TRM v9.0 Vol 2 | AH164: 53 (calculated for 15 cuft solid door refrigerators) | AI164: =ROUND((AF164-AB164)*365.25,4) | AJ164: =ROUND(K164/U164*O164,4) | AK164: IL TRM v9 vol2 | AL164: 52,53 | AM164: 2022-01-01
A165: Business Standard | B165: High Efficiency Reach-In Freezer | C165: 259.2 | D165: C&I | E165: Refrigeration | F165: No unique savings for this measure. The savings is based on actual chilled or frozen compartment volume of the efficient unit. This measure life is for freezer | G165: per unit | H165: 166 | I165: IL TRM v6 vol2 | J165: 22 | K165: =ROUND((AF165-AB165)*365.25,4) -> 382.0515 | L165: Calculated Value | O165: 0.937 | P165: IL TRM v5 vol2 | Q165: 24 | R165: =ROUND(K165/U165*O165,4) -> 0.0408 | S165: Calculated Value | U165: 8766 | V165: IL TRM v5 vol2 | W165: 24 | X165: 12 | Y165: IL TRM v5 vol2 | Z165: 22 | AA165: High Efficiency kWh/day | AB165: 4.944 | AC165: IL TRM v7 vol2 | AD165: 22 (average of solid and glass door, assuming 15 cubic ft) | AE165: Standard kWh/day | AF165: 5.99 | AG165: IL TRM v7 vol2 | AH165: 22 (average of solid and glass door, assuming 15 cubic ft) | AI165: =ROUND((AF165-AB165)*365.25,4) | AJ165: =ROUND(K165/U165*O165,4) | AK165: IL TRM v5 vol2 | AL165: 23, 24 | AM165: 2020-05-01
A166: Business Standard | B166: Strip Curtains Freezer | C166: 260.2 | D166: C&I | E166: Refrigeration | F166: per freezer with curtains installed | G166: per unit | H166: 286.16 | I166: IL TRM v5 vol2 | J166: 456 | K166: =ROUND(AB166*AS166,4) -> 14157 | L166: IL TRM v5 vol2 | M166: 456 | O166: 1 | P166: IL TRM v5 vol2 | Q166: 457 | R166: =ROUND(K166/U166*O166,4) -> 1.615 | S166: IL TRM v7 vol2 | T166: 521 | U166: 8766 | V166: IL TRM v5 vol2 | W166: 457 | X166: 6 | Y166: IL TRM v5 vol2 | Z166: 456 | AA166: Strip Curtain - Energy Savings (kWh/sq ft) | AB166: =AVERAGE(119,349) -> 234 | AC166: IL TRM v7 vol2 (average of supermarket freezer values) | AD166: 520 | AE166: No strip curtain | AG166: IL TRM v5 vol2 | AH166: 456 | AI166: =ROUND(AB166*AS166,4) | AJ166: =ROUND(K166/U166*O166,4) | AK166: IL TRM v5 vol2 | AL166: 456457 | AM166: 2021-01-01 | AN166: 2022-12-31 | AS166: 60.5 | AT166: Square Footage | AU166: Average of 2019 program tracking data
A167: Business Standard | B167: Strip Curtains Freezer | C167: 260.3 | D167: C&I | E167: Refrigeration | F167: per freezer with curtains installed | G167: per unit | H167: 250 | I167: PY2 Tracking Data | K167: =ROUND(AB167*AS167,4) -> 20055.75 | L167: IL TRM v10 Vol2 | M167: 650 | O167: 1 | P167: IL TRM v10 Vol2 | Q167: 651 | R167: =ROUND(K167/U167*O167,4) -> 2.2879 | S167: IL TRM v10 Vol2 | T167: 650 | U167: 8766 | V167: Indiana TRM v1 | W167: 651 | X167: 4 | Y167: IL TRM v10 Vol2 | Z167: 649 | AA167: Strip Curtain - Energy Savings (kWh/sq ft) | AB167: =AVERAGE(168.5,494.5) -> 331.5 | AC167: IL TRM v10 Vol2 (average of supermarket freezer values) | AD167: 650 | AE167: No strip curtain | AI167: =ROUND(AB167*AS167,4) | AJ167: =ROUND(K167/U167*O167,4) | AK167: IL TRM v10 Vol2 | AL167: 650 | AM167: 2023-01-01 | AS167: 60.5 | AT167: Square Footage | AU167: Average of 2019 program tracking data
A168: Business Standard | B168: Strip Curtains Cooler | C168: 261.2 | D168: C&I | E168: Refrigeration | F168: per cooler with curtains installed | G168: per unit | H168: 286.16 | I168: IL TRM v5 vol2 | J168: 456 | K168: =ROUND(AB168*AS168,4) -> 4386.25 | L168: IL TRM v5 vol2 | M168: 457 | O168: 1 | P168: IL TRM v5 vol2 | Q168: 457 | R168: =ROUND(K168/U168*O168,4) -> 0.5004 | S168: IL TRM v7 vol2 | T168: 521 | U168: 8766 | V168: IL TRM v5 vol2 | W168: 457 | X168: 6 | Y168: IL TRM v5 vol2 | Z168: 456 | AA168: Strip Curtain - Energy Savings (kWh/sq ft) | AB168: =AVERAGE(37,108) -> 72.5 | AC168: IL TRM v7 vol2 (average of supermarket cooler values) | AD168: 520 | AE168: No strip curtain | AG168: IL TRM v5 vol2 | AH168: 456 | AI168: =ROUND(AB168*AS168,4) | AJ168: =ROUND(K168/U168*O168,4) | AK168: IL TRM v5 vol2 | AL168: 456457 | AM168: 2021-01-01 | AN168: 2022-12-31 | AS168: 60.5 | AT168: Square Footage | AU168: Average of 2019 program tracking data
A169: Business Standard | B169: Strip Curtains Cooler | C169: 261.3 | D169: C&I | E169: Refrigeration | F169: per cooler with curtains installed | G169: per unit | H169: 250 | I169: PY2 Tracking Data | K169: =ROUND(AB169*AS169,4) -> 4864.2 | L169: IL TRM v10 Vol2 | M169: 650 | O169: 1 | P169: IL TRM v10 Vol2 | Q169: 651 | R169: =ROUND(K169/U169*O169,4) -> 0.5549 | S169: IL TRM v10 Vol2 | T169: 650 | U169: 8766 | V169: Indiana TRM v1 | W169: 651 | X169: 4 | Y169: IL TRM v10 Vol2 | Z169: 649 | AA169: Strip Curtain - Energy Savings (kWh/sq ft) | AB169: =AVERAGE(40.9,119.9) -> 80.4 | AC169: IL TRM v10 Vol2 (average of supermarket cooler values) | AD169: 650 | AE169: No strip curtain | AI169: =ROUND(AB169*AS169,4) | AJ169: =ROUND(K169/U169*O169,4) | AK169: IL TRM v10 Vol2 | AL169: 650 | AM169: 2023-01-01 | AS169: 60.5 | AT169: Square Footage | AU169: Average of 2019 program tracking data
A170: Business Standard | B170: VSD Pumps (Chilled Water Pump) | C170: 283.2 | D170: C&I | E170: Pumps/Fans | G170: per hp | H170: 1330 | I170: IL TRM V9 vol2 | J170: 280 | K170: =ROUND(AS170*BA170/AW170*BE170,4) -> 260.1581 | L170: Calculated Value | R170: =ROUND(AS170*BI170/AW170,4) -> 0 | S170: Calculated Value | X170: 15 | Y170: IL TRM V9 vol2 | Z170: 280 | AA170: VSD applied to a motor without a VSD | AC170: IL TRM V9 vol2 | AD170: 280 | AE170: Motor without a VSD | AG170: IL TRM V9 vol2 | AH170: 280 | AI170: =ROUND(AS170*BA170/AW170*BE170,4) | AJ170: =ROUND(AS170*BI170/AW170,4) | AK170: IL TRM V9 vol2 | AL170: 281 | AM170: 2022-01-01 | AS170: 1 | AT170: System Brake Horsepower (BHP = Nominal Motor HP*Motor Load Factor) Where, Motor Load Factor = 65%, if actual value is unknown | AU170: IL TRM V9 vol2 | AV170: 281 | AW170: 0.93 | AX170: EFFi (Motor Efficiency) | AY170: IL TRM V9 vol2 | AZ170: 281 | BA170: 2987 | BB170: Cooling Run Hours | BC170: IL TRM v9 vol2 | BD170: 282 | BE170: 0.081 | BF170: Energy Savings Factor (ESF) | BG170: IL TRM v9 vol2 | BH170: 282 | BI170: 0 | BJ170: Demand Savings Factor (DSF) | BK170: IL TRM v9 vol2 | BL170: 283
A171: Business Standard | B171: Networked Lighting Controls | C171: 284.2 | D171: C&I | E171: Lighting | G171: per wattage controlled | H171: 61 | I171: IL TRM V9- cost per LLLC | J171: 541 | K171: =ROUND(AB171*AS171*BA171*BI171/1000,4) -> 17248.5878 | L171: Calculated Value | O171: 0.15 | P171: IL TRM v9 | Q171: 544 | R171: =ROUND(AB171*(BE171-O171)*BM171/1000,4) -> 5.1601 | S171: Calculated Value | X171: 15 | Y171: IL TRM v9.0 Vol 2 | Z171: 540 | AA171: Control system that meets the DLC networked lighting control specifications. | AB171: 7665 | AC171: Average watts controlled per system from program tracking data | AE171: LED lighting system with no existing or basic lighting controls. | AI171: =ROUND(AB171*AS171*BA171*BI171/1000,4) | AJ171: =ROUND(AB171*(BE171-O171)*BM171/1000,4) | AK171: IL TRM v9 vol2 | AL171: 542 | AM171: 2022-01-01 | AN171: 2022-12-31 | AS171: 0.5 | AT171: LLLC Energy Savings Factor | AU171: ILTRM v9 | AV171: 543 | BA171: 4129 | BB171: Annual Operating Hours | BC171: Evergy Logger Verified HOU weighted by verified program savings | BE171: 0.66 | BF171: Coincidence Factor (CF)_baseline | BG171: IL TRM v9 vol2 | BH171: 544 | BI171: 1.09 | BJ171: Waste Heat Factor Energy | BK171: IL TRM v8 building specific values weighted by Evergy verified program savings | BL171: 430-432 (portfolio weighted average) | BM171: 1.32 | BN171: Waste Heat Factor_Demand | BO171: IL TRM v8 building specific values weighted by Evergy verified program savings | BP171: 430-432 (portfolio weighted average)
A172: Business Standard | B172: Networked Lighting Controls | C172: 284.3 | D172: C&I | E172: Lighting | G172: per wattage controlled | H172: 56 | I172: IL TRM v10 Vol2 | J172: 600 | K172: =ROUND(AB172*AS172*BA172*BI172/1000,4) -> 26833.429 | L172: Calculated Value | O172: 0.15 | P172: IL TRM v10 Vol2 | R172: =ROUND(AB172*(BE172-O172)*BM172/1000,4) -> 5.4442 | S172: Calculated Value | W172: 602 | X172: 15 | Y172: IL TRM v10 Vol2 | Z172: 599 | AA172: Control system that meets the DLC networked lighting control specifications. | AB172: 7655 | AC172: Average watts controlled per system from program tracking data | AE172: LED lighting system with no existing or basic lighting controls. | AI172: =ROUND(AB172*AS172*BA172*BI172/1000,4) | AJ172: =ROUND(AB172*(BE172-O172)*BM172/1000,4) | AK172: IL TRM v10 Vol2 | AL172: 601604 | AM172: 2023-01-01 | AS172: 0.61 | AT172: LLLC Energy Savings Factor | AU172: ILTRM v10 vol 2 | AV172: 603 | BA172: 5177 | BB172: Annual Operating Hours | BC172: PY2 portfolio weighted average | BE172: 0.71 | BF172: Coincidence Factor (CF)_baseline | BG172: PY2 portfolio weighted average | BI172: 1.11 | BJ172: Waste Heat Factor Energy | BK172: PY2 portfolio weighted average | BM172: 1.27 | BN172: Waste Heat Factor_Demand | BO172: PY2 portfolio weighted average
A173: Business Standard | B173: Pre-Rinse Spray Valves Small | C173: 286 | D173: Small C&I | E173: Hot Water | F173: Direct Install | G173: per unit | H173: 92.9 | I173: IL TRM v6 vol2 | J173: 60 | K173: =ROUND((AF173-AB173)*60*BA173*BE173*8.33*1*(BM173-BI173)/BQ173/3413*BU173,4) -> 2769.6198 | L173: Calculated Value | O173: 0 | P173: IL TRM v6 vol2 | Q173: 60 | R173: =ROUND(0,4) -> 0 | S173: IL TRM v6 vol2 | T173: 61 | X173: 5 | Y173: IL TRM v6 vol2 | Z173: 60 | AA173: Low Flow (GPM) | AB173: 1.06 | AC173: IL TRM v6 vol2 | AD173: 62 | AE173: Standard (GPM) | AF173: 1.9 | AG173: IL TRM v6 vol2 | AH173: 62 | AI173: =ROUND((AF173-AB173)*60*BA173*BE173*8.33*1*(BM173-BI173)/BQ173/3413*BU173,4) | AJ173: =ROUND(0,4) | AK173: IL TRM v6 vol2 | AL173: 61 | AM173: 2020-01-01 | AS173: 1.9 | AT173: FLObase | AU173: IL TRM v6 vol2 | AV173: 62 | AW173: 1.06 | AX173: FLOeff | AY173: IL TRM v6 vol2 | AZ173: 62 | BA173: 1 | BB173: HOURSday | BC173: IL TRM v6 vol2 | BD173: 63 | BE173: 312 | BF173: Days per year | BG173: IL TRM v6 vol2 | BH173: 63 | BI173: 54.1 | BJ173: Tin | BK173: IL TRM v6 vol2 | BL173: 61 | BM173: 124.1 | BN173: Tout | BO173: IL TRM v6 vol2 | BP173: 61 | BQ173: 0.97 | BR173: Eff_Elec | BS173: IL TRM v6 vol2 | BT173: 61 | BU173: 1 | BV173: FLAG (1 for electric, 0 for gas) | BW173: IL TRM v6 vol2 | BX173: 61
A174: Business Standard | B174: Low Flow Faucet Aerator - Kitchen | C174: 287 | D174: Small C&I | E174: Hot Water | F174: Direct Install | G174: per unit | H174: 8 | I174: IL TRM v6 vol2 | J174: 90 | K174: =ROUND(AS174*(AW174-BA174)/AW174*BE174*BI174*BM174,4) -> 74.5049 | L174: Calculated Value | N174: =ROUND(K174/BQ174,4) -> 3.1044 | O174: 0.0064 | P174: IL TRM v6 vol2 | Q174: 94 | R174: =ROUND(K174/BQ174*BU174,4) -> 0.0199 | S174: Calculated Value | X174: 9 | Y174: IL TRM v6 vol2 | Z174: 90 | AA174: Energy Efficient Faucet Aerator rated at 2.2 GPM or less | AC174: IL TRM v6 vol2 | AD174: 90 | AE174: Standard Faucet Aerator rated at 2.75 GPM or more | AG174: IL TRM v6 vol2 | AH174: 90 | AI174: =ROUND(AS174*(AW174-BA174)/AW174*BE174*BI174*BM174,4) | AJ174: =ROUND(K174/BQ174*BU174,4) | AK174: IL TRM v6 vol2 | AL174: 91,93 | AM174: 2020-01-01 | AS174: 1 | AT174: %Electric DHW | AU174: IL TRM v6 vol2 | AV174: 91 | AW174: 1.39 | AX174: GPM_base | AY174: IL TRM v6 vol2 | AZ174: 91 | BA174: 0.94 | BB174: GPM_low | BC174: IL TRM v6 vol2 | BD174: 91 | BE174: 2500 | BF174: Usage | BG174: IL TRM v6 vol2 | BH174: 92 | BI174: 0.0969 | BJ174: EPG_electric | BK174: IL TRM v6 vol2 | BL174: 92 | BM174: 0.95 | BN174: In Service Rate (ISR) | BO174: IL TRM v6 vol2 | BP174: 93 | BQ174: 24 | BR174: Annual Recovery Hours | BS174: IL TRM v6 vol2 | BT174: 93 | BU174: 0.0064 | BV174: Coincidence Factor | BW174: IL TRM v6 vol2 | BX174: 94
A175: Business Standard | B175: Smart Power Strip | C175: 288 | D175: Small C&I | E175: Electronics | F175: Direct Install | G175: per unit | H175: 26 | I175: Program Tracking Data | K175: =ROUND(((AS175*(AW175-BA175)+BE175*(BI175-BM175))*BQ175*BU175),4) -> 108.5759 | L175: Calculated Value | O175: 0 | P175: IL TRM v6 vol2 | Q175: 498 | R175: =ROUND(0,4) -> 0 | S175: Calculated Value | X175: 7 | Y175: IL TRM v6 vol2 | Z175: 498 | AA175: Advanced power strip with a load-sensing master plug and at least two controlled plugs | AC175: IL TRM v6 vol2 | AD175: 498 | AE175: Standard power strip with surge protection that does not control connected loads | AG175: IL TRM v6 vol2 | AH175: 498 | AI175: =ROUND(((AS175*(AW175-BA175)+BE175*(BI175-BM175))*BQ175*BU175),4) | AJ175: =ROUND(0,4) | AK175: IL TRM v6 vol2 | AL175: 499 | AM175: 2020-01-01 | AS175: 0.0315 | AT175: kWwkday | AU175: IL TRM v6 vol2 | AV175: 499 | AW175: 106 | AX175: hrswkday | AY175: IL TRM v6 vol2 | AZ175: 499 | BA175: 50 | BB175: hrswkday-open | BC175: IL TRM v6 vol2 | BD175: 499 | BE175: 0.00617 | BF175: kWwkend | BG175: IL TRM v6 vol2 | BH175: 499 | BI175: 62 | BJ175: hrswkend | BK175: IL TRM v6 vol2 | BL175: 499 | BM175: 0 | BN175: hrswkend-open | BO175: IL TRM v6 vol2 | BP175: 499 | BQ175: 52.2 | BR175: weeks/year | BS175: IL TRM v6 vol2 | BT175: 499 | BU175: 0.969 | BV175: ISR | BW175: IL TRM v6 vol2 | BX175: 499
A176: Business Standard | B176: Low Flow Showerhead | C176: 289 | D176: Small C&I | E176: Hot Water | F176: Direct Install | G176: per unit | H176: 12 | I176: IL TRM v6 vol2 | J176: 98 | K176: =ROUND((AS176*(AW176*BE176-BA176*BI176)*BM176*365.25)*BQ176*BU176,4) -> 1308.4014 | L176: Calculated Value | N176: =ROUND(K176/CG176,4) -> 1.941 | O176: 0.0278 | P176: IL TRM v6 vol2 | Q176: 98 | R176: =ROUND(K176/CG176*CC176,4) -> 0.054 | S176: Calculated Value | X176: 10 | Y176: IL TRM v6 vol2 | Z176: 98 | AA176: Energy efficient showerhead rated at 2.0 GPM or less | AC176: IL TRM v6 vol2 | AD176: 98 | AE176: Standard showerhead rated at 2.5 GPM or above | AG176: IL TRM v6 vol2 | AH176: 98 | AI176: =ROUND((AS176*(AW176*BE176-BA176*BI176)*BM176*365.25)*BQ176*BU176,4) | AJ176: =ROUND(K176/CG176*CC176,4) | AK176: IL TRM v6 vol2 | AL176: 99100 | AM176: 2020-01-01 | AS176: 1 | AT176: %Electric DHW | AU176: IL TRM v6 vol2 | AV176: 99 | AW176: 2.67 | AX176: GPM_base | AY176: IL TRM v6 vol2 | AZ176: 99 | BA176: 1.5 | BB176: GPM_low | BC176: IL TRM v6 vol2 | BD176: 99 | BE176: 8.2 | BF176: L_base | BG176: IL TRM v6 vol2 | BH176: 99 | BI176: 8.2 | BJ176: L_low | BK176: IL TRM v6 vol2 | BL176: 99 | BM176: 3 | BN176: NSPD | BO176: IL TRM v6 vol2 | BP176: 99 | BQ176: 0.127 | BR176: EPG_electric | BS176: IL TRM v6 vol2 | BT176: 99 | BU176: 0.98 | BV176: ISR | BW176: IL TRM v6 vol2 | BX176: 100 | BY176: 27.51 | BZ176: Gallons per hour recovery of electric water heater | CA176: IL TRM v6 vol2 | CB176: 100 | CC176: 0.0278 | CD176: Coincidence Factor | CE176: IL TRM v6 vol2 | CF176: 98 | CG176: =((AW176*BE176)*BM176*365.25)*0.773/BY176 -> 674.1018152 | CH176: Annual Recovery Hours | CI176: IL TRM v6 vol2 | CJ176: 100
A177: Business Standard | B177: Water Heater Pipe Insulation | C177: 290 | D177: Small C&I | E177: Hot Water | F177: Direct Install | G177: per foot | H177: 15 | I177: IL TRM v7 vol3 | J177: 171 | K177: =ROUND(((AS177/AW177-BA177/BE177)*BI177*BM177*BQ177/BU177/BY177),4) -> 102.7143 | L177: Calculated Value | N177: =ROUND(K177/U177,4) -> 0.0117 | O177: 1 | P177: IL TRM v7 vol3 | Q177: 171 | R177: =ROUND(K177/U177,4) -> 0.0117 | S177: Calculated Value | U177: 8766 | V177: IL TRM v7 vol3 | W177: 172 | X177: 15 | Y177: IL TRM v7 vol3 | Z177: 171 | AA177: 5 linear feet of insulation | AE177: none | AI177: =ROUND(((AS177/AW177-BA177/BE177)*BI177*BM177*BQ177/BU177/BY177),4) | AJ177: =ROUND(K177/U177,4) | AK177: IL TRM v7 vol3 | AL177: 171, 172 | AM177: 2020-01-01 | AS177: 0.196 | AT177: Cexist | AU177: IL TRM v7 vol3 | AV177: 172 | AW177: 1 | AX177: Rexist | AY177: IL TRM v7 vol3 | AZ177: 172 | BA177: 0.327 | BB177: Cnew | BC177: IL TRM v7 vol3 | BD177: 172 | BE177: 5 | BF177: Rnew | BG177: IL TRM v7 vol3 | BH177: 172 | BI177: 5 | BJ177: L | BK177: Tracking Data | BM177: 60 | BN177: DeltaT | BO177: IL TRM v7 vol3 | BP177: 172 | BQ177: 8766 | BR177: Hours | BS177: IL TRM v7 vol3 | BT177: 172 | BU177: 0.98 | BV177: eta DHW | BW177: IL TRM v7 vol3 | BX177: 172 | BY177: 3412 | BZ177: Conversion from BTU to kWh | CA177: IL TRM v7 vol3 | CB177: 172
A178: Business Standard | B178: Refrigerated Vending Machine Controls | C178: 291 | D178: Small C&I | E178: Refrigeration | F178: Direct Install | G178: per unit | H178: 180 | I178: IL TRM v6 vol2 | J178: 436 | K178: =ROUND(AS178/1000*AW178*BA178,4) -> 1612.944 | L178: Calculated Value | O178: 0 | P178: IL TRM v6 vol2 | Q178: 436 | R178: =ROUND(0,4) -> 0 | S178: IL TRM v6 vol2 | T178: 437 | X178: 5 | Y178: IL TRM v6 vol2 | Z178: 436 | AA178: Standard efficiency refrigerated vending machine with a control system. | AC178: IL TRM v6 vol2 | AD178: 436 | AE178: Standard efficiency refrigerated vending machine without a control system. | AG178: IL TRM v6 vol2 | AH178: 436 | AI178: =ROUND(AS178/1000*AW178*BA178,4) | AJ178: =ROUND(0,4) | AK178: IL TRM v6 vol2 | AL178: 437 | AM178: 2020-01-01 | AS178: 400 | AT178: WATTSbase | AU178: IL TRM v6 vol2 | AV178: 436 | AW178: 8766 | AX178: Hours | AY178: IL TRM v6 vol2 | AZ178: 436 | BA178: 0.46 | BB178: Energy Savings Factor (ESF) | BC178: IL TRM v6 vol2 | BD178: 436
A179: Business Standard | B179: Smart Thermostat | C179: 292 | D179: Small C&I | E179: HVAC | F179: Direct Install | G179: per unit | H179: 181 | I179: Program Tracking Data | K179: =ROUND((AS179+BI179*(0.83*AW179+0.83*BA179+1.67*BM179-293.018)-0.0922*AW179*BA179+1.291*BM179) - (AS179+CC179*(0.83*BQ179+0.83*BU179+1.67*BM179-293.018)-0.0922*BQ179*BU179+1.291*BM179),4) -> 121.978 | L179: Calculated Value | O179: 0 | P179: IL TRM v6 vol2 | Q179: 220 | R179: =ROUND(0,4) -> 0 | S179: Calculated Value | X179: 8 | Y179: MO TRM 2017 vol2 | Z179: 114 | AA179: Thermostat that has capability to adjust temperature setpoints without manual intervention | AC179: IL TRM v6 vol2 | AD179: 220 | AE179: Non-programmable thermostat requiring manual intervention to change temperature setpoints | AG179: IL TRM v6 vol2 | AH179: 220 | AI179: =ROUND((AS179+BI179*(0.83*AW179+0.83*BA179+1.67*BM179-293.018)-0.0922*AW179*BA179+1.291*BM179) - (AS179+CC179*(0.83*BQ179+0.83*BU179+1.67*BM179-293.018)-0.0922*BQ179*BU179+1.291*BM179),4) | AJ179: =ROUND(0,4) | AK179: IL TRM v6 vol2 | AL179: 221 | AM179: 2020-01-01 | AS179: 928.924 | AT179: Climate zone coefficient (CZ) | AU179: IL TRM v6 vol2 | AV179: 222 | AW179: 0 | AX179: Degrees of cooling setback_base | AY179: IL TRM v6 vol2 | AZ179: 221 | BA179: 0 | BB179: Degrees of heating setback_base | BC179: IL TRM v6 vol2 | BD179: 221 | BE179: Continuous | BF179: Fan mode during occupied period_base (Fo_base) | BG179: IL TRM v6 vol2 | BH179: 222 | BI179: 0 | BJ179: Fan mode during unoccupied period_base (Fu_base) | BK179: IL TRM v6 vol2 | BL179: 222 | BM179: 98 | BN179: Weekly hours thermostat is in occupied mode | BO179: IL TRM v6 vol2 | BP179: 222 | BQ179: 10 | BR179: Degrees of cooling setback_ee | BS179: IL TRM v6 vol2 | BT179: 221 | BU179: 10 | BV179: Degrees of heating setback_ee | BW179: IL TRM v6 vol2 | BX179: 221 | BY179: Continuous | BZ179: Fan mode during occupied period_ee (Fo_ee) | CA179: IL TRM v6 vol2 | CB179: 222 | CC179: 1 | CD179: Fan mode during unoccupied period_ee (Fu_ee) | CE179: IL TRM v6 vol2 | CF179: 222
A180: Business Standard | B180: LED A-19 - 9W | C180: 293 | D180: Small C&I | E180: Lighting | F180: Direct Install | G180: per unit | H180: 1.96 | I180: IL TRM v6 vol2 | J180: 370 | K180: =ROUND((AS180-AW180)/1000*BA180*BE180*BM180,4) -> 128.9397 | L180: Calculated Value | O180: 0.66 | P180: IL TRM v6 vol2 | Q180: 337-338 (portfolio weighted average) | R180: =ROUND((AS180-AW180)/1000*BI180*BM180*BQ180,4) -> 0.0336 | S180: Calculated Value | X180: 15 | Y180: IL TRM v6 vol2 | Z180: 363 | AA180: ENERGY STAR labeled LED lamp | AC180: IL TRM v6 vol2 | AD180: 363 | AE180: Non-ENERGY STAR lamp | AG180: IL TRM v6 vol2 | AH180: 363 | AI180: =ROUND((AS180-AW180)/1000*BA180*BE180*BM180,4) | AJ180: =ROUND((AS180-AW180)/1000*BI180*BM180*BQ180,4) | AK180: IL TRM v6 vol2 | AL180: 364368 | AM180: 2020-01-01 | AS180: 43 | AT180: WATTSbase | AU180: IL TRM v6 vol2 | AV180: 363 | AW180: 9 | AX180: WATTSee | AY180: Program Tracking Data | BA180: 2954 | BB180: Hours | BC180: IL TRM v6 vol2 | BD180: 338 | BE180: 1.31 | BF180: Waste Heat Factor Energy (WHFe) | BG180: IL TRM v6 vol2 | BH180: 338 | BI180: 1.53 | BJ180: Waste Heat Factor Demand (WHFd) | BK180: IL TRM v6 vol2 | BL180: 338 | BM180: 0.98 | BN180: In Service Rate (ISR) | BO180: IL TRM v6 vol2 | BP180: 363 | BQ180: 0.66 | BR180: Coincidence Factor (CF) | BS180: IL TRM v6 vol2 | BT180: 338
A181: Business Standard | B181: LED BR30 -12W | C181: 294 | D181: Small C&I | E181: Lighting | F181: Direct Install | G181: per unit | H181: 1.65 | I181: IL TRM v6 vol2 | J181: 370 | K181: =ROUND((AS181-AW181)/1000*BA181*BE181*BM181,4) -> 200.9943 | L181: Calculated Value | O181: 0.66 | P181: IL TRM v6 vol2 | Q181: 337-338 (portfolio weighted average) | R181: =ROUND((AS181-AW181)/1000*BI181*BM181*BQ181,4) -> 0.0524 | S181: Calculated Value | X181: 15 | Y181: IL TRM v6 vol2 | Z181: 363 | AA181: ENERGY STAR labeled LED lamp | AC181: IL TRM v6 vol2 | AD181: 363 | AE181: Non-ENERGY STAR lamp | AG181: IL TRM v6 vol2 | AH181: 363 | AI181: =ROUND((AS181-AW181)/1000*BA181*BE181*BM181,4) | AJ181: =ROUND((AS181-AW181)/1000*BI181*BM181*BQ181,4) | AK181: IL TRM v6 vol2 | AL181: 364368 | AM181: 2020-01-01 | AS181: 65 | AT181: WATTSbase | AU181: IL TRM v6 vol2 | AV181: 363 | AW181: 12 | AX181: WATTSee | AY181: Program Tracking Data | BA181: 2954 | BB181: Hours | BC181: IL TRM v6 vol2 | BD181: 338 | BE181: 1.31 | BF181: Waste Heat Factor Energy (WHFe) | BG181: IL TRM v6 vol2 | BH181: 338 | BI181: 1.53 | BJ181: Waste Heat Factor Demand (WHFd) | BK181: IL TRM v6 vol2 | BL181: 338 | BM181: 0.98 | BN181: In Service Rate (ISR) | BO181: IL TRM v6 vol2 | BP181: 363 | BQ181: 0.66 | BR181: Coincidence Factor (CF) | BS181: IL TRM v6 vol2 | BT181: 338
A182: Business Standard | B182: LED BR30 - 8W | C182: 295 | D182: Small C&I | E182: Lighting | F182: Direct Install | G182: per unit | H182: 1.65 | I182: IL TRM v6 vol2 | J182: 370 | K182: =ROUND((AS182-AW182)/1000*BA182*BE182*BM182,4) -> 159.2785 | L182: Calculated Value | O182: 0.66 | P182: IL TRM v6 vol2 | Q182: 337-338 (portfolio weighted average) | R182: =ROUND((AS182-AW182)/1000*BI182*BM182*BQ182,4) -> 0.0416 | S182: Calculated Value | X182: 15 | Y182: IL TRM v6 vol2 | Z182: 363 | AA182: ENERGY STAR labeled LED lamp | AC182: IL TRM v6 vol2 | AD182: 363 | AE182: Non-ENERGY STAR lamp | AG182: IL TRM v6 vol2 | AH182: 363 | AI182: =ROUND((AS182-AW182)/1000*BA182*BE182*BM182,4) | AJ182: =ROUND((AS182-AW182)/1000*BI182*BM182*BQ182,4) | AK182: IL TRM v6 vol2 | AL182: 364368 | AM182: 2020-01-01 | AS182: 50 | AT182: WATTSbase | AU182: IL TRM v6 vol2 | AV182: 363 | AW182: 8 | AX182: WATTSee | AY182: Program Tracking Data | BA182: 2954 | BB182: Hours | BC182: IL TRM v6 vol2 | BD182: 338 | BE182: 1.31 | BF182: Waste Heat Factor Energy (WHFe) | BG182: IL TRM v6 vol2 | BH182: 338 | BI182: 1.53 | BJ182: Waste Heat Factor Demand (WHFd) | BK182: IL TRM v6 vol2 | BL182: 338 | BM182: 0.98 | BN182: In Service Rate (ISR) | BO182: IL TRM v6 vol2 | BP182: 363 | BQ182: 0.66 | BR182: Coincidence Factor (CF) | BS182: IL TRM v6 vol2 | BT182: 338
A183: Business Standard | B183: LED BR20 - 7.5W | C183: 296 | D183: Small C&I | E183: Lighting | F183: Direct Install | G183: per unit | H183: 1.65 | I183: IL TRM v6 vol2 | J183: 370 | K183: =ROUND((AS183-AW183)/1000*BA183*BE183*BM183,4) -> 142.2129 | L183: Calculated Value | O183: 0.66 | P183: IL TRM v6 vol2 | Q183: 337-338 (portfolio weighted average) | R183: =ROUND((AS183-AW183)/1000*BI183*BM183*BQ183,4) -> 0.0371 | S183: Calculated Value | X183: 15 | Y183: IL TRM v6 vol2 | Z183: 363 | AA183: ENERGY STAR labeled LED lamp | AC183: IL TRM v6 vol2 | AD183: 363 | AE183: Non-ENERGY STAR lamp | AG183: IL TRM v6 vol2 | AH183: 363 | AI183: =ROUND((AS183-AW183)/1000*BA183*BE183*BM183,4) | AJ183: =ROUND((AS183-AW183)/1000*BI183*BM183*BQ183,4) | AK183: IL TRM v6 vol2 | AL183: 364368 | AM183: 2020-01-01 | AS183: 45 | AT183: WATTSbase | AU183: IL TRM v6 vol2 | AV183: 363 | AW183: 7.5 | AX183: WATTSee | AY183: Program Tracking Data | BA183: 2954 | BB183: Hours | BC183: IL TRM v6 vol2 | BD183: 338 | BE183: 1.31 | BF183: Waste Heat Factor Energy (WHFe) | BG183: IL TRM v6 vol2 | BH183: 338 | BI183: 1.53 | BJ183: Waste Heat Factor Demand (WHFd) | BK183: IL TRM v6 vol2 | BL183: 338 | BM183: 0.98 | BN183: In Service Rate (ISR) | BO183: IL TRM v6 vol2 | BP183: 363 | BQ183: 0.66 | BR183: Coincidence Factor (CF) | BS183: IL TRM v6 vol2 | BT183: 338
A184: Business Standard | B184: LED G25 - 8W | C184: 297 | D184: Small C&I | E184: Lighting | F184: Direct Install | G184: per unit | H184: 1.66 | I184: IL TRM v6 vol2 | J184: 370 | K184: =ROUND((AS184-AW184)/1000*BA184*BE184*BM184,4) -> 197.202 | L184: Calculated Value | O184: 0.66 | P184: IL TRM v6 vol2 | Q184: 337-338 (portfolio weighted average) | R184: =ROUND((AS184-AW184)/1000*BI184*BM184*BQ184,4) -> 0.0515 | S184: Calculated Value | X184: 15 | Y184: IL TRM v6 vol2 | Z184: 363 | AA184: ENERGY STAR labeled LED lamp | AC184: IL TRM v6 vol2 | AD184: 363 | AE184: Non-ENERGY STAR lamp | AG184: IL TRM v6 vol2 | AH184: 363 | AI184: =ROUND((AS184-AW184)/1000*BA184*BE184*BM184,4) | AJ184: =ROUND((AS184-AW184)/1000*BI184*BM184*BQ184,4) | AK184: IL TRM v6 vol2 | AL184: 364368 | AM184: 2020-01-01 | AS184: 60 | AT184: WATTSbase | AU184: IL TRM v6 vol2 | AV184: 363 | AW184: 8 | AX184: WATTSee | AY184: Program Tracking Data | BA184: 2954 | BB184: Hours | BC184: IL TRM v6 vol2 | BD184: 338 | BE184: 1.31 | BF184: Waste Heat Factor Energy (WHFe) | BG184: IL TRM v6 vol2 | BH184: 338 | BI184: 1.53 | BJ184: Waste Heat Factor Demand (WHFd) | BK184: IL TRM v6 vol2 | BL184: 338 | BM184: 0.98 | BN184: In Service Rate (ISR) | BO184: IL TRM v6 vol2 | BP184: 363 | BQ184: 0.66 | BR184: Coincidence Factor (CF) | BS184: IL TRM v6 vol2 | BT184: 338
A185: Business Standard | B185: Automatic door closer for walk-in coolers | C185: 299 | D185: Small C&I | E185: Refrigeration | G185: per unit | H185: 156.82 | I185: IL TRM v6 vol2 | J185: 434 | K185: =ROUND(943,4) -> 943 | L185: Calculated Value | O185: NA | P185: IL TRM v6 vol2 | Q185: 434 | R185: =ROUND(0.137,4) -> 0.137 | S185: Calculated Value | X185: 8 | Y185: IL TRM v6 vol2 | Z185: 434 | AA185: Installation of an automatic, hydraulic-type door closer | AC185: IL TRM v6 vol2 | AD185: 434 | AE185: Walk-in cooler without an automatic closure | AG185: IL TRM v6 vol2 | AH185: 434 | AI185: =ROUND(943,4) | AJ185: =ROUND(0.137,4) | AK185: IL TRM v6 vol2 | AL185: 434 | AM185: 2020-01-01
A186: Business Standard | B186: Automatic door closer for walk-in freezers | C186: 300 | D186: Small C&I | E186: Refrigeration | G186: per unit | H186: 156.82 | I186: IL TRM v6 vol2 | J186: 434 | K186: =ROUND(2307,4) -> 2307 | L186: Calculated Value | O186: NA | P186: IL TRM v6 vol2 | Q186: 434 | R186: =ROUND(0.309,4) -> 0.309 | S186: Calculated Value | X186: 8 | Y186: IL TRM v6 vol2 | Z186: 434 | AA186: Installation of an automatic, hydraulic-type door closer | AC186: IL TRM v6 vol2 | AD186: 434 | AE186: Walk-in freezer without an automatic closure | AG186: IL TRM v6 vol2 | AH186: 434 | AI186: =ROUND(2307,4) | AJ186: =ROUND(0.309,4) | AK186: IL TRM v6 vol2 | AL186: 434 | AM186: 2020-01-01
A187: Business Standard | B187: Door heater controls for cooler (Humidity-based controls) | C187: 301 | D187: Small C&I | E187: Refrigeration | G187: per unit | H187: 300 | I187: IL TRM v6 vol2 | J187: 439 | K187: =ROUND(AS187*AW187*BA187*BE187*BI187,4) -> 541.1427 | L187: Calculated Value | O187: 0 | P187: IL TRM v6 vol2 | Q187: 439 | R187: =ROUND(0,4) -> 0 | S187: IL TRM v6 vol2 | T187: 440 | X187: 12 | Y187: IL TRM v6 vol2 | Z187: 439 | AA187: Door heater control utilizing humidity or conductivity control | AC187: IL TRM v6 vol2 | AD187: 439 | AE187: Standard heated door with no controls installed | AG187: IL TRM v6 vol2 | AH187: 439 | AI187: =ROUND(AS187*AW187*BA187*BE187*BI187,4) | AJ187: =ROUND(0,4) | AK187: IL TRM v6 vol2 | AL187: 440 | AM187: 2020-01-01 | AS187: 0.092 | AT187: kWbase | AU187: IL TRM v6 vol2 | AV187: 440 | AW187: 1 | AX187: Numdoors | AY187: IL TRM v6 vol2 | AZ187: 440 | BA187: 0.55 | BB187: Energy Savings Factor (ESF) | BC187: IL TRM v6 vol2 | BD187: 440 | BE187: 1.22 | BF187: Bonus Factor (BF) | BG187: IL TRM v6 vol2 | BH187: 440 | BI187: 8766 | BJ187: Annual hours of operation | BK187: IL TRM v6 vol2 | BL187: 440
A188: Business Standard | B188: Door heater controls for freezer (Humidity-based controls) | C188: 302 | D188: Small C&I | E188: Refrigeration | G188: per unit | H188: 300 | I188: IL TRM v6 vol2 | J188: 439 | K188: =ROUND(AS188*AW188*BA188*BE188*BI188,4) -> 1278.6088 | L188: Calculated Value | O188: 0 | P188: IL TRM v6 vol2 | Q188: 439 | R188: =ROUND(0,4) -> 0 | S188: IL TRM v6 vol2 | T188: 440 | X188: 12 | Y188: IL TRM v6 vol2 | Z188: 439 | AA188: Door heater control utilizing humidity or conductivity control | AC188: IL TRM v6 vol2 | AD188: 439 | AE188: Standard heated door with no controls installed | AG188: IL TRM v6 vol2 | AH188: 439 | AI188: =ROUND(AS188*AW188*BA188*BE188*BI188,4) | AJ188: =ROUND(0,4) | AK188: IL TRM v6 vol2 | AL188: 440 | AM188: 2020-01-01 | AS188: 0.195 | AT188: kWbase | AU188: IL TRM v6 vol2 | AV188: 440 | AW188: 1 | AX188: Numdoors | AY188: IL TRM v6 vol2 | AZ188: 440 | BA188: 0.55 | BB188: Energy Savings Factor (ESF) | BC188: IL TRM v6 vol2 | BD188: 440 | BE188: 1.36 | BF188: Bonus Factor (BF) | BG188: IL TRM v6 vol2 | BH188: 440 | BI188: 8766 | BJ188: Annual hours of operation | BK188: IL TRM v6 vol2 | BL188: 440
A189: Business Standard | B189: ECM Motors Walk-In Coolers & Freezers | C189: 303 | D189: Small C&I | E189: Refrigeration | G189: per motor | H189: 177 | I189: IL TRM v6 vol2 | J189: 442 | K189: =ROUND(AS189*AW189,4) -> 408 | L189: IL TRM v6 vol2 | M189: 443 | O189: 1 | P189: IL TRM v6 vol2 | Q189: 442 | R189: =ROUND(AS189*AW189/BA189*BE189,4) -> 0.0466 | S189: Calculated Value | X189: 15 | Y189: IL TRM v6 vol2 | Z189: 442 | AA189: ECM Motor | AC189: IL TRM v6 vol2 | AD189: 442 | AE189: Standard Motor | AG189: IL TRM v6 vol2 | AH189: 442 | AI189: =ROUND(AS189*AW189,4) | AJ189: =ROUND(AS189*AW189/BA189*BE189,4) | AK189: IL TRM v6 vol2 | AL189: 442443 | AM189: 2020-01-01 | AS189: 1 | AT189: Number of Motors | AU189: IL TRM v6 vol2 | AV189: 442 | AW189: 408 | AX189: Savings per motor | AY189: IL TRM v6 vol2 | AZ189: 442 | BA189: 8760 | BB189: Full Load hours per year | BC189: IL TRM v6 vol2 | BD189: 442 | BE189: 1 | BF189: Summer Peak Coincidence Factor (CF) | BG189: IL TRM v6 vol2 | BH189: 442
A190: Business Standard | B190: Strip curtain for walk-in coolers - Convenience Store (No strip curtain) | C190: 304 | D190: Small C&I | E190: Refrigeration | G190: sq.ft of door opening | H190: 10.22 | I190: IL TRM v6 vol2 | J190: 450 | K190: =ROUND(20,4) -> 20 | L190: IL TRM v6 vol2 | M190: 451 | O190: 1 | P190: IL TRM v6 vol2 | Q190: 452 | R190: =ROUND(AS190/8766*O190,4) -> 0.0023 | S190: Calculated Value | X190: 4 | Y190: IL TRM v6 vol2 | Z190: 450 | AA190: Strip curtain at least 0.06 inches thick | AC190: IL TRM v6 vol2 | AD190: 450 | AE190: No strip curtain | AG190: IL TRM v6 vol2 | AH190: 450 | AI190: =ROUND(20,4) | AJ190: =ROUND(AS190/8766*O190,4) | AK190: IL TRM v6 vol2 | AL190: 451452 | AM190: 2020-01-01 | AS190: 20 | AT190: ΔkWh/sq ft | AU190: IL TRM v6 vol2 | AV190: 450 | AW190: 21 | AX190: Area | AY190: IL TRM v6 vol2 | AZ190: 450 | BA190: 1 | BB190: Coincidence Factor (CF) | BC190: IL TRM v6 vol2 | BD190: 450
A191: Business Standard | B191: Strip curtain for walk-in freezers - Convenience Store (No strip curtain) | C191: 305 | D191: Small C&I | E191: Refrigeration | G191: sq.ft of door opening | H191: 10.22 | I191: IL TRM v6 vol2 | J191: 450 | K191: =ROUND(27,4) -> 27 | L191: IL TRM v6 vol2 | M191: 451 | O191: 1 | P191: IL TRM v6 vol2 | Q191: 452 | R191: =ROUND(AS191/8766*O191,4) -> 0.0031 | S191: Calculated Value | X191: 4 | Y191: IL TRM v6 vol2 | Z191: 450 | AA191: Strip curtain at least 0.06 inches thick | AC191: IL TRM v6 vol2 | AD191: 450 | AE191: No strip curtain | AG191: IL TRM v6 vol2 | AH191: 450 | AI191: =ROUND(27,4) | AJ191: =ROUND(AS191/8766*O191,4) | AK191: IL TRM v6 vol2 | AL191: 451452 | AM191: 2020-01-01 | AS191: 27 | AT191: ΔkWh/sq ft | AU191: IL TRM v6 vol2 | AV191: 450 | AW191: 21 | AX191: Area | AY191: IL TRM v6 vol2 | AZ191: 450 | BA191: 1 | BB191: Coincidence Factor (CF) | BC191: IL TRM v6 vol2 | BD191: 450
A192: Business Standard | B192: Strip curtain for walk-in coolers - Restaurant (No strip curtain) | C192: 306 | D192: Small C&I | E192: Refrigeration | G192: sq.ft of door opening | H192: 10.22 | I192: IL TRM v6 vol2 | J192: 450 | K192: =ROUND(30,4) -> 30 | L192: IL TRM v6 vol2 | M192: 451 | O192: 1 | P192: IL TRM v6 vol2 | Q192: 452 | R192: =ROUND(AS192/8766*O192,4) -> 0.0034 | S192: Calculated Value | X192: 4 | Y192: IL TRM v6 vol2 | Z192: 450 | AA192: Strip curtain at least 0.06 inches thick | AC192: IL TRM v6 vol2 | AD192: 450 | AE192: No strip curtain | AG192: IL TRM v6 vol2 | AH192: 450 | AI192: =ROUND(30,4) | AJ192: =ROUND(AS192/8766*O192,4) | AK192: IL TRM v6 vol2 | AL192: 451452 | AM192: 2020-01-01 | AS192: 30 | AT192: ΔkWh/sq ft | AU192: IL TRM v6 vol2 | AV192: 450 | AW192: 21 | AX192: Area | AY192: IL TRM v6 vol2 | AZ192: 450 | BA192: 1 | BB192: Coincidence Factor (CF) | BC192: IL TRM v6 vol2 | BD192: 450
A193: Business Standard | B193: Strip curtain for walk-in freezers - Restaurant (No strip curtain) | C193: 307 | D193: Small C&I | E193: Refrigeration | G193: sq.ft of door opening | H193: 10.22 | I193: IL TRM v6 vol2 | J193: 450 | K193: =ROUND(119,4) -> 119 | L193: IL TRM v6 vol2 | M193: 451 | O193: 1 | P193: IL TRM v6 vol2 | Q193: 452 | R193: =ROUND(AS193/8766*O193,4) -> 0.0136 | S193: Calculated Value | X193: 4 | Y193: IL TRM v6 vol2 | Z193: 450 | AA193: Strip curtain at least 0.06 inches thick | AC193: IL TRM v6 vol2 | AD193: 450 | AE193: No strip curtain | AG193: IL TRM v6 vol2 | AH193: 450 | AI193: =ROUND(119,4) | AJ193: =ROUND(AS193/8766*O193,4) | AK193: IL TRM v6 vol2 | AL193: 451452 | AM193: 2020-01-01 | AS193: 119 | AT193: ΔkWh/sq ft | AU193: IL TRM v6 vol2 | AV193: 450 | AW193: 21 | AX193: Area | AY193: IL TRM v6 vol2 | AZ193: 450 | BA193: 1 | BB193: Coincidence Factor (CF) | BC193: IL TRM v6 vol2 | BD193: 450
A194: Business Standard | B194: Interior LED Linear Lamp Replacing 8ft T8 or T12 Lamp | C194: 313.3 | D194: C&I | E194: Lighting | G194: per lamp | H194: 28 | I194: Program Tracking Data | K194: =ROUND((AF194-AB194)/1000*U194*AS194,4) -> 96.7631 | L194: Calculated Value | N194: =(AF194-AB194)/1000*AW194 -> 0.02838 | O194: 0.67 | P194: IL TRM v9 Unknown Value (aligns with portfolio weighted average of Evergy Logger Verified CF) | Q194: 471 | R194: =ROUND(N194*O194,4) -> 0.019 | S194: Calculated Value | U194: 4129 | V194: Evergy Logger Verified HOU weighted by verified program savings | X194: 10 | Y194: Calculated Value based on HOU and lifetime hours | AA194: 8' LED Lamp | AB194: 38 | AC194: Program Tracking Data | AE194: 96", T-8 lamp, Instant Start Ballast, NLO | AF194: 59.5 | AG194: PG&E Appendix B, average of Fluorescent, (1) 96", T-8 lamp, Instant Start Ballast, NLO and F96T12/ES Fluorescent, (1) 96", ES lamp | AH194: B-27 | AI194: =ROUND((AF194-AB194)/1000*U194*AS194,4) | AJ194: =ROUND(N194*O194,4) | AK194: IL TRM v5 vol2 | AL194: 370, 374 | AM194: 2022-01-01 | AN194: 2022-12-31 | AS194: 1.09 | AT194: Waste Heat Factor Energy | AU194: IL TRM v8 building specific values weighted by Evergy verified program savings | AV194: 430-432 (portfolio weighted average) | AW194: 1.32 | AX194: Waste Heat Factor_Demand | AY194: IL TRM v8 building specific values weighted by Evergy verified program savings | AZ194: 430-432 (portfolio weighted average)
A195: Business Standard | B195: Interior LED Linear Lamp Replacing 8ft T8 or T12 Lamp | C195: 313.4 | D195: C&I | E195: Lighting | G195: per lamp | H195: 9.5 | I195: PY2 portfolio weighted average | K195: =ROUND((AF195-AB195)/1000*U195*AS195,4) -> 95.5788 | L195: Calculated Value | N195: =(AF195-AB195)/1000*AW195 -> 0.02676492 | O195: 0.68 | P195: PY2 portfolio weighted average | R195: =ROUND(N195*O195,4) -> 0.0182 | S195: Calculated Value | U195: 4128 | V195: PY2 portfolio weighted average | X195: =50000/U195 -> 12.1124031 | Y195: Calculated Value based on HOU and lifetime hours | Z195: 566 | AA195: 8' LED Lamp | AB195: 38.258 | AC195: PY2 portfolio weighted average | AE195: 96", T-8 lamp, Instant Start Ballast, NLO | AF195: 59.5 | AG195: PG&E Appendix B, average of Fluorescent, (1) 96", T-8 lamp, Instant Start Ballast, NLO and F96T12/ES Fluorescent, (1) 96", ES lamp | AI195: =ROUND((AF195-AB195)/1000*U195*AS195,4) | AJ195: =ROUND(N195*O195,4) | AK195: IL TRM v10 Vol2 | AL195: 556561 | AM195: 2023-01-01 | AS195: 1.09 | AT195: Waste Heat Factor Energy | AU195: PY2 portfolio weighted average | AW195: 1.26 | AX195: Waste Heat Factor_Demand | AY195: PY2 portfolio weighted average
A196: Business Standard | B196: VSD Pumps (Hot Water Pump) | C196: 323.1 | D196: C&I | E196: Pumps/Fans | G196: per hp | H196: 1330 | I196: IL TRM V9 vol2 | J196: 280 | K196: =ROUND(AS196*BA196/AW196*BE196,4) -> 1348.8839 | L196: Calculated Value | R196: =ROUND(AS196*BI196/AW196,4) -> 0 | S196: Calculated Value | X196: 15 | Y196: IL TRM V9 vol2 | Z196: 280 | AA196: VSD applied to a motor without a VSD | AC196: IL TRM V9 vol2 | AD196: 280 | AE196: Motor without a VSD | AG196: IL TRM V9 vol2 | AH196: 280 | AI196: =ROUND(AS196*BA196/AW196*BE196,4) | AJ196: =ROUND(AS196*BI196/AW196,4) | AK196: IL TRM V9 vol2 | AL196: 281 | AM196: 2022-01-01 | AS196: 1 | AT196: System Brake Horsepower (BHP = Nominal Motor HP*Motor Load Factor) Where, Motor Load Factor = 65%, if actual value is unknown | AU196: IL TRM V9 vol2 | AV196: 281 | AW196: 0.93 | AX196: EFFi (Motor Efficiency) | AY196: IL TRM V9 vol2 | AZ196: 281 | BA196: 5038 | BB196: Heating Run Hours | BC196: IL TRM v9 vol2 | BD196: 282 | BE196: 0.249 | BF196: Energy Savings Factor (ESF) | BG196: IL TRM v9 vol2 | BH196: 282 | BI196: 0 | BJ196: Demand Savings Factor (DSF) | BK196: IL TRM v9 vol2 | BL196: 283
A197: Business Standard | B197: VSD Fans (Cooling Tower Fan) | C197: 324.1 | D197: C&I | E197: Pumps/Fans | G197: per hp | H197: 1330 | I197: IL TRM V9 vol2 | J197: 280 | K197: =ROUND(AS197*BA197/AW197*BE197,4) -> 1612.3376 | L197: Calculated Value | R197: =ROUND(AS197*BI197/AW197,4) -> 0.4376 | S197: Calculated Value | X197: 15 | Y197: IL TRM V9 vol2 | Z197: 280 | AA197: VSD applied to a motor without a VSD | AC197: IL TRM V9 vol2 | AD197: 280 | AE197: Motor without a VSD | AG197: IL TRM V9 vol2 | AH197: 280 | AI197: =ROUND(AS197*BA197/AW197*BE197,4) | AJ197: =ROUND(AS197*BI197/AW197,4) | AK197: IL TRM V9 vol2 | AL197: 281 | AM197: 2022-01-01 | AS197: 1 | AT197: System Brake Horsepower (BHP = Nominal Motor HP*Motor Load Factor) Where, Motor Load Factor = 65%, if actual value is unknown | AU197: IL TRM V9 vol2 | AV197: 281 | AW197: 0.93 | AX197: EFFi (Motor Efficiency) | AY197: IL TRM V9 vol2 | AZ197: 281 | BA197: 2987 | BB197: Cooling Run Hours | BC197: IL TRM v9 vol2 | BD197: 282 | BE197: 0.502 | BF197: Energy Savings Factor (ESF) | BG197: IL TRM v9 vol2 | BH197: 282 | BI197: 0.407 | BJ197: Demand Savings Factor (DSF) | BK197: IL TRM v9 vol2 | BL197: 283
A198: Business Standard | B198: Door heater controls for cooler (Conductivity-based controls) | C198: 325 | D198: Small C&I | E198: Refrigeration | G198: per unit | H198: 200 | I198: IL TRM v6 vol2 | J198: 439 | K198: =ROUND(AS198*AW198*BA198*BE198*BI198,4) -> 688.7271 | L198: Calculated Value | O198: 0 | P198: IL TRM v6 vol2 | Q198: 439 | R198: =ROUND(0,4) -> 0 | S198: IL TRM v6 vol2 | T198: 440 | X198: 12 | Y198: IL TRM v6 vol2 | Z198: 439 | AA198: Door heater control utilizing humidity or conductivity control | AC198: IL TRM v6 vol2 | AD198: 439 | AE198: Standard heated door with no controls installed | AG198: IL TRM v6 vol2 | AH198: 439 | AI198: =ROUND(AS198*AW198*BA198*BE198*BI198,4) | AJ198: =ROUND(0,4) | AK198: IL TRM v6 vol2 | AL198: 440 | AM198: 2020-01-01 | AS198: 0.092 | AT198: kWbase | AU198: IL TRM v6 vol2 | AV198: 440 | AW198: 1 | AX198: Numdoors | AY198: IL TRM v6 vol2 | AZ198: 440 | BA198: 0.7 | BB198: Energy Savings Factor (ESF) | BC198: IL TRM v6 vol2 | BD198: 440 | BE198: 1.22 | BF198: Bonus Factor (BF) | BG198: IL TRM v6 vol2 | BH198: 440 | BI198: 8766 | BJ198: Annual hours of operation | BK198: IL TRM v6 vol2 | BL198: 440
A199: Business Standard | B199: Door heater controls for freezer (Conductivity-based controls) | C199: 326 | D199: Small C&I | E199: Refrigeration | G199: per unit | H199: 200 | I199: IL TRM v6 vol2 | J199: 439 | K199: =ROUND(AS199*AW199*BA199*BE199*BI199,4) -> 1627.3202 | L199: Calculated Value | O199: 0 | P199: IL TRM v6 vol2 | Q199: 439 | R199: =ROUND(0,4) -> 0 | S199: IL TRM v6 vol2 | T199: 440 | X199: 12 | Y199: IL TRM v6 vol2 | Z199: 439 | AA199: Door heater control utilizing humidity or conductivity control | AC199: IL TRM v6 vol2 | AD199: 439 | AE199: Standard heated door with no controls installed | AG199: IL TRM v6 vol2 | AH199: 439 | AI199: =ROUND(AS199*AW199*BA199*BE199*BI199,4) | AJ199: =ROUND(0,4) | AK199: IL TRM v6 vol2 | AL199: 440 | AM199: 2020-01-01 | AS199: 0.195 | AT199: kWbase | AU199: IL TRM v6 vol2 | AV199: 440 | AW199: 1 | AX199: Numdoors | AY199: IL TRM v6 vol2 | AZ199: 440 | BA199: 0.7 | BB199: Energy Savings Factor (ESF) | BC199: IL TRM v6 vol2 | BD199: 440 | BE199: 1.36 | BF199: Bonus Factor (BF) | BG199: IL TRM v6 vol2 | BH199: 440 | BI199: 8766 | BJ199: Annual hours of operation | BK199: IL TRM v6 vol2 | BL199: 440
A200: Business Standard | B200: Low Flow Faucet Aerator - Bathroom | C200: 327 | D200: Small C&I | E200: Hot Water | F200: Direct Install | G200: per unit | H200: 8 | I200: IL TRM v6 vol2 | J200: 90 | K200: =ROUND(AS200*(AW200-BA200)/AW200*BE200*BI200*BM200,4) -> 61.1263 | L200: Calculated Value | N200: =ROUND(K200/BQ200,4) -> 2.5469 | O200: 0.0064 | P200: IL TRM v6 vol2 | Q200: 94 | R200: =ROUND(K200/BQ200*BU200,4) -> 0.0163 | S200: Calculated Value | X200: 9 | Y200: IL TRM v6 vol2 | Z200: 90 | AA200: Energy Efficient Faucet Aerator rated at 1.5 GPM or less | AC200: IL TRM v6 vol2 | AD200: 90 | AE200: Standard Faucet Aerator rated at 2.25 GPM or more | AG200: IL TRM v6 vol2 | AH200: 90 | AI200: =ROUND(AS200*(AW200-BA200)/AW200*BE200*BI200*BM200,4) | AJ200: =ROUND(K200/BQ200*BU200,4) | AK200: IL TRM v6 vol2 | AL200: 91,93 | AM200: 2020-01-01 | AS200: 1 | AT200: %Electric DHW | AU200: IL TRM v6 vol2 | AV200: 91 | AW200: 1.39 | AX200: GPM_base | AY200: IL TRM v6 vol2 | AZ200: 91 | BA200: 0.94 | BB200: GPM_low | BC200: IL TRM v6 vol2 | BD200: 91 | BE200: 2500 | BF200: Usage | BG200: IL TRM v6 vol2 | BH200: 92 | BI200: 0.0795 | BJ200: EPG_electric | BK200: IL TRM v6 vol2 | BL200: 92 | BM200: 0.95 | BN200: In Service Rate (ISR) | BO200: IL TRM v6 vol2 | BP200: 93 | BQ200: 24 | BR200: Annual Recovery Hours | BS200: IL TRM v6 vol2 | BT200: 93 | BU200: 0.0064 | BV200: Coincidence Factor | BW200: IL TRM v6 vol2 | BX200: 94
... 516 more rows
